{"text_format":"1","workbook":"xlsx","n_sheets":7,"sheets":["Remuneraciones al Personal","Catalogo","Hoja1","Calendario","Ejemplo de llenado","Plantilla","Areaadmva"],"not_rendered":{"charts":0,"images":3,"macros":1,"external_links":0,"defined_names":1,"comments":0,"pivot_tables":0},"unopened":[],"bounds":{"document_bytes":16777216,"sheet_cells":100000,"rows_first":2000,"rows_last":500,"rows_between":2000,"halvings":0,"cell_chars":16384,"cell_head_chars":4096},"cells_cut":0,"cells_raw":0,"read":"whole","date_system":"1900"}

{"sheet":"Remuneraciones al Personal","index":0,"n_rows":19,"n_cols":36,"rows_kept":19,"cut":false,"hidden":false,"merged":[[8,0,8,2],[8,5,8,6],[8,9,8,10],[6,0,6,1],[2,0,2,1],[3,0,3,1],[4,0,4,1],[5,0,5,1]]}
[]
[]
["*Unidad Administrativa:",null,"UNIDAD DE ADMINISTRACION Y FINANZAS"]
["*Fecha de elaboración o última actualización:",null,"2023-08-10"]
["*Nombre del tratamiento (proceso):",null,"REMUNERACIONES AL PERSONAL "]
["*Fundamento jurídico que habilita el tratamiento:",null,"Artículo 22, Fracción I de la Ley General de Protección de Datos Personales en Posesión de Sujetos Obligados"]
["*Atribuciones de la unidad administrativa para realizar el tratamiento:",null,"Administración de los recursos humanos de conformidad a lo señalado en el Manual de Organización"]
[]
["Medio de obtención de los datos personales\n (1)",null,null,"Tercero que transfiere los datos personales,\nen su caso\n (2) ","Finalidades de la transferencia recibida, en su caso \n(3) ","Listado de datos personales\n(4) ",null,"Sensible\n(5) ","Formato de la base de datos\n (6) ","Ubicación base de datos\n (7) ",null,"Sección de archivos \n(8) ","Serie de archivos\n (9) ","Subserie de archivos \n(10)","Finalidades del tratamiento \n(11)","¿Requiere consentimiento? \n(12) ","Supuesto artículo 22 que se actualiza, en su caso\n(13)","Tipo de consentimiento\n (14)","Servidores públicos que tienen acceso a la base de datos\n(15)","Área de adscripción \n(16)","Finalidad del acceso\n(17) ","Nombre del encargado, en su caso\n(18)","No. de contrato, pedido o convenio con el encargado, o del instrumeto jurídico correspondiente\n (19)","¿Se realizan transferencias? \n(20)","Tercero al que se transfieren los datos personales, en su caso\n (21)","Finalidades de la transferencia\n(22)","¿Requiere consentimiento la transferencia? \n(23)","Supuestos artículos 22, 66 o 70 que se actualizan, en su caso \n(24) ","Tipo de consentimiento que se requiere para la transferencia\n(25)","¿La transferencia requiere la suscripción de cláusulas contractuales, convenios de colaboración u otro instrumento jurídico?\n(26)","Supuesto artículo 66 que se actualiza, en su caso\n(27) ","Difusión de los datos personales\n(28) ","Fundamento jurídico para la difusión\n(29) ","Plazo de conservación\n(30)","Bloqueo\n(31)","Observaciones"]
["Señalar el o los medios a través de los cuales se obtienen los datos personales en este tratamiento. Si es más de un medio, se deberá indicar un medio por fila. ","Describir el medio, por ejemplo la fuente de acceso público, URL, domicilio, número telefónico, entre otros ","En caso de seleccionar la opción otro, especificar el medio de obtención.","Si en la columna 1 se indicó que los datos personales se reciben por transferencia, señalar el nombre del tercero o terceros que realizan la transferencia.","Si en la columna 1 se indicó que los datos personales se reciben por transferencia, señalar para qué finalidades se realiza dicha transferencia. Se deberá utilizar la misma fila por tercero que transfiere los datos personales.","Indicar cada uno de los datos personales que se tratan o sus categorías, uno por fila. ","En caso de seleccionar la opción otro, especificar.","Señalar si el dato personal es sensible o no.","Señalar el o los formatos en los que se encuentra la base de datos del tratamiento. ","Señalar la ubicación de la base de datos. Si es más de uno, se deberá indicar uno por fila.  ","En caso de seleccionar la opción otro, especificar la ubicación.","Indicar clave de identificación de la sección a la que corresponde el tratamiento. ","Indicar clave de identificación de la serie a la que corresponde el tratamiento. ","Indicar clave de identificación de la subserie a la que corresponde el tratamiento.  ","Indicar cada una de las finalidades del tratamiento, las cuales deberán ser explícitas y concretas. Una por fila. ","Indicar si la finalidad requiere o no el consentimiento del titular.","En caso de que la finalidad no requiera el consentimiento del titular, señalar el o los supuestos del artículo 22 de la LGPDPPSO que se actualizan.","En caso de que la finalidad requiera el consentimiento del titular, señalar el tipo de consentimiento que se necesita.","Señalar los puestos de los servidores públicos que tienen acceso a la base de datos del tratamiento correspondiente. Uno por fila.","Definir unidad administrativa a la que está adscrito el puesto","Señalar con qué fines tienen acceso los servidores públicos antes identificados. Uno por fila, según corresponda.","Señalar nombre de la o las personas físicas o morales que actúan como encargados en el tratamiento, en su caso. Uno por fila. ","Señalar el número de identificación del instrumento jurídico que regula la relación con el encargado. ","Señalar si se realizan o no transferencias en el marco del tratamiento.","Señalar el nombre, razón o denominación social de los terceros a los que se transfieren los datos personales, cuando ello sea posible, o bien, su categoría. Uno por fila. ","Señalar las finalidades para las cuales se transfieren los datos personales por cada uno de los terceros. ","Señalar si la transferencia requiere o no consentimiento. ","En caso de que la transferencia no requiera consentimiento, señalar los supuestos que se actualizan. ","En caso de que la finalidad de la transferencia requiera el consentimiento del titular, señalar si se requiere el tácito o el expreso y por escrito. ","Indicar si la transferencia requiere de la suscripción de cláusulas contractuales, convenios de colaboración u otro instrumento jurídico, según el artículo 66 de la LGPDPPSO.","Señalar el supuesto que en su caso se actualiza, si no se requiere de la suscripción de cláusulas contractuales, convenios de colaboración u otro instrumento jurídico.","Indicar si en el tratamiento se realiza la difusión de los datos personales. ","Indicar el fundamento jurídico que ordena la difusión de los datos personales. ","Señalar el plazo de conservación de los datos personales, según lo señalado en los instrumentos de clasificación archivística. ","PENDIENTE POR DEFINIR","Espacio libre para hacer aclaraciones y precisiones "]
["SISTEMA INFORMATICO DE NOMINA (META4)","SERVIDOR INSTITUCIONAL",null,"NO SE RECIBEN DATOS POR TRANSFERENCIA","NO SE RECIBEN DATOS POR TRANSFERENCIA","NOMBRE",null,"NO","ELECTRONICO","SERVIDOR DE LA INSTITUCION",null,"4C RECURSOS HUMANOS","4C.5","NO SE CUENTA CON SUBSERIE ","TENER LOS DATOS IDENTIFICABLES NECESARIOS PARA ACREDITAR LA EMISION DE LOS RECIBOS DE NÓMINA.","TACITO","ARTICULO 22  FRACCION I Y II, DE LA LGPDPPSO","NO SE REQUIERE EL CONSENTIMIENTO","SUBDIRECTOR DE AREA","UNIDAD DE ADMINISTRACION Y FINANZAS","SUPERVISION","PEREZ VALDOVINOS LUIS ANTONIO ALEJANDRO","ES PERSONAL DE ESTRUCTURA","NO ","NO SE REALIZAN TRANSFERENCIAS","NO SE REALIZAN TRANSFERENCIAS","NO SE REALIZAN TRANSFERENCIAS","NO SE REALIZAN TRANSFERENCIAS","NO SE REALIZAN TRANSFERENCIAS","NO SE REALIZAN TRANSFERENCIAS","NO SE REALIZAN TRANSFERENCIAS","NO","NO SE DIFUNDEN LOS DATOS PERSONALES","INDEFINIDO (ARCHIVO HISTORICO)"]
[null,null,null,null,null,"APELLIDO PATERNO",null,"NO","FISICO","EQUIPO DE COMPUTO",null,null,null,null,null,null,null,null,"JEFE DE DEPARTAMENTO","UNIDAD DE ADMINISTRACION Y FINANZAS","SEGUIMIENTO Y CONTROL","REYES SOLANO BRENDA ESTHER","ES PERSONAL DE ESTRUCTURA"]
[null,null,null,null,null,"APELLIDO MATERNO",null,"NO",null,"ARCHIVO DEL AREA",null,null,null,null,null,null,null,null,"TECNICO SUPERIOR","UNIDAD DE ADMINISTRACION Y FINANZAS","CONTROL","GARCIA FERNANDEZ ESMERALDA","ES PERSONAL DE ESTRUCTURA"]
[null,null,null,null,null,"RFC",null,"SI",null,null,null,null,null,null,null,null,null,null,"SECRETARIA EJECUTIVA B","UNIDAD DE ADMINISTRACION Y FINANZAS","CONTROL","RODRIGUEZ CHAVEZ NALLELY","ES PERSONAL DE ESTRUCTURA"]
[null,null,null,null,null,"CURP",null,"SI",null,null,null,null,null,null,null,null,null,null,"ESPECIALISTA TECNICO","UNIDAD DE ADMINISTRACION Y FINANZAS","CONTROL","CASTRO WADE MANUEL ALEJANDRO","ES PERSONAL DE ESTRUCTURA"]
[null,null,null,null,null,"NÚMERO DE SEGURIDAD SOCIAL",null,"SI",null,null,null,null,null,null,null,null,null,null,"TECNICO SUPERIOR","UNIDAD DE ADMINISTRACION Y FINANZAS","CONTROL","MIRELES MUÑOZ MA. DE LOS ANGELES","ES PERSONAL DE ESTRUCTURA"]
[null,null,null,null,null,"DOMICILIO",null,"SI"]
[null,null,null,null,null,"DEDUCCIONES PERSONALES",null,"SI"]
[null,null,null,null,null,"DATOS BANCARIOS",null,"SI"]

{"sheet":"Catalogo","index":1,"n_rows":48,"n_cols":35,"rows_kept":48,"cut":false,"hidden":true,"merged":[]}
["(1) Medio de obtención de los datos personales: ",null,"(5) Listado de datos personales: ",null,"(6) Sensible:",null,"(7) Formato base de datos: ",null,"(8) Ubicación de la base de datos:",null,"(9) Sección de archivos:",null,"(10) Serie de archivos:",null,"(11) Subserie de archivos: ",null,"(13) ¿Requiere Consentimiento la finalidad?",null,"(14) Supuestos artículo 22: ",null,"(15) Tipo de consentimiento:",null,"(16) Servidores públicos del INAI que tienen acceso a la base de datos:","(20) ¿Se realizan transferencias?","(23) ¿Requiere consentimiento la transferencia?",null,"(24) Supuesto que se actualiza en la transferencia:",null,"(25) Tipo de consentimiento que se requiere para transferencia",null,"¿La transferencia requiere la suscripción de cláusulas contractuales, convenios de colaboración u otro instrumento jurídico? (26)",null,"Supuesto artículo 66 que se actualiza, en su caso (27) ",null,"(28) Difusión de los datos personales: "]
["De manera personal con la presencia física del titular de los datos personales o su representante, en su caso",null,"Nombre de persona física (titular de los datos personales, representante, tercero interesado, promovente, persona autorizada para recibir notificaciones, entre otros).",null,"Sí ",null,"Físico",null,"Archiveros de la unidad administrativa",null,null,null,null,null,null,null,"Sí",null,"I",null,"Tácito",null,"Ponencia Comisionada Areli Cano Guadiana","Sí","Sí",null,"22, I",null,"Tácito",null,"Sí",null,"66, fracción I",null,"Sí"]
["Vía telefónica",null,"Antecedentes laborales ",null,"No ",null,"Electrónico ",null,"Equipo de cómputo ",null,null,null,null,null,null,null,"No",null,"II",null,"Expreso y por escrito",null,"Ponencia Comisionada María Patricia Kurczyn Villalobos","No","No",null,"22, II",null,"Expreso y por escrito",null,"No ",null,"66, fracción II",null,"No"]
["Correo electrónico",null,"Año de nacimiento o edad",null,null,null,"Físico y electrónico",null,"Servidor de la Institución",null,null,null,null,null,null,null,null,null,"III",null,"Expreso ",null,"Ponencia Comisionada Ximena Puente de la Mora",null,null,null,"22, III",null,"Expreso ",null,null,null,"NA"]
["Internet o sistema informático",null,"Beneficiarios",null,null,null,null,null,"En la nube",null,null,null,null,null,null,null,null,null,"IV",null,"NA",null,"Ponencia Rosendoevgueni Monterrey Chepov",null,null,null,"22, IV"]
["Escrito o formato presentado directamente en el INAI",null,"Características físicas",null,null,null,null,null,"Archivo de concentración ",null,null,null,null,null,null,null,null,null,"V",null,null,null,"Ponencia Oscar Mauricio Guerra Ford",null,null,null,"22, V"]
["Escrito o formato enviado al INAI por mensajería",null,"Circunstancias socioeconómicas",null,null,null,null,null,"Otros (especificar en columna siguiente).",null,null,null,null,null,null,null,null,null,"VI",null,null,null,"Ponencia Comisionado Joel Salas Suárez",null,null,null,"22, VI"]
["Por transferencia ",null,"Correo electrónico",null,null,null,null,null,null,null,null,null,null,null,null,null,null,null,"VII",null,null,null,"Ponencia Comisionado Francisco Javier Acuña Llamas",null,null,null,"22,VII"]
["Fuente de acceso público ",null,"Creencias religiosas, filosóficas o morales",null,null,null,null,null,null,null,null,null,null,null,null,null,null,null,"VIII",null,null,null,"Presidencia",null,null,null,"22, VIII"]
["Otro (especifique en la columna siguiente)",null,"Currículum Vitae",null,null,null,null,null,null,null,null,null,null,null,null,null,null,null,"IX",null,null,null,"Dirección General de Administración",null,null,null,"22, IX"]
[null,null,"Datos académicos",null,null,null,null,null,null,null,null,null,null,null,null,null,null,null,"X",null,null,null,"Dirección General de Asuntos Jurídicos",null,null,null,"22, X"]
[null,null,"Datos contenidos en declaraciones patrimoniales ",null,null,null,null,null,null,null,null,null,null,null,null,null,null,null,"NA",null,null,null,"Dirección General de Comunicación Social y Difusión",null,null,null,"66, I"]
[null,null,"Datos de identificación",null,null,null,null,null,null,null,null,null,null,null,null,null,null,null,null,null,null,null,"Dirección General de Planeación y Desempeño Institucional",null,null,null,"66, II"]
[null,null,"Datos de salud",null,null,null,null,null,null,null,null,null,null,null,null,null,null,null,null,null,null,null,"Secretaría Ejecutiva",null,null,null,"70, I"]
[null,null,"Datos laborales",null,null,null,null,null,null,null,null,null,null,null,null,null,null,null,null,null,null,null,"Dirección General de Asuntos Internacionales",null,null,null,"70, II"]
[null,null,"Datos patrimoniales",null,null,null,null,null,null,null,null,null,null,null,null,null,null,null,null,null,null,null,"Dirección General de Capacitación",null,null,null,"70, III"]
[null,null,"Datos personales contenidos en documento para acreditar personalidad del representante",null,null,null,null,null,null,null,null,null,null,null,null,null,null,null,null,null,null,null,"Dirección General de Gestión de Información y Estudios",null,null,null,"70, IV"]
[null,null,"Datos personales contenidos en la descripción del trámite a realizar o solicitud de derecho a ejercer.",null,null,null,null,null,null,null,null,null,null,null,null,null,null,null,null,null,null,null,"Dirección General de Promoción y Vinculación con la Sociedad",null,null,null,"70, V"]
[null,null,"Datos personales contenidos en la identificación oficial presentada por la persona física",null,null,null,null,null,null,null,null,null,null,null,null,null,null,null,null,null,null,null,"Dirección General de Tecnologías de la Información",null,null,null,"70, VI"]
[null,null,"Datos sindicales",null,null,null,null,null,null,null,null,null,null,null,null,null,null,null,null,null,null,null,"Secretaría Ejecutiva del Sistema Nacional de Transparencia",null,null,null,"70, VII"]
[null,null,"Datos sobre procedimientos judiciales o seguidos en forma de juicio",null,null,null,null,null,null,null,null,null,null,null,null,null,null,null,null,null,null,null,"Dirección General Técnica de Seguimiento y Normatividad del Sistema Nacional de Transparencia",null,null,null,"70, VIII"]
[null,null,"Descuentos personales (ahorro voluntario, hipoteca, seguro médico, seguro de automóvil, entre otros)",null,null,null,null,null,null,null,null,null,null,null,null,null,null,null,null,null,null,null,"Dirección General de Vinculación Coordinación y Colaboración con Entidades Federativas",null,null,null,"70, IX"]
[null,null,"Discapacidad ",null,null,null,null,null,null,null,null,null,null,null,null,null,null,null,null,null,null,null,"Secretaría Técnica del Pleno",null,null,null,"NA"]
[null,null,"Domicilio",null,null,null,null,null,null,null,null,null,null,null,null,null,null,null,null,null,null,null,"Dirección General de Atención al Pleno"]
[null,null,"Estado de interdicción o incapacidad legal",null,null,null,null,null,null,null,null,null,null,null,null,null,null,null,null,null,null,null,"Dirección General de Cumplimiento y Responsabilidades"]
[null,null,"Firma",null,null,null,null,null,null,null,null,null,null,null,null,null,null,null,null,null,null,null,"Secretaría de Acceso a la Información"]
[null,null,"Huella dactilar",null,null,null,null,null,null,null,null,null,null,null,null,null,null,null,null,null,null,null,"Dirección General de Enlace con Autoridades Laborales, Sindicatos, Universidades, Personas Físicas y Morales"]
[null,null,"Huella digital",null,null,null,null,null,null,null,null,null,null,null,null,null,null,null,null,null,null,null,"Dirección General de Enlace con Organismos Públicos Autónomos, Empresas Paraestatales, Entidades Financieras, Fondos y Fideicomisos"]
[null,null,"Información genética",null,null,null,null,null,null,null,null,null,null,null,null,null,null,null,null,null,null,null,"Dirección General de Enlace con Partidos Políticos, Organismos Electorales y Descentralizados"]
[null,null,"Información migratoria",null,null,null,null,null,null,null,null,null,null,null,null,null,null,null,null,null,null,null,"Dirección General de Enlace con la Administración Pública Centralizada y Tribunales Administrativos"]
[null,null,"Lengua indígena",null,null,null,null,null,null,null,null,null,null,null,null,null,null,null,null,null,null,null,"Dirección General de Enlace con los Poderes Legislativo y Judicial"]
[null,null,"Menor de edad",null,null,null,null,null,null,null,null,null,null,null,null,null,null,null,null,null,null,null,"Dirección General de Evaluación"]
[null,null,"Nacionalidad ",null,null,null,null,null,null,null,null,null,null,null,null,null,null,null,null,null,null,null,"Dirección General de Gobierno Abierto y Transparencia"]
[null,null,"Nivel educativo",null,null,null,null,null,null,null,null,null,null,null,null,null,null,null,null,null,null,null,"Dirección General de Políticas de Acceso"]
[null,null,"Ocupación",null,null,null,null,null,null,null,null,null,null,null,null,null,null,null,null,null,null,null,"Secretaría de Protección de Datos Personales"]
[null,null,"Opiniones políticas",null,null,null,null,null,null,null,null,null,null,null,null,null,null,null,null,null,null,null,"Dirección General de Investigación y Verificación"]
[null,null,"Origen étnico o racial",null,null,null,null,null,null,null,null,null,null,null,null,null,null,null,null,null,null,null,"Dirección General de Normatividad y Consulta"]
[null,null,"Otros datos biométricos",null,null,null,null,null,null,null,null,null,null,null,null,null,null,null,null,null,null,null,"Dirección General de Prevención y Autorregulación"]
[null,null,"Persona fallecida",null,null,null,null,null,null,null,null,null,null,null,null,null,null,null,null,null,null,null,"Dirección General de Protección de Derechos y Sanción"]
[null,null,"Pertenencia a pueblo indígena",null,null,null,null,null,null,null,null,null,null,null,null,null,null,null,null,null,null,null,"Órgano Interno de Control"]
[null,null,"Salario del servidor público"]
[null,null,"Segundo apellido de persona física (titular de los datos personales, representante, tercero interesado, promovente, persona autorizada para recibir notificaciones, entre otros)."]
[null,null,"Sexo"]
[null,null,"Teléfono fijo o celular"]
[null,null,"Títulos o constancias profesionales "]
[null,null,"Títulos profesionales "]
[null,null,"Vida sexual"]
[null,null,"Otro, especificar en la columna siguiente"]

{"sheet":"Hoja1","index":2,"n_rows":0,"n_cols":0,"rows_kept":0,"cut":false,"hidden":true,"merged":[]}

{"sheet":"Calendario","index":3,"n_rows":580,"n_cols":1,"rows_kept":580,"cut":false,"hidden":true,"merged":[]}
["dd/mm/aaaa"]
["2017-06-01"]
["2017-06-02"]
["2017-06-03"]
["2017-06-04"]
["2017-06-05"]
["2017-06-06"]
["2017-06-07"]
["2017-06-08"]
["2017-06-09"]
["2017-06-10"]
["2017-06-11"]
["2017-06-12"]
["2017-06-13"]
["2017-06-14"]
["2017-06-15"]
["2017-06-16"]
["2017-06-17"]
["2017-06-18"]
["2017-06-19"]
["2017-06-20"]
["2017-06-21"]
["2017-06-22"]
["2017-06-23"]
["2017-06-24"]
["2017-06-25"]
["2017-06-26"]
["2017-06-27"]
["2017-06-28"]
["2017-06-29"]
["2017-06-30"]
["2017-07-01"]
["2017-07-02"]
["2017-07-03"]
["2017-07-04"]
["2017-07-05"]
["2017-07-06"]
["2017-07-07"]
["2017-07-08"]
["2017-07-09"]
["2017-07-10"]
["2017-07-11"]
["2017-07-12"]
["2017-07-13"]
["2017-07-14"]
["2017-07-15"]
["2017-07-16"]
["2017-07-17"]
["2017-07-18"]
["2017-07-19"]
["2017-07-20"]
["2017-07-21"]
["2017-07-22"]
["2017-07-23"]
["2017-07-24"]
["2017-07-25"]
["2017-07-26"]
["2017-07-27"]
["2017-07-28"]
["2017-07-29"]
["2017-07-30"]
["2017-07-31"]
["2017-08-01"]
["2017-08-02"]
["2017-08-03"]
["2017-08-04"]
["2017-08-05"]
["2017-08-06"]
["2017-08-07"]
["2017-08-08"]
["2017-08-09"]
["2017-08-10"]
["2017-08-11"]
["2017-08-12"]
["2017-08-13"]
["2017-08-14"]
["2017-08-15"]
["2017-08-16"]
["2017-08-17"]
["2017-08-18"]
["2017-08-19"]
["2017-08-20"]
["2017-08-21"]
["2017-08-22"]
["2017-08-23"]
["2017-08-24"]
["2017-08-25"]
["2017-08-26"]
["2017-08-27"]
["2017-08-28"]
["2017-08-29"]
["2017-08-30"]
["2017-08-31"]
["2017-09-01"]
["2017-09-02"]
["2017-09-03"]
["2017-09-04"]
["2017-09-05"]
["2017-09-06"]
["2017-09-07"]
["2017-09-08"]
["2017-09-09"]
["2017-09-10"]
["2017-09-11"]
["2017-09-12"]
["2017-09-13"]
["2017-09-14"]
["2017-09-15"]
["2017-09-16"]
["2017-09-17"]
["2017-09-18"]
["2017-09-19"]
["2017-09-20"]
["2017-09-21"]
["2017-09-22"]
["2017-09-23"]
["2017-09-24"]
["2017-09-25"]
["2017-09-26"]
["2017-09-27"]
["2017-09-28"]
["2017-09-29"]
["2017-09-30"]
["2017-10-01"]
["2017-10-02"]
["2017-10-03"]
["2017-10-04"]
["2017-10-05"]
["2017-10-06"]
["2017-10-07"]
["2017-10-08"]
["2017-10-09"]
["2017-10-10"]
["2017-10-11"]
["2017-10-12"]
["2017-10-13"]
["2017-10-14"]
["2017-10-15"]
["2017-10-16"]
["2017-10-17"]
["2017-10-18"]
["2017-10-19"]
["2017-10-20"]
["2017-10-21"]
["2017-10-22"]
["2017-10-23"]
["2017-10-24"]
["2017-10-25"]
["2017-10-26"]
["2017-10-27"]
["2017-10-28"]
["2017-10-29"]
["2017-10-30"]
["2017-10-31"]
["2017-11-01"]
["2017-11-02"]
["2017-11-03"]
["2017-11-04"]
["2017-11-05"]
["2017-11-06"]
["2017-11-07"]
["2017-11-08"]
["2017-11-09"]
["2017-11-10"]
["2017-11-11"]
["2017-11-12"]
["2017-11-13"]
["2017-11-14"]
["2017-11-15"]
["2017-11-16"]
["2017-11-17"]
["2017-11-18"]
["2017-11-19"]
["2017-11-20"]
["2017-11-21"]
["2017-11-22"]
["2017-11-23"]
["2017-11-24"]
["2017-11-25"]
["2017-11-26"]
["2017-11-27"]
["2017-11-28"]
["2017-11-29"]
["2017-11-30"]
["2017-12-01"]
["2017-12-02"]
["2017-12-03"]
["2017-12-04"]
["2017-12-05"]
["2017-12-06"]
["2017-12-07"]
["2017-12-08"]
["2017-12-09"]
["2017-12-10"]
["2017-12-11"]
["2017-12-12"]
["2017-12-13"]
["2017-12-14"]
["2017-12-15"]
["2017-12-16"]
["2017-12-17"]
["2017-12-18"]
["2017-12-19"]
["2017-12-20"]
["2017-12-21"]
["2017-12-22"]
["2017-12-23"]
["2017-12-24"]
["2017-12-25"]
["2017-12-26"]
["2017-12-27"]
["2017-12-28"]
["2017-12-29"]
["2017-12-30"]
["2017-12-31"]
["2018-01-01"]
["2018-01-02"]
["2018-01-03"]
["2018-01-04"]
["2018-01-05"]
["2018-01-06"]
["2018-01-07"]
["2018-01-08"]
["2018-01-09"]
["2018-01-10"]
["2018-01-11"]
["2018-01-12"]
["2018-01-13"]
["2018-01-14"]
["2018-01-15"]
["2018-01-16"]
["2018-01-17"]
["2018-01-18"]
["2018-01-19"]
["2018-01-20"]
["2018-01-21"]
["2018-01-22"]
["2018-01-23"]
["2018-01-24"]
["2018-01-25"]
["2018-01-26"]
["2018-01-27"]
["2018-01-28"]
["2018-01-29"]
["2018-01-30"]
["2018-01-31"]
["2018-02-01"]
["2018-02-02"]
["2018-02-03"]
["2018-02-04"]
["2018-02-05"]
["2018-02-06"]
["2018-02-07"]
["2018-02-08"]
["2018-02-09"]
["2018-02-10"]
["2018-02-11"]
["2018-02-12"]
["2018-02-13"]
["2018-02-14"]
["2018-02-15"]
["2018-02-16"]
["2018-02-17"]
["2018-02-18"]
["2018-02-19"]
["2018-02-20"]
["2018-02-21"]
["2018-02-22"]
["2018-02-23"]
["2018-02-24"]
["2018-02-25"]
["2018-02-26"]
["2018-02-27"]
["2018-02-28"]
["2018-03-01"]
["2018-03-02"]
["2018-03-03"]
["2018-03-04"]
["2018-03-05"]
["2018-03-06"]
["2018-03-07"]
["2018-03-08"]
["2018-03-09"]
["2018-03-10"]
["2018-03-11"]
["2018-03-12"]
["2018-03-13"]
["2018-03-14"]
["2018-03-15"]
["2018-03-16"]
["2018-03-17"]
["2018-03-18"]
["2018-03-19"]
["2018-03-20"]
["2018-03-21"]
["2018-03-22"]
["2018-03-23"]
["2018-03-24"]
["2018-03-25"]
["2018-03-26"]
["2018-03-27"]
["2018-03-28"]
["2018-03-29"]
["2018-03-30"]
["2018-03-31"]
["2018-04-01"]
["2018-04-02"]
["2018-04-03"]
["2018-04-04"]
["2018-04-05"]
["2018-04-06"]
["2018-04-07"]
["2018-04-08"]
["2018-04-09"]
["2018-04-10"]
["2018-04-11"]
["2018-04-12"]
["2018-04-13"]
["2018-04-14"]
["2018-04-15"]
["2018-04-16"]
["2018-04-17"]
["2018-04-18"]
["2018-04-19"]
["2018-04-20"]
["2018-04-21"]
["2018-04-22"]
["2018-04-23"]
["2018-04-24"]
["2018-04-25"]
["2018-04-26"]
["2018-04-27"]
["2018-04-28"]
["2018-04-29"]
["2018-04-30"]
["2018-05-01"]
["2018-05-02"]
["2018-05-03"]
["2018-05-04"]
["2018-05-05"]
["2018-05-06"]
["2018-05-07"]
["2018-05-08"]
["2018-05-09"]
["2018-05-10"]
["2018-05-11"]
["2018-05-12"]
["2018-05-13"]
["2018-05-14"]
["2018-05-15"]
["2018-05-16"]
["2018-05-17"]
["2018-05-18"]
["2018-05-19"]
["2018-05-20"]
["2018-05-21"]
["2018-05-22"]
["2018-05-23"]
["2018-05-24"]
["2018-05-25"]
["2018-05-26"]
["2018-05-27"]
["2018-05-28"]
["2018-05-29"]
["2018-05-30"]
["2018-05-31"]
["2018-06-01"]
["2018-06-02"]
["2018-06-03"]
["2018-06-04"]
["2018-06-05"]
["2018-06-06"]
["2018-06-07"]
["2018-06-08"]
["2018-06-09"]
["2018-06-10"]
["2018-06-11"]
["2018-06-12"]
["2018-06-13"]
["2018-06-14"]
["2018-06-15"]
["2018-06-16"]
["2018-06-17"]
["2018-06-18"]
["2018-06-19"]
["2018-06-20"]
["2018-06-21"]
["2018-06-22"]
["2018-06-23"]
["2018-06-24"]
["2018-06-25"]
["2018-06-26"]
["2018-06-27"]
["2018-06-28"]
["2018-06-29"]
["2018-06-30"]
["2018-07-01"]
["2018-07-02"]
["2018-07-03"]
["2018-07-04"]
["2018-07-05"]
["2018-07-06"]
["2018-07-07"]
["2018-07-08"]
["2018-07-09"]
["2018-07-10"]
["2018-07-11"]
["2018-07-12"]
["2018-07-13"]
["2018-07-14"]
["2018-07-15"]
["2018-07-16"]
["2018-07-17"]
["2018-07-18"]
["2018-07-19"]
["2018-07-20"]
["2018-07-21"]
["2018-07-22"]
["2018-07-23"]
["2018-07-24"]
["2018-07-25"]
["2018-07-26"]
["2018-07-27"]
["2018-07-28"]
["2018-07-29"]
["2018-07-30"]
["2018-07-31"]
["2018-08-01"]
["2018-08-02"]
["2018-08-03"]
["2018-08-04"]
["2018-08-05"]
["2018-08-06"]
["2018-08-07"]
["2018-08-08"]
["2018-08-09"]
["2018-08-10"]
["2018-08-11"]
["2018-08-12"]
["2018-08-13"]
["2018-08-14"]
["2018-08-15"]
["2018-08-16"]
["2018-08-17"]
["2018-08-18"]
["2018-08-19"]
["2018-08-20"]
["2018-08-21"]
["2018-08-22"]
["2018-08-23"]
["2018-08-24"]
["2018-08-25"]
["2018-08-26"]
["2018-08-27"]
["2018-08-28"]
["2018-08-29"]
["2018-08-30"]
["2018-08-31"]
["2018-09-01"]
["2018-09-02"]
["2018-09-03"]
["2018-09-04"]
["2018-09-05"]
["2018-09-06"]
["2018-09-07"]
["2018-09-08"]
["2018-09-09"]
["2018-09-10"]
["2018-09-11"]
["2018-09-12"]
["2018-09-13"]
["2018-09-14"]
["2018-09-15"]
["2018-09-16"]
["2018-09-17"]
["2018-09-18"]
["2018-09-19"]
["2018-09-20"]
["2018-09-21"]
["2018-09-22"]
["2018-09-23"]
["2018-09-24"]
["2018-09-25"]
["2018-09-26"]
["2018-09-27"]
["2018-09-28"]
["2018-09-29"]
["2018-09-30"]
["2018-10-01"]
["2018-10-02"]
["2018-10-03"]
["2018-10-04"]
["2018-10-05"]
["2018-10-06"]
["2018-10-07"]
["2018-10-08"]
["2018-10-09"]
["2018-10-10"]
["2018-10-11"]
["2018-10-12"]
["2018-10-13"]
["2018-10-14"]
["2018-10-15"]
["2018-10-16"]
["2018-10-17"]
["2018-10-18"]
["2018-10-19"]
["2018-10-20"]
["2018-10-21"]
["2018-10-22"]
["2018-10-23"]
["2018-10-24"]
["2018-10-25"]
["2018-10-26"]
["2018-10-27"]
["2018-10-28"]
["2018-10-29"]
["2018-10-30"]
["2018-10-31"]
["2018-11-01"]
["2018-11-02"]
["2018-11-03"]
["2018-11-04"]
["2018-11-05"]
["2018-11-06"]
["2018-11-07"]
["2018-11-08"]
["2018-11-09"]
["2018-11-10"]
["2018-11-11"]
["2018-11-12"]
["2018-11-13"]
["2018-11-14"]
["2018-11-15"]
["2018-11-16"]
["2018-11-17"]
["2018-11-18"]
["2018-11-19"]
["2018-11-20"]
["2018-11-21"]
["2018-11-22"]
["2018-11-23"]
["2018-11-24"]
["2018-11-25"]
["2018-11-26"]
["2018-11-27"]
["2018-11-28"]
["2018-11-29"]
["2018-11-30"]
["2018-12-01"]
["2018-12-02"]
["2018-12-03"]
["2018-12-04"]
["2018-12-05"]
["2018-12-06"]
["2018-12-07"]
["2018-12-08"]
["2018-12-09"]
["2018-12-10"]
["2018-12-11"]
["2018-12-12"]
["2018-12-13"]
["2018-12-14"]
["2018-12-15"]
["2018-12-16"]
["2018-12-17"]
["2018-12-18"]
["2018-12-19"]
["2018-12-20"]
["2018-12-21"]
["2018-12-22"]
["2018-12-23"]
["2018-12-24"]
["2018-12-25"]
["2018-12-26"]
["2018-12-27"]
["2018-12-28"]
["2018-12-29"]
["2018-12-30"]
["2018-12-31"]

{"sheet":"Ejemplo de llenado","index":4,"n_rows":23,"n_cols":33,"rows_kept":23,"cut":false,"hidden":true,"merged":[[6,0,6,2],[6,3,6,12],[2,0,2,2],[3,0,3,2],[4,0,4,2],[4,3,4,4],[5,0,5,2],[7,0,7,2],[7,3,7,12],[8,0,8,2],[8,3,8,12],[10,0,10,1],[10,5,10,6],[10,9,10,10]]}
["Esta ficha es sólo un ejemplo, para orientar en el llenado del formato, por lo que no tiene validez, ni el tratamiento se realiza como se señala. "]
[]
[]
[]
["*Unidad Administrativa:",null,null,"Dirección General de Prevención y Autorregulación"]
["*Fecha de actualización:",null,null,"dd/mm/aaaa"]
["*Nombre del tratamiento (proceso):",null,null,"Tramitación de solicitudes de autorización para la implementación de medidas compensatorias. "]
["*Fundamento jurídico que habilita el tratamiento:",null,null,"Artículos 18, último párrafo, de la Ley Federal de Protección de Datos Personales en Posesión de los Particulares, y 32 al 35 del Reglamento de la Ley Federal de Protección de Datos Personales en Posesión de los Particulares, así como los Criterios Generales para la instrumentación de medidas compensatorias sin autorización expresa del INAI. "]
["*Atribuciones de la unidad administrativa para realizar el tratamiento:",null,null,"Artículo 45, fracción XII del Estatuto Orgánico del Instituto Nacional de Transparencia, Acceso a la Información y Protección de Datos Personales. "]
[]
["*Medio de obtención de los datos personales\n (1)",null,"Tercero que transfiere los datos personales,\nen su caso\n (2) ","Finalidades de la transferencia recibida por el INAI, en su caso \n(3) ","Fuente de acceso público de la que se obtienen los datos personales, en su caso\n (4) ","*Listado de datos personales\n(5) ",null,"*Sensible\n(6) ","*Formato base de datos\n (7) ","*Ubicación base de datos\n (8) ",null,"*Sección de archivos \n(9) ","*Serie de archivos \n(10) ","Subserie de archivos \n(11)","*Finalidades del tratamiento \n(12)","*¿Requiere consentimiento? \n(13) ","Supuesto artículo 22 que se actualiza, en su caso\n(14)","Tipo de consentimiento\n (15)","*Servidores públicos del INAI que tienen acceso a la base de datos\n(16)","*Finalidad del acceso\n(17) ","Nombre del encargado, en su caso\n(18)","No. de contrato, pedido o convenio con el encargado (19)","*¿Se realizan transferencias? \n(20)","Tercero al que se transfieren los datos personales, en su caso\n (21)","Finalidades de la transferencia\n(22)","¿Requiere consentimiento la transferencia? \n(23)","Supuestos artículos 22, 66 o 70 que se actualizan, en su caso \n(24) ","Tipo de consentimiento que se requiere para la transferencia\n(25)","¿La transferencia requiere la suscripción de cláusulas contractuales, convenios de colaboración u otro instrumento jurídico?\n(26)","Supuesto artículo 66 que se actualiza, en su caso\n(27) ","*Difusión de los datos personales\n(28) ","Fundamento jurídico para la difusión\n(29) ","*Plazo de conservación\n(30)"]
["Señalar el o los medios a través de los cuales se obtienen los datos personales en este tratamiento. Si es más de un medio, se deberá indicar un medio por fila. ","En caso de seleccionar la opción otro, especificar el medio de obtención:","Si en la columna 1 se indicó que los datos personales se reciben por transferencia, señalar el nombre del tercero o terceros que realizan la transferencia. Uno por fila. ","Si en la columna 1 se indico que los datos personales se reciben por transferencia, señalar para qué finalidades se realiza dicha transferencia. Se deberá utilizar la misma fila por tercero que transfiere los datos personales.","Si en la columna 1 se indicó que los datos personales se obtienen por una fuente de acceso público, señalar el nombre de la fuente, cuando ello sea posible, o bien, el tipo de fuente, por ejemplo: medios de comunicación en línea. ","Indicar cada uno de los datos personales que se tratan, uno por fila. ","En caso de seleccionar la opción otro, especificar:","Señalar si el dato personal es sensible o no.","Señalar el o los formatos en los que se encuentra la base de datos del tratamiento. ","Señalar la ubicación de la base de datos. Si es más de uno, se deberá indicar uno por fila. ","En caso de seleccionar la opción otro, especificar la ubicación.","Indicar clave de identificación de la sección a la que corresponda el tratamiento.","Indicar clave de identificación de la serie a la que corresponda el tratamiento.","Indicar clave de identificación de la subserie a la que corresponda el tratamiento. ","Indicar cada una de las finalidades del tratamiento, las cuales deberán ser explícitas y concretas. Una por fila. ","Indicar si la finalidad requiere o no el consentimiento del titular.","En caso de que la finalidad no requiera el consentimiento del titular, señalar el o los supuestos del artículo 22 de la LGPDPPSO que se actualizan.","En caso de que la finalidad requiera el consentimiento del titular, señalar el tipo de consentimiento que se necesita.","Señalar los puestos de los servidores públicos del INAI que tienen acceso a la base de datos del tratamiento correspondiente. Uno por fila.","Señalar con qué fines tienen acceso los servidores públicos antes identificados. Uno por fila, según corresponda.","Señalar nombre de la o las personas físicas o morales que actúan como encargados en el tratamiento, en su caso. Uno por fila. ","Señalar el número de identificación del instrumento jurídico que regula la relación con el encargado. ","Señalar si se realizan o no transferencias en el marco del tratamiento.","Señalar el nombre, razón o denominación social de los terceros a los que se transfieren los datos personales, cuando ello sea posible, o bien, su categoría, por ejemplo: Ministerio Público. Uno por fila. ","Señalar las finalidades para las cuales se transfieren los datos personales por cada uno de los terceros. ","Señalar si la transferencia requiere o no consentimiento. ","En caso de que la transferencia no requiera consentimiento, señalar los supuestos que se actualizan. ","En caso de que la finalidad de la transferencia requiera el consentimiento del titular, señalar si se requiere el tácito o el expreso y por escrito. ","Indicar si la transferencia requiere de la suscripción de cláusulas contractuales, convenios de colaboración u otro instrumento jurídico, según el artículo 66 de la LGPDPPSO.","Señalar el supuesto que en su caso se actualiza, si no se requiere de la suscripción de cláusulas contractuales, convenios de colaboración u otro instrumento jurídico.","Indicar si en el tratamiento se realiza la difusión de los datos personales. ","Indicar el fundamento jurídico que ordena la difusión de los datos personales. ","Señalar el plazo de conservación de los datos personales, según lo señalado en los instrumentos de clasificación archivística. "]
["De manera personal con la presencia física del titular de los datos personales o su representante, en su caso",null,"Secretaría de Economía","Para dar trámite a la solicitud de autorización.","Registro Público de Profesionistas","Nombre de persona física (titular de los datos personales, representante, tercero interesado, promovente, persona autorizada para recibir notificaciones, entre otros).",null,"No ","Físico y electrónico","Archiveros de la unidad administrativa",null,"SC03S","SE15","SS01","Acreditar la identidad del responsable (persona física) que presente la solicitud de autorización de medida compensatoria.","No","V","NA","Dirección General de Prevención y Autorregulación ","Dar trámite a la solicitud y proponer proyecto de determinación. ","NA","NA","Si","Secretaría de Gobernación ","Para acreditar validez de la CURP","No","70, II","NA","No ","66, fracción I","No","NA","12 años"]
["Escrito o formato presentado directamente en el INAI",null,"Organismos garantes de las entidades federativas","Para dar trámite a la solicitud de autorización.",null,"Primer apellido de persona física (titular de los datos personales, representante, tercero interesado, promovente, persona autorizada para recibir notificaciones, entre otros).",null,"No ",null,"Equipo de cómputo ",null,null,null,null,"Acreditar la identidaddel representante legal o apoderado del responsable, en su caso. ","No","V","NA","Dirección de Facilitación del Sector Privado","Dar trámite a la solicitud y coadyuvar en la elaboarción de la propuesta de proyecto de determinación. ",null,null,null,"Instituto Nacional Electoral","Para acreditar identidad","No","70, II","NA","No ","66, fracción I"]
["Por transferencia ",null,null,null,null,"Segundo apellido de persona física (titular de los datos personales, representante, tercero interesado, promovente, persona autorizada para recibir notificaciones, entre otros).",null,"No ",null,"Archivo de concentración ",null,null,null,null,"Generar estadísticas e informes sobre las solicitudes de autorización de medidas compensatorias. ","No","V","NA","Subdirección de Facilitación del Sector Privado","Dar trámite a la solicitud y coadyuvar en la elaboarción de la propuesta de proyecto de determinación. ",null,null,null,"Organismos garantes de las entidades federativas","Para envío de invitaciones a sus eventos e información general","Sí","NA","Tácito","Sí","NA"]
["Fuente de acceso público ",null,null,null,null,"Datos personales contenidos en la identificación oficial presentada por la persona física",null,"No ",null,"Otros (especificar en columna siguiente).","En esta fila tendría que especificarse el otro medio. ",null,null,null,"Enviar invitaciones a eventos del INAI.","Sí","NA","Tácito","Jefatura de Departamento de Facilitación del Sector Privado ","Dar trámite a la solicitud y coadyuvar en la elaboarción de la propuesta de proyecto de determinación. "]
["Otro (especifique en la columna siguiente)","En este reglón se tendría que describir el otro medio. ",null,null,null,"Datos personales contenidos en documento para acreditar personalidad del representante",null,"No ",null,null,null,null,null,null,null,null,null,null,"Subdirección de Control y Conservación de Archivo Institucional ","Administrar el archivo de concentración del INAI. "]
[null,null,null,null,null,"Datos personales contenidos en la descripción del trámite a realizar o solicitud de derecho a ejercer.",null,"No "]
[null,null,null,null,null,"Domicilio",null,"No "]
[null,null,null,null,null,"Correo electrónico",null,"No "]
[null,null,null,null,null,"Circunstancias socioeconómicas",null,"Sí "]
[null,null,null,null,null,"Firma",null,"No "]
[null,null,null,null,null,"Otro, especificar en la columna siguiente","En esta fila hay que indicar el otro dato.","Sí "]

{"sheet":"Plantilla","index":5,"n_rows":727,"n_cols":8,"rows_kept":727,"cut":false,"hidden":true,"merged":[]}
[]
["Área de Adscripción","Área de Adscripción","UA","Unidad","Categoría","Puesto","NOMBRE","Puesto-nombre-ponencia"]
["1Presidencia","C.FJALL",{"$f":"MID(D3,1,3)","v":"107"},10700000,"Comisionado","Comisionado Presidente Francisco Javier Acuña Llamas","Francisco Javier Acuña Llamas",{"$f":"CONCATENATE(F3,\" \",G3,\" \",\"[\",B3,\"]\")","v":"Comisionado Presidente Francisco Javier Acuña Llamas Francisco Javier Acuña Llamas [C.FJALL]"}]
["1Presidencia","C.FJALL","107",10700010,"Secretario de Ponencia","Secretaría Particular","Rubén Trujillo Montes De Oca","Secretaría Particular Rubén Trujillo Montes De Oca [C.FJALL]"]
["1Presidencia","C.FJALL","107",10700020,"Secretaria","Secretaria","Susana Flores Colmenero","Secretaria Susana Flores Colmenero [C.FJALL]"]
["1Presidencia","C.FJALL","107",10700030,"Chofer","Chofer","Manuel Canelo Soto","Chofer Manuel Canelo Soto [C.FJALL]"]
["1Presidencia","C.FJALL","107",10710000,"Secretario de Ponencia","Secretaría de Acuerdos y Ponencia de Acceso a la Información","Carlos Alberto García Robledo","Secretaría de Acuerdos y Ponencia de Acceso a la Información Carlos Alberto García Robledo [C.FJALL]"]
["1Presidencia","C.FJALL","107",10711000,"Subdirector de Área","Subdirección de Resoluciones de Acceso a la Información A","Lorena Martínez González","Subdirección de Resoluciones de Acceso a la Información A Lorena Martínez González [C.FJALL]"]
["1Presidencia","C.FJALL","107",10711100,"Jefe de Departamento/Consultor/Auditor","Departamento de Análisis de Acceso a la Información A","José Alfredo Fernández García","Departamento de Análisis de Acceso a la Información A José Alfredo Fernández García [C.FJALL]"]
["1Presidencia","C.FJALL","107",10711110,"Enlace/Proyectista","Proyectista de Acceso a la Información A","Ismael Jafet Luna Ulloa","Proyectista de Acceso a la Información A Ismael Jafet Luna Ulloa [C.FJALL]"]
["1Presidencia","C.FJALL","107",10711120,"Enlace/Proyectista","Proyectista de Acceso a la Información B","Beatriz Rivera García","Proyectista de Acceso a la Información B Beatriz Rivera García [C.FJALL]"]
["1Presidencia","C.FJALL","107",10712000,"Subdirector de Área","Subdirección de Resoluciones de Acceso a la Información B","Armando Tadeo Terán Ongay","Subdirección de Resoluciones de Acceso a la Información B Armando Tadeo Terán Ongay [C.FJALL]"]
["1Presidencia","C.FJALL","107",10712100,"Jefe de Departamento/Consultor/Auditor","Departamento de Análisis de Acceso a la Información B","Arturo Adán Muñoz García","Departamento de Análisis de Acceso a la Información B Arturo Adán Muñoz García [C.FJALL]"]
["1Presidencia","C.FJALL","107",10712110,"Enlace/Proyectista","Proyectista de Acceso a la Información C","Karen Nayelli Muñiz Rebolledo","Proyectista de Acceso a la Información C Karen Nayelli Muñiz Rebolledo [C.FJALL]"]
["1Presidencia","C.FJALL","107",10712120,"Enlace/Proyectista","Proyectista de Acceso a la Información D","Saúl Manuel Camarillo Delgado","Proyectista de Acceso a la Información D Saúl Manuel Camarillo Delgado [C.FJALL]"]
["1Presidencia","C.FJALL","107",10720000,"Secretario de Ponencia","Secretaría de Acuerdos y Ponencia de Datos Personales","Nancy Pérez Guzmán","Secretaría de Acuerdos y Ponencia de Datos Personales Nancy Pérez Guzmán [C.FJALL]"]
["1Presidencia","C.FJALL","107",10721000,"Subdirector de Área","Subdirección de Resoluciones de Protección de Datos","Iván Emmanuel Sánchez Morales","Subdirección de Resoluciones de Protección de Datos Iván Emmanuel Sánchez Morales [C.FJALL]"]
["1Presidencia","C.FJALL","107",10721100,"Jefe de Departamento/Consultor/Auditor","Departamento de Análisis de Protección de Datos A","Juan Carlos Herrera Arvizu","Departamento de Análisis de Protección de Datos A Juan Carlos Herrera Arvizu [C.FJALL]"]
["1Presidencia","C.FJALL","107",10721110,"Enlace/Proyectista","Proyectista de Protección de Datos A","Janet Ana Silvia Juárez Espinosa","Proyectista de Protección de Datos A Janet Ana Silvia Juárez Espinosa [C.FJALL]"]
["1Presidencia","C.FJALL","107",10721200,"Jefe de Departamento/Consultor/Auditor","Departamento de Análisis de Protección de Datos B","Carlos Josué Ochoa Medina","Departamento de Análisis de Protección de Datos B Carlos Josué Ochoa Medina [C.FJALL]"]
["1Presidencia","C.FJALL","107",10721210,"Enlace/Proyectista","Proyectista de Protección de Datos B","Mario Mendoza Chalico","Proyectista de Protección de Datos B Mario Mendoza Chalico [C.FJALL]"]
["1Presidencia","C.FJALL","107",10730000,"Director General/Jefe de Ponencia/Contralor","Jefe de Ponencia","Ulises Ramírez Gallardo","Jefe de Ponencia Ulises Ramírez Gallardo [C.FJALL]"]
["1Presidencia","C.FJALL","107",10731000,"Subdirector de Área","Subdirección de Análisis y Estudios de Ponencia","Jennifer Dornbierer Hogan","Subdirección de Análisis y Estudios de Ponencia Jennifer Dornbierer Hogan [C.FJALL]"]
["1Presidencia","C.FJALL","107",10731100,"Jefe de Departamento/Consultor/Auditor","Departamento de Análisis y Estudios de Ponencia A","Álvaro Porras Vivas","Departamento de Análisis y Estudios de Ponencia A Álvaro Porras Vivas [C.FJALL]"]
["1Presidencia","C.FJALL","107",10731110,"Enlace/Proyectista","Enlace de Ponencia A","Aurora Acevedo Padua","Enlace de Ponencia A Aurora Acevedo Padua [C.FJALL]"]
["1Presidencia","C.FJALL","107",10731120,"Enlace/Proyectista","Enlace de Ponencia B","Ariadna Piñera Camacho","Enlace de Ponencia B Ariadna Piñera Camacho [C.FJALL]"]
["1Presidencia","C.FJALL","107",10731200,"Jefe de Departamento/Consultor/Auditor","Departamento de Análisis y Estudios de Ponencia B","Ana Paulina González González","Departamento de Análisis y Estudios de Ponencia B Ana Paulina González González [C.FJALL]"]
["1Presidencia","C.FJALL","107",10731210,"Enlace/Proyectista","Enlace de Ponencia C","Manuel de Jesús Medina Gómez","Enlace de Ponencia C Manuel de Jesús Medina Gómez [C.FJALL]"]
["2Oficina de la Comisionada ACG","C.ACG","106",10600000,"Comisionado","Comisionada Areli Cano Guadiana","Areli Cano Guadiana","Comisionada Areli Cano Guadiana Areli Cano Guadiana [C.ACG]"]
["2Oficina de la Comisionada ACG","C.ACG","106",10600010,"Secretario de Ponencia","Secretaría Particular","Víctor Manuel García Cruz","Secretaría Particular Víctor Manuel García Cruz [C.ACG]"]
["2Oficina de la Comisionada ACG","C.ACG","106",10600020,"Secretaria","Secretaria","María Eugenia Serrano Pessina","Secretaria María Eugenia Serrano Pessina [C.ACG]"]
["2Oficina de la Comisionada ACG","C.ACG","106",10600030,"Chofer","Chofer","Noel Camacho Sánchez","Chofer Noel Camacho Sánchez [C.ACG]"]
["2Oficina de la Comisionada ACG","C.ACG","106",10610000,"Secretario de Ponencia","Secretaría de Acuerdos y Ponencia de Acceso a la Información","Erika Daniela Montiel Monsalvo","Secretaría de Acuerdos y Ponencia de Acceso a la Información Erika Daniela Montiel Monsalvo [C.ACG]"]
["2Oficina de la Comisionada ACG","C.ACG","106",10611000,"Subdirector de Área","Subdirección de Resoluciones de Acceso a la Información A","Adriana Salazar González","Subdirección de Resoluciones de Acceso a la Información A Adriana Salazar González [C.ACG]"]
["2Oficina de la Comisionada ACG","C.ACG","106",10611100,"Jefe de Departamento/Consultor/Auditor","Departamento de Análisis de Acceso a la Información A","Daisy Gloria Santiago Durán","Departamento de Análisis de Acceso a la Información A Daisy Gloria Santiago Durán [C.ACG]"]
["2Oficina de la Comisionada ACG","C.ACG","106",10611110,"Enlace/Proyectista","Proyectista de Acceso a la Información A","Francisco Arael Ascención Terrones","Proyectista de Acceso a la Información A Francisco Arael Ascención Terrones [C.ACG]"]
["2Oficina de la Comisionada ACG","C.ACG","106",10611120,"Enlace/Proyectista","Proyectista de Acceso a la Información B","José Fernando Lobato Rodríguez","Proyectista de Acceso a la Información B José Fernando Lobato Rodríguez [C.ACG]"]
["2Oficina de la Comisionada ACG","C.ACG","106",10612000,"Subdirector de Área","Subdirección de Resoluciones de Acceso a la Información B","Berenice Fuentes Baez","Subdirección de Resoluciones de Acceso a la Información B Berenice Fuentes Baez [C.ACG]"]
["2Oficina de la Comisionada ACG","C.ACG","106",10612100,"Jefe de Departamento/Consultor/Auditor","Departamento de Análisis de Acceso a la Información B","Vanessa Venegas Cerezo","Departamento de Análisis de Acceso a la Información B Vanessa Venegas Cerezo [C.ACG]"]
["2Oficina de la Comisionada ACG","C.ACG","106",10612110,"Enlace/Proyectista","Proyectista de Acceso a la Información C","José Alberto Molina Olivares","Proyectista de Acceso a la Información C José Alberto Molina Olivares [C.ACG]"]
["2Oficina de la Comisionada ACG","C.ACG","106",10612120,"Enlace/Proyectista","Proyectista de Acceso a la Información D","Ángel Martín González González","Proyectista de Acceso a la Información D Ángel Martín González González [C.ACG]"]
["2Oficina de la Comisionada ACG","C.ACG","106",10620000,"Secretario de Ponencia","Secretaría de Acuerdos y Ponencia de Datos Personales","Luis Daniel Ávila Rojas","Secretaría de Acuerdos y Ponencia de Datos Personales Luis Daniel Ávila Rojas [C.ACG]"]
["2Oficina de la Comisionada ACG","C.ACG","106",10621000,"Subdirector de Área","Subdirección de Resoluciones de Protección de Datos","María del Pilar Benítez López","Subdirección de Resoluciones de Protección de Datos María del Pilar Benítez López [C.ACG]"]
["2Oficina de la Comisionada ACG","C.ACG","106",10621100,"Jefe de Departamento/Consultor/Auditor","Departamento de Análisis de Protección de Datos A","Karina Salgado Lunar","Departamento de Análisis de Protección de Datos A Karina Salgado Lunar [C.ACG]"]
["2Oficina de la Comisionada ACG","C.ACG","106",10621110,"Enlace/Proyectista","Proyectista de Protección de Datos A","Gabriela Burela Cruz","Proyectista de Protección de Datos A Gabriela Burela Cruz [C.ACG]"]
["2Oficina de la Comisionada ACG","C.ACG","106",10621200,"Jefe de Departamento/Consultor/Auditor","Departamento de Análisis de Protección de Datos B","Jaime Javier Bejarano Romero","Departamento de Análisis de Protección de Datos B Jaime Javier Bejarano Romero [C.ACG]"]
["2Oficina de la Comisionada ACG","C.ACG","106",10621210,"Enlace/Proyectista","Proyectista de Protección de Datos B","Álvaro Enrique Chávez García","Proyectista de Protección de Datos B Álvaro Enrique Chávez García [C.ACG]"]
["2Oficina de la Comisionada ACG","C.ACG","106",10630000,"Director General/Jefe de Ponencia/Contralor","Jefe de Ponencia","Ricardo Chincoya Zambrano","Jefe de Ponencia Ricardo Chincoya Zambrano [C.ACG]"]
["2Oficina de la Comisionada ACG","C.ACG","106",10631000,"Subdirector de Área","Subdirección de Análisis y Estudios de Ponencia","Luis Herrera Leos","Subdirección de Análisis y Estudios de Ponencia Luis Herrera Leos [C.ACG]"]
["2Oficina de la Comisionada ACG","C.ACG","106",10631100,"Jefe de Departamento/Consultor/Auditor","Departamento de Análisis y Estudios de Ponencia A","Jorge Max Roldán Tena","Departamento de Análisis y Estudios de Ponencia A Jorge Max Roldán Tena [C.ACG]"]
["2Oficina de la Comisionada ACG","C.ACG","106",10631110,"Enlace/Proyectista","Enlace de Ponencia A","Angélica Nallely Reyes Cervantes","Enlace de Ponencia A Angélica Nallely Reyes Cervantes [C.ACG]"]
["2Oficina de la Comisionada ACG","C.ACG","106",10631120,"Enlace/Proyectista","Enlace de Ponencia B","Rosalinda Coria Mosqueda","Enlace de Ponencia B Rosalinda Coria Mosqueda [C.ACG]"]
["2Oficina de la Comisionada ACG","C.ACG","106",10631200,"Jefe de Departamento/Consultor/Auditor","Departamento de Análisis y Estudios de Ponencia B","Marco Antonio Soto Caballero","Departamento de Análisis y Estudios de Ponencia B Marco Antonio Soto Caballero [C.ACG]"]
["2Oficina de la Comisionada ACG","C.ACG","106",10631210,"Enlace/Proyectista","Enlace de Ponencia C","Sergio Gerardo Ramírez Caloca","Enlace de Ponencia C Sergio Gerardo Ramírez Caloca [C.ACG]"]
["3Oficina del Comisionado OMGF","C.OMGF","103",10300000,"Comisionado","Comisionado Oscar Mauricio Guerra Ford","Oscar Mauricio Guerra Ford","Comisionado Oscar Mauricio Guerra Ford Oscar Mauricio Guerra Ford [C.OMGF]"]
["3Oficina del Comisionado OMGF","C.OMGF","103",10300010,"Secretario de Ponencia","Secretaría Particular","Jorge Barrera Reyes","Secretaría Particular Jorge Barrera Reyes [C.OMGF]"]
["3Oficina del Comisionado OMGF","C.OMGF","103",10300020,"Secretaria","Secretaria","Teresa Martínez Montoya","Secretaria Teresa Martínez Montoya [C.OMGF]"]
["3Oficina del Comisionado OMGF","C.OMGF","103",10300030,"Chofer","Chofer","José Gabino Navarro Ventura","Chofer José Gabino Navarro Ventura [C.OMGF]"]
["3Oficina del Comisionado OMGF","C.OMGF","103",10310000,"Secretario de Ponencia","Secretaría de Acuerdos y Ponencia de Acceso a la Información","Omar Cortés Rojas","Secretaría de Acuerdos y Ponencia de Acceso a la Información Omar Cortés Rojas [C.OMGF]"]
["3Oficina del Comisionado OMGF","C.OMGF","103",10311000,"Subdirector de Área","Subdirección de Resoluciones de Acceso a la Información A","Julio Chincoya Zambrano","Subdirección de Resoluciones de Acceso a la Información A Julio Chincoya Zambrano [C.OMGF]"]
["3Oficina del Comisionado OMGF","C.OMGF","103",10311100,"Jefe de Departamento/Consultor/Auditor","Departamento de Análisis de Acceso a la Información A","Rogelio García Álvarez","Departamento de Análisis de Acceso a la Información A Rogelio García Álvarez [C.OMGF]"]
["3Oficina del Comisionado OMGF","C.OMGF","103",10311110,"Enlace/Proyectista","Proyectista de Acceso a la Información A","Erika Priscyla Casas Carvallo","Proyectista de Acceso a la Información A Erika Priscyla Casas Carvallo [C.OMGF]"]
["3Oficina del Comisionado OMGF","C.OMGF","103",10311120,"Enlace/Proyectista","Proyectista de Acceso a la Información B","Maribel Ruiz López","Proyectista de Acceso a la Información B Maribel Ruiz López [C.OMGF]"]
["3Oficina del Comisionado OMGF","C.OMGF","103",10312000,"Subdirector de Área","Subdirección de Resoluciones de Acceso a la Información B","Xunahxi Viniza Pineda Cruz","Subdirección de Resoluciones de Acceso a la Información B Xunahxi Viniza Pineda Cruz [C.OMGF]"]
["3Oficina del Comisionado OMGF","C.OMGF","103",10312100,"Jefe de Departamento/Consultor/Auditor","Departamento de Análisis de Acceso a la Información B","Carlos Apolineo Juárez","Departamento de Análisis de Acceso a la Información B Carlos Apolineo Juárez [C.OMGF]"]
["3Oficina del Comisionado OMGF","C.OMGF","103",10312110,"Enlace/Proyectista","Proyectista de Acceso a la Información C","Nilton Jair Flores Escobar","Proyectista de Acceso a la Información C Nilton Jair Flores Escobar [C.OMGF]"]
["3Oficina del Comisionado OMGF","C.OMGF",{"$f":"MID(D67,1,3)","v":"103"},10312120,"Enlace/Proyectista","Proyectista de Acceso a la Información D","Sergio Escoto Prado",{"$f":"CONCATENATE(F67,\" \",G67,\" \",\"[\",B67,\"]\")","v":"Proyectista de Acceso a la Información D Sergio Escoto Prado [C.OMGF]"}]
["3Oficina del Comisionado OMGF","C.OMGF","103",10320000,"Secretario de Ponencia","Secretaría de Acuerdos y Ponencia de Datos Personales","Gabriela Inés Montes Márquez","Secretaría de Acuerdos y Ponencia de Datos Personales Gabriela Inés Montes Márquez [C.OMGF]"]
["3Oficina del Comisionado OMGF","C.OMGF","103",10321000,"Subdirector de Área","Subdirección de Resoluciones de Protección de Datos","María Guadalupe Rodríguez Morales","Subdirección de Resoluciones de Protección de Datos María Guadalupe Rodríguez Morales [C.OMGF]"]
["3Oficina del Comisionado OMGF","C.OMGF","103",10321100,"Jefe de Departamento/Consultor/Auditor","Departamento de Análisis de Protección de Datos A","Sandra Robles Carrasco","Departamento de Análisis de Protección de Datos A Sandra Robles Carrasco [C.OMGF]"]
["3Oficina del Comisionado OMGF","C.OMGF","103",10321110,"Enlace/Proyectista","Proyectista de Protección de Datos A","Jaime Enrique López Muñoz","Proyectista de Protección de Datos A Jaime Enrique López Muñoz [C.OMGF]"]
["3Oficina del Comisionado OMGF","C.OMGF","103",10321200,"Jefe de Departamento/Consultor/Auditor","Departamento de Análisis de Protección de Datos B","José Fermín Aguilar Mandujano","Departamento de Análisis de Protección de Datos B José Fermín Aguilar Mandujano [C.OMGF]"]
["3Oficina del Comisionado OMGF","C.OMGF","103",10321210,"Enlace/Proyectista","Proyectista de Protección de Datos B","Fabián Corona Vázquez","Proyectista de Protección de Datos B Fabián Corona Vázquez [C.OMGF]"]
["3Oficina del Comisionado OMGF","C.OMGF","103",10330000,"Director General/Jefe de Ponencia/Contralor","Jefe de Ponencia","Daniel Atalo Navarro Ramírez","Jefe de Ponencia Daniel Atalo Navarro Ramírez [C.OMGF]"]
["3Oficina del Comisionado OMGF","C.OMGF","103",10331000,"Subdirector de Área","Subdirección de Análisis y Estudios de Ponencia","Diego Ernesto Díaz Iturbe","Subdirección de Análisis y Estudios de Ponencia Diego Ernesto Díaz Iturbe [C.OMGF]"]
["3Oficina del Comisionado OMGF","C.OMGF","103",10331100,"Jefe de Departamento/Consultor/Auditor","Departamento de Análisis y Estudios de Ponencia A","Alejandro Antonio Pérez Martínez","Departamento de Análisis y Estudios de Ponencia A Alejandro Antonio Pérez Martínez [C.OMGF]"]
["3Oficina del Comisionado OMGF","C.OMGF","103",10331110,"Enlace/Proyectista","Enlace de Ponencia A","Fredy Heriberto Martínez González","Enlace de Ponencia A Fredy Heriberto Martínez González [C.OMGF]"]
["3Oficina del Comisionado OMGF","C.OMGF","103",10331120,"Enlace/Proyectista","Enlace de Ponencia B","Jorge Isabel Hernández Carbajal","Enlace de Ponencia B Jorge Isabel Hernández Carbajal [C.OMGF]"]
["3Oficina del Comisionado OMGF","C.OMGF","103",10331200,"Jefe de Departamento/Consultor/Auditor","Departamento de Análisis y Estudios de Ponencia B","David Mendoza Oliva","Departamento de Análisis y Estudios de Ponencia B David Mendoza Oliva [C.OMGF]"]
["3Oficina del Comisionado OMGF","C.OMGF","103",10331210,"Enlace/Proyectista","Enlace de Ponencia C","Ana Laura Goldner Martínez","Enlace de Ponencia C Ana Laura Goldner Martínez [C.OMGF]"]
["4Oficina de la Comisionada MPKV","C.MPKV","102",10200000,"Comisionado","Comisionada María Patricia Kurczyn Villalobos","María Patricia Kurczyn Villalobos","Comisionada María Patricia Kurczyn Villalobos María Patricia Kurczyn Villalobos [C.MPKV]"]
["4Oficina de la Comisionada MPKV","C.MPKV","102",10200010,"Secretario de Ponencia","Secretaría Particular","Alma Clarisa Rico Díaz","Secretaría Particular Alma Clarisa Rico Díaz [C.MPKV]"]
["4Oficina de la Comisionada MPKV","C.MPKV","102",10200020,"Secretaria","Secretaria","María Virginia Rivera Vázquez","Secretaria María Virginia Rivera Vázquez [C.MPKV]"]
["4Oficina de la Comisionada MPKV","C.MPKV","102",10200030,"Chofer","Chofer","José Luis Osorio Álvarez","Chofer José Luis Osorio Álvarez [C.MPKV]"]
["4Oficina de la Comisionada MPKV","C.MPKV","102",10210000,"Secretario de Ponencia","Secretaría de Acuerdos y Ponencia de Acceso a la Información","Nayeli Aguayo García","Secretaría de Acuerdos y Ponencia de Acceso a la Información Nayeli Aguayo García [C.MPKV]"]
["4Oficina de la Comisionada MPKV","C.MPKV","102",10211000,"Subdirector de Área","Subdirección de Resoluciones de Acceso a la Información A","Gustavo Montaño Álvarez","Subdirección de Resoluciones de Acceso a la Información A Gustavo Montaño Álvarez [C.MPKV]"]
["4Oficina de la Comisionada MPKV","C.MPKV","102",10211100,"Jefe de Departamento/Consultor/Auditor","Departamento de Análisis de Acceso a la Información A","Nancy Edith Gómez Cisneros","Departamento de Análisis de Acceso a la Información A Nancy Edith Gómez Cisneros [C.MPKV]"]
["4Oficina de la Comisionada MPKV","C.MPKV","102",10211110,"Enlace/Proyectista","Proyectista de Acceso a la Información A","Jonathan Aguilar Cano","Proyectista de Acceso a la Información A Jonathan Aguilar Cano [C.MPKV]"]
["4Oficina de la Comisionada MPKV","C.MPKV","102",10211120,"Enlace/Proyectista","Proyectista de Acceso a la Información B","Vacante","Proyectista de Acceso a la Información B Vacante [C.MPKV]"]
["4Oficina de la Comisionada MPKV","C.MPKV","102",10212000,"Subdirector de Área","Subdirección de Resoluciones de Acceso a la Información B","José Joaquín Piña Mondragón","Subdirección de Resoluciones de Acceso a la Información B José Joaquín Piña Mondragón [C.MPKV]"]
["4Oficina de la Comisionada MPKV","C.MPKV","102",10212100,"Jefe de Departamento/Consultor/Auditor","Departamento de Análisis de Acceso a la Información B","María Luisa Jiménez Paoletti","Departamento de Análisis de Acceso a la Información B María Luisa Jiménez Paoletti [C.MPKV]"]
["4Oficina de la Comisionada MPKV","C.MPKV","102",10212110,"Enlace/Proyectista","Proyectista de Acceso a la Información C","María Isabel Ramírez Paniagua","Proyectista de Acceso a la Información C María Isabel Ramírez Paniagua [C.MPKV]"]
["4Oficina de la Comisionada MPKV","C.MPKV","102",10212120,"Enlace/Proyectista","Proyectista de Acceso a la Información D","José Alfonso Aparicio Velázquez","Proyectista de Acceso a la Información D José Alfonso Aparicio Velázquez [C.MPKV]"]
["4Oficina de la Comisionada MPKV","C.MPKV","102",10220000,"Secretario de Ponencia","Secretaría de Acuerdos y Ponencia de Datos Personales","Oscar Jovanny Zavala Gamboa","Secretaría de Acuerdos y Ponencia de Datos Personales Oscar Jovanny Zavala Gamboa [C.MPKV]"]
["4Oficina de la Comisionada MPKV","C.MPKV","102",10221000,"Subdirector de Área","Subdirección de Resoluciones de Protección de Datos","Daniela Balderas Martínez","Subdirección de Resoluciones de Protección de Datos Daniela Balderas Martínez [C.MPKV]"]
["4Oficina de la Comisionada MPKV","C.MPKV","102",10221100,"Jefe de Departamento/Consultor/Auditor","Departamento de Análisis de Protección de Datos A","Yoloxochitl Díaz Maldonado","Departamento de Análisis de Protección de Datos A Yoloxochitl Díaz Maldonado [C.MPKV]"]
["4Oficina de la Comisionada MPKV","C.MPKV","102",10221110,"Enlace/Proyectista","Proyectista de Protección de Datos A","Nitzia Grisel Gutiérrez Solano","Proyectista de Protección de Datos A Nitzia Grisel Gutiérrez Solano [C.MPKV]"]
["4Oficina de la Comisionada MPKV","C.MPKV","102",10221200,"Jefe de Departamento/Consultor/Auditor","Departamento de Análisis de Protección de Datos B","Axel Irving Sosa Cuellar","Departamento de Análisis de Protección de Datos B Axel Irving Sosa Cuellar [C.MPKV]"]
["4Oficina de la Comisionada MPKV","C.MPKV","102",10221210,"Enlace/Proyectista","Proyectista de Protección de Datos B","Jessica Velázquez Juárez","Proyectista de Protección de Datos B Jessica Velázquez Juárez [C.MPKV]"]
["4Oficina de la Comisionada MPKV","C.MPKV","102",10230000,"Director General/Jefe de Ponencia/Contralor","Jefe de Ponencia","Joana Verenice Páez Patrón","Jefe de Ponencia Joana Verenice Páez Patrón [C.MPKV]"]
["4Oficina de la Comisionada MPKV","C.MPKV","102",10231000,"Subdirector de Área","Subdirección de Análisis y Estudios de Ponencia","Gloria del Mar Cilia Luna","Subdirección de Análisis y Estudios de Ponencia Gloria del Mar Cilia Luna [C.MPKV]"]
["4Oficina de la Comisionada MPKV","C.MPKV","102",10231100,"Jefe de Departamento/Consultor/Auditor","Departamento de Análisis y Estudios de Ponencia A","Ana Gabriela Rosales Tolentino","Departamento de Análisis y Estudios de Ponencia A Ana Gabriela Rosales Tolentino [C.MPKV]"]
["4Oficina de la Comisionada MPKV","C.MPKV","102",10231110,"Enlace/Proyectista","Enlace de Ponencia A","Montserrat Sánchez Murillo","Enlace de Ponencia A Montserrat Sánchez Murillo [C.MPKV]"]
["4Oficina de la Comisionada MPKV","C.MPKV","102",10231120,"Enlace/Proyectista","Enlace de Ponencia B","Jesús Enrique Lagunes De la Cuesta","Enlace de Ponencia B Jesús Enrique Lagunes De la Cuesta [C.MPKV]"]
["4Oficina de la Comisionada MPKV","C.MPKV","102",10231200,"Jefe de Departamento/Consultor/Auditor","Departamento de Análisis y Estudios de Ponencia B","Yoatzin Álvarez Rodríguez","Departamento de Análisis y Estudios de Ponencia B Yoatzin Álvarez Rodríguez [C.MPKV]"]
["4Oficina de la Comisionada MPKV","C.MPKV","102",10231210,"Enlace/Proyectista","Enlace de Ponencia C","Alejandra Cecilia Granados Barrera","Enlace de Ponencia C Alejandra Cecilia Granados Barrera [C.MPKV]"]
["5Oficina del Comisionado RMC","C.RMC","104",10400000,"Comisionado","Comisionado Rosendoevgueni Monterrey Chepov","Rosendoevgueni Monterrey Chepov","Comisionado Rosendoevgueni Monterrey Chepov Rosendoevgueni Monterrey Chepov [C.RMC]"]
["5Oficina del Comisionado RMC","C.RMC","104",10400010,"Secretario de Ponencia","Secretaría Particular","Irlaene Alaciel Galván Ponce","Secretaría Particular Irlaene Alaciel Galván Ponce [C.RMC]"]
["5Oficina del Comisionado RMC","C.RMC","104",10400020,"Secretaria","Secretaria","Beatriz Carreón Olvera","Secretaria Beatriz Carreón Olvera [C.RMC]"]
["5Oficina del Comisionado RMC","C.RMC","104",10400030,"Chofer","Chofer","Miguel Ortíz Hernández","Chofer Miguel Ortíz Hernández [C.RMC]"]
["5Oficina del Comisionado RMC","C.RMC","104",10410000,"Secretario de Ponencia","Secretaría de Acuerdos y Ponencia de Acceso a la Información","Yolanda Victoria Vicencio Gómez","Secretaría de Acuerdos y Ponencia de Acceso a la Información Yolanda Victoria Vicencio Gómez [C.RMC]"]
["5Oficina del Comisionado RMC","C.RMC","104",10411000,"Subdirector de Área","Subdirección de Resoluciones de Acceso a la Información A","César Villanueva Esquivel","Subdirección de Resoluciones de Acceso a la Información A César Villanueva Esquivel [C.RMC]"]
["5Oficina del Comisionado RMC","C.RMC","104",10411100,"Jefe de Departamento/Consultor/Auditor","Departamento de Análisis de Acceso a la Información A","Vacante","Departamento de Análisis de Acceso a la Información A Vacante [C.RMC]"]
["5Oficina del Comisionado RMC","C.RMC","104",10411110,"Enlace/Proyectista","Proyectista de Acceso a la Información A","Vacante","Proyectista de Acceso a la Información A Vacante [C.RMC]"]
["5Oficina del Comisionado RMC","C.RMC","104",10411120,"Enlace/Proyectista","Proyectista de Acceso a la Información B","Ángela Sofía González Valencia","Proyectista de Acceso a la Información B Ángela Sofía González Valencia [C.RMC]"]
["5Oficina del Comisionado RMC","C.RMC","104",10412000,"Subdirector de Área","Subdirección de Resoluciones de Acceso a la Información B","César Fernández González ","Subdirección de Resoluciones de Acceso a la Información B César Fernández González  [C.RMC]"]
["5Oficina del Comisionado RMC","C.RMC","104",10412100,"Jefe de Departamento/Consultor/Auditor","Departamento de Análisis de Acceso a la Información B","Ludwing  Salas  Cisneros","Departamento de Análisis de Acceso a la Información B Ludwing  Salas  Cisneros [C.RMC]"]
["5Oficina del Comisionado RMC","C.RMC","104",10412110,"Enlace/Proyectista","Proyectista de Acceso a la Información C","Yair Adoniyya Loaeza Martínez","Proyectista de Acceso a la Información C Yair Adoniyya Loaeza Martínez [C.RMC]"]
["5Oficina del Comisionado RMC","C.RMC","104",10412120,"Enlace/Proyectista","Proyectista de Acceso a la Información D","Juana Doranelly García Rey","Proyectista de Acceso a la Información D Juana Doranelly García Rey [C.RMC]"]
["5Oficina del Comisionado RMC","C.RMC","104",10420000,"Secretario de Ponencia","Secretaría de Acuerdos y Ponencia de Datos Personales","Juan Carlos Carrasco Gutiérrez","Secretaría de Acuerdos y Ponencia de Datos Personales Juan Carlos Carrasco Gutiérrez [C.RMC]"]
["5Oficina del Comisionado RMC","C.RMC","104",10421000,"Subdirector de Área","Subdirección de Resoluciones de Protección de Datos","César Manuel Vallarta Paredes","Subdirección de Resoluciones de Protección de Datos César Manuel Vallarta Paredes [C.RMC]"]
["5Oficina del Comisionado RMC","C.RMC","104",10421100,"Jefe de Departamento/Consultor/Auditor","Departamento de Análisis de Protección de Datos A","Ana Paula Vásquez Galván ","Departamento de Análisis de Protección de Datos A Ana Paula Vásquez Galván  [C.RMC]"]
["5Oficina del Comisionado RMC","C.RMC","104",10421110,"Enlace/Proyectista","Proyectista de Protección de Datos A","Cristian Hernández Ramírez","Proyectista de Protección de Datos A Cristian Hernández Ramírez [C.RMC]"]
["5Oficina del Comisionado RMC","C.RMC","104",10421200,"Jefe de Departamento/Consultor/Auditor","Departamento de Análisis de Protección de Datos B","Juan Alberto Alva Álvarez","Departamento de Análisis de Protección de Datos B Juan Alberto Alva Álvarez [C.RMC]"]
["5Oficina del Comisionado RMC","C.RMC","104",10421210,"Enlace/Proyectista","Proyectista de Protección de Datos B","Ivan Raymundo Saavedra Monsalvo","Proyectista de Protección de Datos B Ivan Raymundo Saavedra Monsalvo [C.RMC]"]
["5Oficina del Comisionado RMC","C.RMC","104",10430000,"Director General/Jefe de Ponencia/Contralor","Jefe de Ponencia","Carlos Alberto Pacheco Cabañas","Jefe de Ponencia Carlos Alberto Pacheco Cabañas [C.RMC]"]
["5Oficina del Comisionado RMC","C.RMC","104",10431000,"Subdirector de Área","Subdirección de Análisis y Estudios de Ponencia","Paul Christian Rodríguez Hernández","Subdirección de Análisis y Estudios de Ponencia Paul Christian Rodríguez Hernández [C.RMC]"]
["5Oficina del Comisionado RMC","C.RMC","104",10431100,"Jefe de Departamento/Consultor/Auditor","Departamento de Análisis y Estudios de Ponencia A","Miguel Ángel Alejo Olivares","Departamento de Análisis y Estudios de Ponencia A Miguel Ángel Alejo Olivares [C.RMC]"]
["5Oficina del Comisionado RMC","C.RMC","104",10431110,"Enlace/Proyectista","Enlace de Ponencia A","Sergio Rafael Cortés Alpizar","Enlace de Ponencia A Sergio Rafael Cortés Alpizar [C.RMC]"]
["5Oficina del Comisionado RMC","C.RMC","104",10431120,"Enlace/Proyectista","Enlace de Ponencia B","Víctor Manuel Ríos Sandoval","Enlace de Ponencia B Víctor Manuel Ríos Sandoval [C.RMC]"]
["5Oficina del Comisionado RMC","C.RMC",{"$f":"MID(D131,1,3)","v":"104"},10431200,"Jefe de Departamento/Consultor/Auditor","Departamento de Análisis y Estudios de Ponencia B","Edgar Loaeza Salmerón",{"$f":"CONCATENATE(F131,\" \",G131,\" \",\"[\",B131,\"]\")","v":"Departamento de Análisis y Estudios de Ponencia B Edgar Loaeza Salmerón [C.RMC]"}]
["5Oficina del Comisionado RMC","C.RMC","104",10431210,"Enlace/Proyectista","Enlace de Ponencia C","Martha Lorena Mendizabal López","Enlace de Ponencia C Martha Lorena Mendizabal López [C.RMC]"]
["6Oficina de la Comisionada XPM","C.XPM","101",10100000,"Comisionado","Comisionada","Ximena Puente De la Mora","Comisionada Ximena Puente De la Mora [C.XPM]"]
["6Oficina de la Comisionada XPM","C.XPM","101",10100010,"Secretario de Ponencia","Secretaría Particular","Elizabeth Vicenté González","Secretaría Particular Elizabeth Vicenté González [C.XPM]"]
["6Oficina de la Comisionada XPM","C.XPM","101",10100020,"Secretaria","Secretaria","Gabriela Alcántara Alcántara","Secretaria Gabriela Alcántara Alcántara [C.XPM]"]
["6Oficina de la Comisionada XPM","C.XPM","101",10100030,"Chofer","Chofer","Miguel Ángel Aragón Mata","Chofer Miguel Ángel Aragón Mata [C.XPM]"]
["6Oficina de la Comisionada XPM","C.XPM","101",10110000,"Secretario de Ponencia","Secretaría de Acuerdos y Ponencia de Acceso a la Información","Martha Judith Sánchez Álvarez","Secretaría de Acuerdos y Ponencia de Acceso a la Información Martha Judith Sánchez Álvarez [C.XPM]"]
["6Oficina de la Comisionada XPM","C.XPM","101",10111000,"Subdirector de Área","Subdirección de Resoluciones de Acceso a la Información A","Stephanie Heredia López","Subdirección de Resoluciones de Acceso a la Información A Stephanie Heredia López [C.XPM]"]
["6Oficina de la Comisionada XPM","C.XPM","101",10111100,"Jefe de Departamento/Consultor/Auditor","Departamento de Análisis de Acceso a la Información A","Juan Tadeo Ramírez Cervantes","Departamento de Análisis de Acceso a la Información A Juan Tadeo Ramírez Cervantes [C.XPM]"]
["6Oficina de la Comisionada XPM","C.XPM","101",10111110,"Enlace/Proyectista","Proyectista de Acceso a la Información A","Regino Eduardo Magaña Ceballos","Proyectista de Acceso a la Información A Regino Eduardo Magaña Ceballos [C.XPM]"]
["6Oficina de la Comisionada XPM","C.XPM","101",10111120,"Enlace/Proyectista","Proyectista de Acceso a la Información B","Leticia Ischell Camacho Marín","Proyectista de Acceso a la Información B Leticia Ischell Camacho Marín [C.XPM]"]
["6Oficina de la Comisionada XPM","C.XPM","101",10112000,"Subdirector de Área","Subdirección de Resoluciones de Acceso a la Información B","Amanda Judith Monter Gamiño","Subdirección de Resoluciones de Acceso a la Información B Amanda Judith Monter Gamiño [C.XPM]"]
["6Oficina de la Comisionada XPM","C.XPM","101",10112100,"Jefe de Departamento/Consultor/Auditor","Departamento de Análisis de Acceso a la Información B","Erika Alejandrina Tejada Aguilar","Departamento de Análisis de Acceso a la Información B Erika Alejandrina Tejada Aguilar [C.XPM]"]
["6Oficina de la Comisionada XPM","C.XPM","101",10112110,"Enlace/Proyectista","Proyectista de Acceso a la Información C","Ana Cecilia Velázquez Rodríguez","Proyectista de Acceso a la Información C Ana Cecilia Velázquez Rodríguez [C.XPM]"]
["6Oficina de la Comisionada XPM","C.XPM","101",10112120,"Enlace/Proyectista","Proyectista de Acceso a la Información D","Claudia Susana Cernas García","Proyectista de Acceso a la Información D Claudia Susana Cernas García [C.XPM]"]
["6Oficina de la Comisionada XPM","C.XPM","101",10120000,"Secretario de Ponencia","Secretaría de Acuerdos y Ponencia de Datos Personales","Haydee Samantha García  Camarena","Secretaría de Acuerdos y Ponencia de Datos Personales Haydee Samantha García  Camarena [C.XPM]"]
["6Oficina de la Comisionada XPM","C.XPM","101",10121000,"Subdirector de Área","Subdirección de Resoluciones de Protección de Datos","Elba Margarita Páramo Vázquez","Subdirección de Resoluciones de Protección de Datos Elba Margarita Páramo Vázquez [C.XPM]"]
["6Oficina de la Comisionada XPM","C.XPM","101",10121100,"Jefe de Departamento/Consultor/Auditor","Departamento de Análisis de Protección de Datos A","Irma Lorena García Mejía","Departamento de Análisis de Protección de Datos A Irma Lorena García Mejía [C.XPM]"]
["6Oficina de la Comisionada XPM","C.XPM","101",10121110,"Enlace/Proyectista","Proyectista de Protección de Datos A","Vacante","Proyectista de Protección de Datos A Vacante [C.XPM]"]
["6Oficina de la Comisionada XPM","C.XPM","101",10121200,"Jefe de Departamento/Consultor/Auditor","Departamento de Análisis de Protección de Datos B","Gregorio González Nava","Departamento de Análisis de Protección de Datos B Gregorio González Nava [C.XPM]"]
["6Oficina de la Comisionada XPM","C.XPM","101",10121210,"Enlace/Proyectista","Proyectista de Protección de Datos B","Johana Belén Sánchez Rojas","Proyectista de Protección de Datos B Johana Belén Sánchez Rojas [C.XPM]"]
["6Oficina de la Comisionada XPM","C.XPM","101",10130000,"Director General/Jefe de Ponencia/Contralor","Jefe de Ponencia","Laura Sofía Gómez Madrigal","Jefe de Ponencia Laura Sofía Gómez Madrigal [C.XPM]"]
["6Oficina de la Comisionada XPM","C.XPM","101",10131000,"Subdirector de Área","Subdirección de Análisis y Estudios de Ponencia","Diana García Treviño","Subdirección de Análisis y Estudios de Ponencia Diana García Treviño [C.XPM]"]
["6Oficina de la Comisionada XPM","C.XPM","101",10131100,"Jefe de Departamento/Consultor/Auditor","Departamento de Análisis y Estudios de Ponencia A","Elise Arely Aguilar Granados","Departamento de Análisis y Estudios de Ponencia A Elise Arely Aguilar Granados [C.XPM]"]
["6Oficina de la Comisionada XPM","C.XPM","101",10131110,"Enlace/Proyectista","Enlace de Ponencia A","Fermín Hildebrando García Leal","Enlace de Ponencia A Fermín Hildebrando García Leal [C.XPM]"]
["6Oficina de la Comisionada XPM","C.XPM","101",10131120,"Enlace/Proyectista","Enlace de Ponencia B","Guillermo Antonio León Cuevas","Enlace de Ponencia B Guillermo Antonio León Cuevas [C.XPM]"]
["6Oficina de la Comisionada XPM","C.XPM","101",10131200,"Jefe de Departamento/Consultor/Auditor","Departamento de Análisis y Estudios de Ponencia B","Nayeli Santacruz Valdovinos","Departamento de Análisis y Estudios de Ponencia B Nayeli Santacruz Valdovinos [C.XPM]"]
["6Oficina de la Comisionada XPM","C.XPM","101",10131210,"Enlace/Proyectista","Enlace de Ponencia C","Laura Mónica Segovia Téllez","Enlace de Ponencia C Laura Mónica Segovia Téllez [C.XPM]"]
["7Oficina del Comisionado JSS","C.JSS","105",10500000,"Comisionado","Comisionado Joel Salas Suárez","Joel Salas Suárez","Comisionado Joel Salas Suárez Joel Salas Suárez [C.JSS]"]
["7Oficina del Comisionado JSS","C.JSS","105",10500010,"Secretario de Ponencia","Secretaría Particular","Francisco Roberto Pérez Martínez","Secretaría Particular Francisco Roberto Pérez Martínez [C.JSS]"]
["7Oficina del Comisionado JSS","C.JSS","105",10500020,"Secretaria","Secretaria","Araceli Rosenda Palmer Morales","Secretaria Araceli Rosenda Palmer Morales [C.JSS]"]
["7Oficina del Comisionado JSS","C.JSS","105",10500030,"Chofer","Chofer","Miguel Ángel Rangel Lima","Chofer Miguel Ángel Rangel Lima [C.JSS]"]
["7Oficina del Comisionado JSS","C.JSS","105",10510000,"Secretario de Ponencia","Secretaría de Acuerdos y Ponencia de Acceso a la Información","Rafael Vásquez Martínez","Secretaría de Acuerdos y Ponencia de Acceso a la Información Rafael Vásquez Martínez [C.JSS]"]
["7Oficina del Comisionado JSS","C.JSS","105",10511000,"Subdirector de Área","Subdirección de Resoluciones de Acceso a la Información A","Félix Rodrigo Silva Moreno","Subdirección de Resoluciones de Acceso a la Información A Félix Rodrigo Silva Moreno [C.JSS]"]
["7Oficina del Comisionado JSS","C.JSS","105",10511100,"Jefe de Departamento/Consultor/Auditor","Departamento de Análisis de Acceso a la Información A","Néstor Daniel Mejía Soto","Departamento de Análisis de Acceso a la Información A Néstor Daniel Mejía Soto [C.JSS]"]
["7Oficina del Comisionado JSS","C.JSS","105",10511110,"Enlace/Proyectista","Proyectista de Acceso a la Información A","Ana Patricia Flores González","Proyectista de Acceso a la Información A Ana Patricia Flores González [C.JSS]"]
["7Oficina del Comisionado JSS","C.JSS","105",10511120,"Enlace/Proyectista","Proyectista de Acceso a la Información B","Lesly Alhelí Sandoval Ramírez","Proyectista de Acceso a la Información B Lesly Alhelí Sandoval Ramírez [C.JSS]"]
["7Oficina del Comisionado JSS","C.JSS","105",10512000,"Subdirector de Área","Subdirección de Resoluciones de Acceso a la Información B","Martha Patricia García Medina","Subdirección de Resoluciones de Acceso a la Información B Martha Patricia García Medina [C.JSS]"]
["7Oficina del Comisionado JSS","C.JSS","105",10512100,"Jefe de Departamento/Consultor/Auditor","Departamento de Análisis de Acceso a la Información B","Maxin Magali Sánchez Carreño","Departamento de Análisis de Acceso a la Información B Maxin Magali Sánchez Carreño [C.JSS]"]
["7Oficina del Comisionado JSS","C.JSS","105",10512110,"Enlace/Proyectista","Proyectista de Acceso a la Información C","Manuel Ángel Ivellez Adame","Proyectista de Acceso a la Información C Manuel Ángel Ivellez Adame [C.JSS]"]
["7Oficina del Comisionado JSS","C.JSS","105",10512120,"Enlace/Proyectista","Proyectista de Acceso a la Información D","Selene Sarai Serrano Vaca","Proyectista de Acceso a la Información D Selene Sarai Serrano Vaca [C.JSS]"]
["7Oficina del Comisionado JSS","C.JSS","105",10520000,"Secretario de Ponencia","Secretaría de Acuerdos y Ponencia de Datos Personales","Julio César Martínez Sanabria","Secretaría de Acuerdos y Ponencia de Datos Personales Julio César Martínez Sanabria [C.JSS]"]
["7Oficina del Comisionado JSS","C.JSS","105",10521000,"Subdirector de Área","Subdirección de Resoluciones de Protección de Datos","Salvador Espinosa Cortes","Subdirección de Resoluciones de Protección de Datos Salvador Espinosa Cortes [C.JSS]"]
["7Oficina del Comisionado JSS","C.JSS","105",10521100,"Jefe de Departamento/Consultor/Auditor","Departamento de Análisis de Protección de Datos A","Alejandra Donají Núñez Escobar","Departamento de Análisis de Protección de Datos A Alejandra Donají Núñez Escobar [C.JSS]"]
["7Oficina del Comisionado JSS","C.JSS","105",10521110,"Enlace/Proyectista","Proyectista de Protección de Datos A","Hugo Diaz Betancourt","Proyectista de Protección de Datos A Hugo Diaz Betancourt [C.JSS]"]
["7Oficina del Comisionado JSS","C.JSS","105",10521200,"Jefe de Departamento/Consultor/Auditor","Departamento de Análisis de Protección de Datos B","Stephanie Alexis Arregoytia Gutiérrez","Departamento de Análisis de Protección de Datos B Stephanie Alexis Arregoytia Gutiérrez [C.JSS]"]
["7Oficina del Comisionado JSS","C.JSS","105",10521210,"Enlace/Proyectista","Proyectista de Protección de Datos B","Diana Sánchez Ríos","Proyectista de Protección de Datos B Diana Sánchez Ríos [C.JSS]"]
["7Oficina del Comisionado JSS","C.JSS","105",10530000,"Director General/Jefe de Ponencia/Contralor","Jefe de Ponencia","Ana Mabel Ángel Romero","Jefe de Ponencia Ana Mabel Ángel Romero [C.JSS]"]
["7Oficina del Comisionado JSS","C.JSS","105",10531000,"Subdirector de Área","Subdirección de Análisis y Estudios de Ponencia","Claudia Huerta Chagoya","Subdirección de Análisis y Estudios de Ponencia Claudia Huerta Chagoya [C.JSS]"]
["7Oficina del Comisionado JSS","C.JSS","105",10531100,"Jefe de Departamento/Consultor/Auditor","Departamento de Análisis y Estudios de Ponencia A","Betsabé Abihail López Pacheco","Departamento de Análisis y Estudios de Ponencia A Betsabé Abihail López Pacheco [C.JSS]"]
["7Oficina del Comisionado JSS","C.JSS","105",10531110,"Enlace/Proyectista","Enlace de Ponencia A","Vacante","Enlace de Ponencia A Vacante [C.JSS]"]
["7Oficina del Comisionado JSS","C.JSS","105",10531120,"Enlace/Proyectista","Enlace de Ponencia B","Libia Arianna Santiago Ramírez","Enlace de Ponencia B Libia Arianna Santiago Ramírez [C.JSS]"]
["7Oficina del Comisionado JSS","C.JSS","105",10531200,"Jefe de Departamento/Consultor/Auditor","Departamento de Análisis y Estudios de Ponencia B","Sabel Antonio Sierra Mendoza","Departamento de Análisis y Estudios de Ponencia B Sabel Antonio Sierra Mendoza [C.JSS]"]
["7Oficina del Comisionado JSS","C.JSS","105",10531210,"Enlace/Proyectista","Enlace de Ponencia C","Alejandra Araceli Aguila Díaz","Enlace de Ponencia C Alejandra Araceli Aguila Díaz [C.JSS]"]
["Dirección General de Administración","DGA","210",21000000,"Director General/Jefe de Ponencia/Contralor","Dirección General de Administración","Héctor Fernando Ortega Padilla","Dirección General de Administración Héctor Fernando Ortega Padilla [DGA]"]
["Dirección General de Administración","DGA","210",21000001,"Auxiliar","Auxiliar Administrativo","Patricia Landeros Villela","Auxiliar Administrativo Patricia Landeros Villela [DGA]"]
["Dirección General de Administración","DGA","210",21000010,"Enlace","Enlace","Alejandro Olmos Domínguez","Enlace Alejandro Olmos Domínguez [DGA]"]
["Dirección General de Administración","DGA","211",21110000,"Director de Área","Dirección de Desarrollo Humano y Organizacional","María José de Albornoz Bueno","Dirección de Desarrollo Humano y Organizacional María José de Albornoz Bueno [DGA]"]
["Dirección General de Administración","DGA","211",21110100,"Jefe de Departamento/Consultor/Auditor","Departamento Médico","Raúl Loera Risueño","Departamento Médico Raúl Loera Risueño [DGA]"]
["Dirección General de Administración","DGA","211",21110110,"Enlace","Enfermería","Jesica Citlali Bermejo Mendoza","Enfermería Jesica Citlali Bermejo Mendoza [DGA]"]
["Dirección General de Administración","DGA","211",21111000,"Subdirector de Área","Subdirección de Control de Ingresos y Nómina","Pablo Ricardo Gama Ortiz","Subdirección de Control de Ingresos y Nómina Pablo Ricardo Gama Ortiz [DGA]"]
["Dirección General de Administración","DGA","211",21111100,"Jefe de Departamento/Consultor/Auditor","Departamento de Prestaciones y Servicios al Personal","Alberto Jiménez Morales","Departamento de Prestaciones y Servicios al Personal Alberto Jiménez Morales [DGA]"]
["Dirección General de Administración","DGA","211",21111200,"Jefe de Departamento/Consultor/Auditor","Departamento de Control de Ingresos y Nómina","María del Carmen Martínez Casasola","Departamento de Control de Ingresos y Nómina María del Carmen Martínez Casasola [DGA]"]
["Dirección General de Administración","DGA","211",21112000,"Subdirector de Área","Subdirección de Servicio Profesional","Julia Leonor Rodríguez López","Subdirección de Servicio Profesional Julia Leonor Rodríguez López [DGA]"]
["Dirección General de Administración","DGA",{"$f":"MID(D195,1,3)","v":"211"},21112001,"Auxiliar","Auxiliar Administrativo","Christian Israel Landeros Durán",{"$f":"CONCATENATE(F195,\" \",G195,\" \",\"[\",B195,\"]\")","v":"Auxiliar Administrativo Christian Israel Landeros Durán [DGA]"}]
["Dirección General de Administración","DGA","211",21112002,"Auxiliar","Auxiliar Administrativo","Sergio Eduardo Castillo Trejo","Auxiliar Administrativo Sergio Eduardo Castillo Trejo [DGA]"]
["Dirección General de Administración","DGA","211",21112010,"Enlace","Enlace","Carolina Frías Pérez","Enlace Carolina Frías Pérez [DGA]"]
["Dirección General de Administración","DGA","211",21112100,"Jefe de Departamento/Consultor/Auditor","Departamento de Selección de Personal","Carlos Alberto Flores Hernández ","Departamento de Selección de Personal Carlos Alberto Flores Hernández  [DGA]"]
["Dirección General de Administración","DGA","211",21112200,"Jefe de Departamento/Consultor/Auditor","Departamento de Servicio Profesional A","Ana Carolina Sánchez Roldán","Departamento de Servicio Profesional A Ana Carolina Sánchez Roldán [DGA]"]
["Dirección General de Administración","DGA","211",21112300,"Jefe de Departamento/Consultor/Auditor","Departamento de Servicio Profesional B","Bithia Castillo Sierra","Departamento de Servicio Profesional B Bithia Castillo Sierra [DGA]"]
["Dirección General de Administración","DGA","211",21112400,"Jefe de Departamento/Consultor/Auditor","Departamento de Servicio Profesional C","Lucía Vargas Soriano","Departamento de Servicio Profesional C Lucía Vargas Soriano [DGA]"]
["Dirección General de Administración","DGA","211",21113000,"Subdirector de Área","Subdirección de Desarrollo Organizacional","Vanessa Rosas González","Subdirección de Desarrollo Organizacional Vanessa Rosas González [DGA]"]
["Dirección General de Administración","DGA","211",21113100,"Jefe de Departamento/Consultor/Auditor","Departamento de Procesos y Procedimientos","Itzel Alicia Poblano Meléndez","Departamento de Procesos y Procedimientos Itzel Alicia Poblano Meléndez [DGA]"]
["Dirección General de Administración","DGA","212",21210000,"Director de Área","Dirección de Recursos Financieros","Margarita Montero Rojas","Dirección de Recursos Financieros Margarita Montero Rojas [DGA]"]
["Dirección General de Administración","DGA","212",21211000,"Subdirector de Área","Subdirección de Programación y Presupuesto","Arturo Bañuelas Gallardo","Subdirección de Programación y Presupuesto Arturo Bañuelas Gallardo [DGA]"]
["Dirección General de Administración","DGA","212",21211100,"Jefe de Departamento/Consultor/Auditor","Departamento de Control Presupuestal","Yesica Yazmin Severiano Gutiérrez","Departamento de Control Presupuestal Yesica Yazmin Severiano Gutiérrez [DGA]"]
["Dirección General de Administración","DGA","212",21212000,"Subdirector de Área","Subdirección de Tesorería y Contabilidad","Cesar Pineda Rojas ","Subdirección de Tesorería y Contabilidad Cesar Pineda Rojas  [DGA]"]
["Dirección General de Administración","DGA","212",21212010,"Enlace","Enlace","Luisa Arellano Reyes","Enlace Luisa Arellano Reyes [DGA]"]
["Dirección General de Administración","DGA","212",21212100,"Jefe de Departamento/Consultor/Auditor","Departamento de Contabilidad","Rogelio Aquino Baltazar","Departamento de Contabilidad Rogelio Aquino Baltazar [DGA]"]
["Dirección General de Administración","DGA","212",21212200,"Jefe de Departamento/Consultor/Auditor","Departamento de Tesorería","Julio César Cruz García","Departamento de Tesorería Julio César Cruz García [DGA]"]
["Dirección General de Administración","DGA","214",21410000,"Director de Área","Dirección de Recursos Materiales","Aniceto Alvarado González","Dirección de Recursos Materiales Aniceto Alvarado González [DGA]"]
["Dirección General de Administración","DGA","214",21411000,"Subdirector de Área","Subdirección de Adquisiciones y Control Patrimonial","Ibo Brito Brito","Subdirección de Adquisiciones y Control Patrimonial Ibo Brito Brito [DGA]"]
["Dirección General de Administración","DGA","214",21411010,"Enlace","Enlace","Anselmo Flores Balderas ","Enlace Anselmo Flores Balderas  [DGA]"]
["Dirección General de Administración","DGA","214",21411020,"Enlace","Enlace","Omar Javier Córdova Castañeda","Enlace Omar Javier Córdova Castañeda [DGA]"]
["Dirección General de Administración","DGA","214",21411030,"Enlace","Enlace","Ramón Navarro Pérez","Enlace Ramón Navarro Pérez [DGA]"]
["Dirección General de Administración","DGA","214",21411100,"Jefe de Departamento/Consultor/Auditor","Departamento de Contrataciones","Miriam Sulamita Saldivar Marquez ","Departamento de Contrataciones Miriam Sulamita Saldivar Marquez  [DGA]"]
["Dirección General de Administración","DGA","214",21412000,"Subdirector de Área","Subdirección de Servicios Generales","Fernando Hernández Flores","Subdirección de Servicios Generales Fernando Hernández Flores [DGA]"]
["Dirección General de Administración","DGA","214",21412010,"Enlace","Enlace","Carlos Roberto Sánchez Trejo ","Enlace Carlos Roberto Sánchez Trejo  [DGA]"]
["Dirección General de Administración","DGA","214",21412020,"Enlace","Enlace","Miguel Ángel Herrera Rodríguez","Enlace Miguel Ángel Herrera Rodríguez [DGA]"]
["Dirección General de Administración","DGA","214",21412030,"Enlace","Enlace","Alfredo Elías Limón Ortíz","Enlace Alfredo Elías Limón Ortíz [DGA]"]
["Dirección General de Administración","DGA","214",21412040,"Enlace","Enlace","Eliseo Díaz Herrera","Enlace Eliseo Díaz Herrera [DGA]"]
["Dirección General de Administración","DGA","214",21412050,"Enlace","Enlace","Ulises Marino Córdova Casique","Enlace Ulises Marino Córdova Casique [DGA]"]
["Dirección General de Administración","DGA","214",21412100,"Jefe de Departamento/Consultor/Auditor","Departamento de Mantenimiento","Eduardo Hernández Salinas","Departamento de Mantenimiento Eduardo Hernández Salinas [DGA]"]
["Dirección General de Administración","DGA","214",21412200,"Jefe de Departamento/Consultor/Auditor","Departamento de Control Patrimonial","Maclovio Melquiades Flores","Departamento de Control Patrimonial Maclovio Melquiades Flores [DGA]"]
["Dirección General de Administración","DGA","214",21413000,"Subdirector de Área","Subdirección de Control de Gestión e Información","Yenisei de Monserrat Contreras Del Toro","Subdirección de Control de Gestión e Información Yenisei de Monserrat Contreras Del Toro [DGA]"]
["Dirección General de Administración","DGA","214",21413010,"Enlace","Enlace","Dolores Claudia Ruiz González","Enlace Dolores Claudia Ruiz González [DGA]"]
["Dirección General de Administración","DGA","214",21413100,"Jefe de Departamento/Consultor/Auditor","Departamento de Control de Gestión","Margarita Gasca Cárdenas ","Departamento de Control de Gestión Margarita Gasca Cárdenas  [DGA]"]
["Dirección General de Asuntos Internacionales","DGAI","220",22000000,"Director General/Jefe de Ponencia/Contralor","Dirección General de Asuntos Internacionales","Joaquín Jaime González Casanova Fernández","Dirección General de Asuntos Internacionales Joaquín Jaime González Casanova Fernández [DGAI]"]
["Dirección General de Asuntos Internacionales","DGAI","220",22000001,"Auxiliar","Auxiliar Administrativo","Gloria Martínez Peñaloza","Auxiliar Administrativo Gloria Martínez Peñaloza [DGAI]"]
["Dirección General de Asuntos Internacionales","DGAI","220",22000010,"Enlace","Enlace","Sergio Ampudia Giorgana","Enlace Sergio Ampudia Giorgana [DGAI]"]
["Dirección General de Asuntos Internacionales","DGAI","220",22010000,"Director de Área","Dirección de Asuntos Internacionales de Datos","Felipe Lerins Cordero Godínez","Dirección de Asuntos Internacionales de Datos Felipe Lerins Cordero Godínez [DGAI]"]
["Dirección General de Asuntos Internacionales","DGAI","220",22011000,"Subdirector de Área","Subdirección de Asuntos Internacionales de Datos","Rosa Eugenia Méndez Ramírez","Subdirección de Asuntos Internacionales de Datos Rosa Eugenia Méndez Ramírez [DGAI]"]
["Dirección General de Asuntos Internacionales","DGAI","220",22011010,"Enlace","Enlace","Ismael Grimaldi Zamudio","Enlace Ismael Grimaldi Zamudio [DGAI]"]
["Dirección General de Asuntos Internacionales","DGAI","220",22011100,"Jefe de Departamento/Consultor/Auditor","Departamento de Asuntos Internacionales de Datos A","Jesús Javier Sánchez García","Departamento de Asuntos Internacionales de Datos A Jesús Javier Sánchez García [DGAI]"]
["Dirección General de Asuntos Internacionales","DGAI","220",22011200,"Jefe de Departamento/Consultor/Auditor","Departamento de Asuntos Internacionales de Datos B","Ana Martha Trueba de Buen","Departamento de Asuntos Internacionales de Datos B Ana Martha Trueba de Buen [DGAI]"]
["Dirección General de Asuntos Internacionales","DGAI","220",22020000,"Director de Área","Dirección de Asuntos Internacionales de Acceso","Lilián Irazú Hernández Ojeda","Dirección de Asuntos Internacionales de Acceso Lilián Irazú Hernández Ojeda [DGAI]"]
["Dirección General de Asuntos Internacionales","DGAI","220",22021000,"Subdirector de Área","Subdirección de Asuntos Internacionales de Acceso","María Andrea Alvarado León","Subdirección de Asuntos Internacionales de Acceso María Andrea Alvarado León [DGAI]"]
["Dirección General de Asuntos Internacionales","DGAI","220",22021100,"Jefe de Departamento/Consultor/Auditor","Departamento de Asuntos Internacionales de Acceso A","José Joel Peña Llanes","Departamento de Asuntos Internacionales de Acceso A José Joel Peña Llanes [DGAI]"]
["Dirección General de Asuntos Internacionales","DGAI","220",22021200,"Jefe de Departamento/Consultor/Auditor","Departamento de Asuntos Internacionales de Acceso B","Donnet Paulina Alarcón Romano","Departamento de Asuntos Internacionales de Acceso B Donnet Paulina Alarcón Romano [DGAI]"]
["Dirección General de Asuntos Jurídicos","DGAJ","160",16000000,"Director General/Jefe de Ponencia/Contralor","Dirección General de Asuntos Jurídicos","Pablo Francisco Muñoz Díaz","Dirección General de Asuntos Jurídicos Pablo Francisco Muñoz Díaz [DGAJ]"]
["Dirección General de Asuntos Jurídicos","DGAJ","160",16000001,"Auxiliar","Auxiliar Administrativo","Santiago Cepeda Rocha","Auxiliar Administrativo Santiago Cepeda Rocha [DGAJ]"]
["Dirección General de Asuntos Jurídicos","DGAJ","160",16000010,"Enlace ","Enlace","Alejandro Bouquet Rojas","Enlace Alejandro Bouquet Rojas [DGAJ]"]
["Dirección General de Asuntos Jurídicos","DGAJ","160",16010000,"Director de Área","Dirección de Gestión de la Unidad de Enlace","Alejandro Javier Achard Carretero","Dirección de Gestión de la Unidad de Enlace Alejandro Javier Achard Carretero [DGAJ]"]
["Dirección General de Asuntos Jurídicos","DGAJ","160",16011000,"Subdirector de Área","Subdirección de Integración y Cumplimiento","Juana de Jesús Santiago","Subdirección de Integración y Cumplimiento Juana de Jesús Santiago [DGAJ]"]
["Dirección General de Asuntos Jurídicos","DGAJ","160",16011100,"Jefe de Departamento/Consultor/Auditor","Departamento de Apoyo A","Pedro Israel Popoca Trujillo","Departamento de Apoyo A Pedro Israel Popoca Trujillo [DGAJ]"]
["Dirección General de Asuntos Jurídicos","DGAJ","160",16011200,"Jefe de Departamento/Consultor/Auditor","Departamento de Apoyo B","Erika Giles López","Departamento de Apoyo B Erika Giles López [DGAJ]"]
["Dirección General de Asuntos Jurídicos","DGAJ","160",16012000,"Subdirector de Área","Subdirección de Asesoría y Obligaciones","José Armando Sánchez Aguilar","Subdirección de Asesoría y Obligaciones José Armando Sánchez Aguilar [DGAJ]"]
["Dirección General de Asuntos Jurídicos","DGAJ","160",16012100,"Jefe de Departamento/Consultor/Auditor","Departamento de Apoyo A","Daniela Ponce Díaz González","Departamento de Apoyo A Daniela Ponce Díaz González [DGAJ]"]
["Dirección General de Asuntos Jurídicos","DGAJ","160",16020000,"Director de Área","Dirección de lo Consultivo","Oscar Gutiérrez Parada","Dirección de lo Consultivo Oscar Gutiérrez Parada [DGAJ]"]
["Dirección General de Asuntos Jurídicos","DGAJ","160",16021000,"Subdirector de Área","Subdirección de lo Consultivo","Carlos Iván Mendoza Álvarez","Subdirección de lo Consultivo Carlos Iván Mendoza Álvarez [DGAJ]"]
["Dirección General de Asuntos Jurídicos","DGAJ","160",16021100,"Jefe de Departamento/Consultor/Auditor","Departamento de lo Consultivo A","Omar Cruz Ibinarriaga","Departamento de lo Consultivo A Omar Cruz Ibinarriaga [DGAJ]"]
["Dirección General de Asuntos Jurídicos","DGAJ","160",16021200,"Jefe de Departamento/Consultor/Auditor","Departamento de lo Consultivo B","María Guadalupe Lobera Durán","Departamento de lo Consultivo B María Guadalupe Lobera Durán [DGAJ]"]
["Dirección General de Asuntos Jurídicos","DGAJ","160",16030000,"Director de Área","Dirección de lo Contencioso","Cinthya Lilian González Vera","Dirección de lo Contencioso Cinthya Lilian González Vera [DGAJ]"]
["Dirección General de Asuntos Jurídicos","DGAJ","160",16031000,"Subdirector de Área","Subdirección de lo Contencioso de Acceso","Lizeth Gabriela Rodríguez García","Subdirección de lo Contencioso de Acceso Lizeth Gabriela Rodríguez García [DGAJ]"]
["Dirección General de Asuntos Jurídicos","DGAJ","160",16031010,"Enlace","Enlace","Olga Jazmín Cardoso Pedroza","Enlace Olga Jazmín Cardoso Pedroza [DGAJ]"]
["Dirección General de Asuntos Jurídicos","DGAJ","160",16031100,"Jefe de Departamento/Consultor/Auditor","Departamento de lo Contencioso de Acceso","Ana Lilia Robles Juárez","Departamento de lo Contencioso de Acceso Ana Lilia Robles Juárez [DGAJ]"]
["Dirección General de Asuntos Jurídicos","DGAJ","160",16032000,"Subdirector de Área","Subdirección de lo Contencioso de Datos","Martín Torres Contreras","Subdirección de lo Contencioso de Datos Martín Torres Contreras [DGAJ]"]
["Dirección General de Asuntos Jurídicos","DGAJ","160",16032010,"Enlace","Enlace","Magali Rodríguez Ramos","Enlace Magali Rodríguez Ramos [DGAJ]"]
["Dirección General de Asuntos Jurídicos","DGAJ",{"$f":"MID(D259,1,3)","v":"160"},16032100,"Jefe de Departamento/Consultor/Auditor","Departamento de lo Contencioso de Datos","Cecilia Chávez Cardoso",{"$f":"CONCATENATE(F259,\" \",G259,\" \",\"[\",B259,\"]\")","v":"Departamento de lo Contencioso de Datos Cecilia Chávez Cardoso [DGAJ]"}]
["Dirección General de Asuntos Jurídicos","DGAJ","160",16033000,"Subdirector de Área","Subdirección de Asuntos Constitucionales","Creación 03-05-2017","Subdirección de Asuntos Constitucionales Creación 03-05-2017 [DGAJ]"]
["Dirección General de Asuntos Jurídicos","DGAJ","160",16034000,"Subdirector de Área","Subdirección de Análisis Normativo","Creación 03-05-2017","Subdirección de Análisis Normativo Creación 03-05-2017 [DGAJ]"]
["Dirección General de Atención al Pleno","DGAP","710",71000000,"Director General/Jefe de Ponencia/Contralor","Dirección General de Atención al Pleno","Rosa María Bárcena Canuas","Dirección General de Atención al Pleno Rosa María Bárcena Canuas [DGAP]"]
["Dirección General de Atención al Pleno","DGAP","710",71010000,"Director de Área","Dirección de Atención al Pleno","Fidel Roberto López Pérez","Dirección de Atención al Pleno Fidel Roberto López Pérez [DGAP]"]
["Dirección General de Atención al Pleno","DGAP","710",71011000,"Subdirector de Área","Subdirección de Atención A ","Sandra Liliana Balcázar Lomelí","Subdirección de Atención A  Sandra Liliana Balcázar Lomelí [DGAP]"]
["Dirección General de Atención al Pleno","DGAP","710",71011100,"Jefe de Departamento/Consultor/Auditor","Departamento de Atención A","Adriana Elizabeth Hernández García","Departamento de Atención A Adriana Elizabeth Hernández García [DGAP]"]
["Dirección General de Atención al Pleno","DGAP","710",71012000,"Subdirector de Área","Subdirección de Atención B","Omar Enrique Méndez Arias","Subdirección de Atención B Omar Enrique Méndez Arias [DGAP]"]
["Dirección General de Atención al Pleno","DGAP","710",71012010,"Enlace","Enlace","Michelle Fuentes Pereyra","Enlace Michelle Fuentes Pereyra [DGAP]"]
["Dirección General de Atención al Pleno","DGAP","710",71020000,"Director de Área","Dirección de Gestión","Ileana Hidalgo Rioja","Dirección de Gestión Ileana Hidalgo Rioja [DGAP]"]
["Dirección General de Atención al Pleno","DGAP","710",71021000,"Subdirector de Área","Subdirección de Gestión A","Iovjayi Garrido Canabal Pérez","Subdirección de Gestión A Iovjayi Garrido Canabal Pérez [DGAP]"]
["Dirección General de Atención al Pleno","DGAP","710",71021010,"Enlace","Enlace","Tania Alpuche Sigrist","Enlace Tania Alpuche Sigrist [DGAP]"]
["Dirección General de Atención al Pleno","DGAP","710",71021100,"Jefe de Departamento/Consultor/Auditor","Departamento de Gestión A","Tiara Gethsemanni Miranda Fuentes","Departamento de Gestión A Tiara Gethsemanni Miranda Fuentes [DGAP]"]
["Dirección General de Atención al Pleno","DGAP","710",71021200,"Jefe de Departamento/Consultor/Auditor","Departamento de Gestión B","María Catalina López Escobedo","Departamento de Gestión B María Catalina López Escobedo [DGAP]"]
["Dirección General de Atención al Pleno","DGAP","710",71022000,"Subdirector de Área","Subdirección de Gestión B","Patricia Vázquez Ayala","Subdirección de Gestión B Patricia Vázquez Ayala [DGAP]"]
["Dirección General de Atención al Pleno","DGAP","710",71022100,"Jefe de Departamento/Consultor/Auditor","Departamento de Gestión C","Juan Carlos Hernández Rivas","Departamento de Gestión C Juan Carlos Hernández Rivas [DGAP]"]
["Dirección General de Atención al Pleno","DGAP","710",71030000,"Director de Área","Dirección de Estadística","Ricardo David Castañeda Orozco","Dirección de Estadística Ricardo David Castañeda Orozco [DGAP]"]
["Dirección General de Atención al Pleno","DGAP","710",71031000,"Subdirector de Área","Subdirección de Control Estadístico","Sergio Arturo Cáceres Yam","Subdirección de Control Estadístico Sergio Arturo Cáceres Yam [DGAP]"]
["Dirección General de Atención al Pleno","DGAP","710",71031100,"Jefe de Departamento/Consultor/Auditor","Departamento de Control Estadístico","Giselda Baca Medina","Departamento de Control Estadístico Giselda Baca Medina [DGAP]"]
["Dirección General de Atención al Pleno","DGAP","710",71032000,"Subdirector de Área","Subdirección de Indicadores y Desempeño","Sergio Hernández Ramírez","Subdirección de Indicadores y Desempeño Sergio Hernández Ramírez [DGAP]"]
["Dirección General de Atención al Pleno","DGAP","710",71032100,"Jefe de Departamento/Consultor/Auditor","Departamento de Indicadores","Paul Osvaldo Cervantes García","Departamento de Indicadores Paul Osvaldo Cervantes García [DGAP]"]
["Dirección General de Capacitación","DGC","250",25000000,"Director General/Jefe de Ponencia/Contralor","Dirección General de Capacitación","Arminda Balbuena Cisneros","Dirección General de Capacitación Arminda Balbuena Cisneros [DGC]"]
["Dirección General de Capacitación","DGC","250",25000001,"Auxiliar","Auxiliar Administrativo","Jorge Martínez Belmont","Auxiliar Administrativo Jorge Martínez Belmont [DGC]"]
["Dirección General de Capacitación","DGC","250",25000010,"Enlace","Enlace","Maribel Villagran Rubio","Enlace Maribel Villagran Rubio [DGC]"]
["Dirección General de Capacitación","DGC","250",25010000,"Director de Área","Dirección de Capacitación de Acceso","Ma. de los Ángeles Hernández Sánchez","Dirección de Capacitación de Acceso Ma. de los Ángeles Hernández Sánchez [DGC]"]
["Dirección General de Capacitación","DGC","250",25011000,"Subdirector de Área","Subdirección de Desarrollo de Capacitación de Acceso","Sonia Barrera García","Subdirección de Desarrollo de Capacitación de Acceso Sonia Barrera García [DGC]"]
["Dirección General de Capacitación","DGC","250",25011010,"Enlace","Enlace","Karla Lizeth Sánchez Domínguez","Enlace Karla Lizeth Sánchez Domínguez [DGC]"]
["Dirección General de Capacitación","DGC","250",25011100,"Jefe de Departamento/Consultor/Auditor","Departamento de Desarrollo de Capacitación de Acceso A","Olivia Nolasco Nolasco","Departamento de Desarrollo de Capacitación de Acceso A Olivia Nolasco Nolasco [DGC]"]
["Dirección General de Capacitación","DGC","250",25011200,"Jefe de Departamento/Consultor/Auditor","Departamento de Desarrollo de Capacitación de Acceso B","Janeth Guzmán Aguilar","Departamento de Desarrollo de Capacitación de Acceso B Janeth Guzmán Aguilar [DGC]"]
["Dirección General de Capacitación","DGC","250",25012000,"Subdirector de Área","Subdirección de Programación de Capacitación de Acceso","Dulce María Jara Reyes","Subdirección de Programación de Capacitación de Acceso Dulce María Jara Reyes [DGC]"]
["Dirección General de Capacitación","DGC","250",25012100,"Jefe de Departamento/Consultor/Auditor","Departamento de Programación de Capacitación de Acceso","Jaime Quintero García","Departamento de Programación de Capacitación de Acceso Jaime Quintero García [DGC]"]
["Dirección General de Capacitación","DGC","250",25020000,"Director de Área","Dirección de Capacitación de Datos Personales","Amalia Berenice Hernández Bracho","Dirección de Capacitación de Datos Personales Amalia Berenice Hernández Bracho [DGC]"]
["Dirección General de Capacitación","DGC","250",25021000,"Subdirector de Área","Subdirección de Desarrollo y Programación de Capacitación de Datos","Martha Ivonne Guerrero González","Subdirección de Desarrollo y Programación de Capacitación de Datos Martha Ivonne Guerrero González [DGC]"]
["Dirección General de Capacitación","DGC","250",25021010,"Enlace","Enlace","Araceli Valencia Vázquez","Enlace Araceli Valencia Vázquez [DGC]"]
["Dirección General de Capacitación","DGC","250",25021100,"Jefe de Departamento/Consultor/Auditor","Departamento de Desarrollo y Programación de Capacitación de Datos","Ricardo Gómez Ortega","Departamento de Desarrollo y Programación de Capacitación de Datos Ricardo Gómez Ortega [DGC]"]
["Dirección General de Comunicación Social y Difusión","DGCSD","170",17000000,"Director General/Jefe de Ponencia/Contralor","Dirección General de Comunicación Social y Difusión","Leticia Araceli Salas Torres","Dirección General de Comunicación Social y Difusión Leticia Araceli Salas Torres [DGCSD]"]
["Dirección General de Comunicación Social y Difusión","DGCSD","170",17000001,"Auxiliar","Auxiliar Administrativo","Odilon Felix Aguilar Garrido","Auxiliar Administrativo Odilon Felix Aguilar Garrido [DGCSD]"]
["Dirección General de Comunicación Social y Difusión","DGCSD","170",17000010,"Enlace","Enlace","Viridiana Martínez González","Enlace Viridiana Martínez González [DGCSD]"]
["Dirección General de Comunicación Social y Difusión","DGCSD","170",17010000,"Director de Área","Dirección de Difusión","Rolan Haroldo Sánchez Morán","Dirección de Difusión Rolan Haroldo Sánchez Morán [DGCSD]"]
["Dirección General de Comunicación Social y Difusión","DGCSD","170",17011000,"Subdirector de Área","Subdirección de Planeación Estratégica","José Antonio Barrera López","Subdirección de Planeación Estratégica José Antonio Barrera López [DGCSD]"]
["Dirección General de Comunicación Social y Difusión","DGCSD","170",17011100,"Jefe de Departamento/Consultor/Auditor","Departamento de Producción Editorial","Laura Patricia Barrera Fernández","Departamento de Producción Editorial Laura Patricia Barrera Fernández [DGCSD]"]
["Dirección General de Comunicación Social y Difusión","DGCSD","170",17011200,"Jefe de Departamento/Consultor/Auditor","Departamento de Diseño Gráfico","María Elena Vargas Zenteno","Departamento de Diseño Gráfico María Elena Vargas Zenteno [DGCSD]"]
["Dirección General de Comunicación Social y Difusión","DGCSD","170",17012000,"Subdirector de Área","Subdirección de Divulgación y Logística","Edith González Alvarez","Subdirección de Divulgación y Logística Edith González Alvarez [DGCSD]"]
["Dirección General de Comunicación Social y Difusión","DGCSD","170",17012010,"Enlace","Enlace","Gabriela Karibeth Martínez Rugerio","Enlace Gabriela Karibeth Martínez Rugerio [DGCSD]"]
["Dirección General de Comunicación Social y Difusión","DGCSD","170",17012100,"Jefe de Departamento/Consultor/Auditor","Departamento de Vinculación con Medios y Corresponsales Extranjeros A","Rafael González Nicacio ","Departamento de Vinculación con Medios y Corresponsales Extranjeros A Rafael González Nicacio  [DGCSD]"]
["Dirección General de Comunicación Social y Difusión","DGCSD","170",17012200,"Jefe de Departamento/Consultor/Auditor","Departamento de Vinculación con Medios y Corresponsales Extranjeros B","Ernesto Vaca García","Departamento de Vinculación con Medios y Corresponsales Extranjeros B Ernesto Vaca García [DGCSD]"]
["Dirección General de Comunicación Social y Difusión","DGCSD","170",17012300,"Jefe de Departamento/Consultor/Auditor","Departamento de Apoyo Técnico","Lilia Mar Pecero","Departamento de Apoyo Técnico Lilia Mar Pecero [DGCSD]"]
["Dirección General de Comunicación Social y Difusión","DGCSD","170",17020000,"Director de Área","Dirección de Medios","Olga Carranco González","Dirección de Medios Olga Carranco González [DGCSD]"]
["Dirección General de Comunicación Social y Difusión","DGCSD","170",17021000,"Subdirector de Área","Subdirección de Medios","Olga Lidia Arellano","Subdirección de Medios Olga Lidia Arellano [DGCSD]"]
["Dirección General de Comunicación Social y Difusión","DGCSD","170",17021100,"Jefe de Departamento/Consultor/Auditor","Departamento de Monitoreo de Información, Asistencia a Medios y Apoyo a Prensa","Susana Moraga Orozco","Departamento de Monitoreo de Información, Asistencia a Medios y Apoyo a Prensa Susana Moraga Orozco [DGCSD]"]
["Dirección General de Comunicación Social y Difusión","DGCSD","170",17021200,"Jefe de Departamento/Consultor/Auditor","Departamento de Redacción A","José Luis Armenta Avila ","Departamento de Redacción A José Luis Armenta Avila  [DGCSD]"]
["Dirección General de Comunicación Social y Difusión","DGCSD","170",17021300,"Jefe de Departamento/Consultor/Auditor","Departamento de Redacción B","Valentín  Granados Flores ","Departamento de Redacción B Valentín  Granados Flores  [DGCSD]"]
["Dirección General de Comunicación Social y Difusión","DGCSD","170",17022000,"Subdirector de Área","Subdirección de Televisión","Gualberto Yerves Nava","Subdirección de Televisión Gualberto Yerves Nava [DGCSD]"]
["Dirección General de Comunicación Social y Difusión","DGCSD","170",17022100,"Jefe de Departamento/Consultor/Auditor","Departamento de Televisión A","Martha Beatriz Alcántara Pérez","Departamento de Televisión A Martha Beatriz Alcántara Pérez [DGCSD]"]
["Dirección General de Comunicación Social y Difusión","DGCSD","170",17022200,"Jefe de Departamento/Consultor/Auditor","Departamento de Televisión B","Lorena Morales García","Departamento de Televisión B Lorena Morales García [DGCSD]"]
["Dirección General de Comunicación Social y Difusión","DGCSD","170",17023000,"Subdirector de Área","Subdirección de Enlace con Medios Electrónicos","Misael Martínez Soto","Subdirección de Enlace con Medios Electrónicos Misael Martínez Soto [DGCSD]"]
["Dirección General de Comunicación Social y Difusión","DGCSD","170",17023100,"Jefe de Departamento/Consultor/Auditor","Departamento de Seguimiento de Información A","Jorge Luis Vázquez Escobar","Departamento de Seguimiento de Información A Jorge Luis Vázquez Escobar [DGCSD]"]
["Dirección General de Comunicación Social y Difusión","DGCSD","170",17023200,"Jefe de Departamento/Consultor/Auditor","Departamento de Seguimiento de Información B","Leticia Anahí Ravelo Díaz","Departamento de Seguimiento de Información B Leticia Anahí Ravelo Díaz [DGCSD]"]
["Dirección General de Cumplimientos y Responsabilidades","DGCR","720",72000000,"Director General/Jefe de Ponencia/Contralor","Dirección General de Cumplimientos y Responsabilidades","Fernando García Limón","Dirección General de Cumplimientos y Responsabilidades Fernando García Limón [DGCR]"]
["Dirección General de Cumplimientos y Responsabilidades","DGCR","720",72010000,"Director de Área","Dirección de Cumplimientos","Juan José Rivera Crespo","Dirección de Cumplimientos Juan José Rivera Crespo [DGCR]"]
["Dirección General de Cumplimientos y Responsabilidades","DGCR","720",72011000,"Subdirector de Área","Subdirección de Cumplimientos A","Verónica Santiago Martínez","Subdirección de Cumplimientos A Verónica Santiago Martínez [DGCR]"]
["Dirección General de Cumplimientos y Responsabilidades","DGCR","720",72011010,"Enlace","Enlace","Monserrat Rivera Trejo","Enlace Monserrat Rivera Trejo [DGCR]"]
["Dirección General de Cumplimientos y Responsabilidades","DGCR","720",72011100,"Jefe de Departamento/Consultor/Auditor","Departamento de Cumplimientos A","Christian Damián Ramos Romero","Departamento de Cumplimientos A Christian Damián Ramos Romero [DGCR]"]
["Dirección General de Cumplimientos y Responsabilidades","DGCR","720",72011200,"Jefe de Departamento/Consultor/Auditor","Departamento de Cumplimientos B","Miriette Julieta Araiza Trejo","Departamento de Cumplimientos B Miriette Julieta Araiza Trejo [DGCR]"]
["Dirección General de Cumplimientos y Responsabilidades","DGCR",{"$f":"MID(D323,1,3)","v":"720"},72012000,"Subdirector de Área","Subdirección de Cumplimientos B","Edgardo Hernández Espinosa",{"$f":"CONCATENATE(F323,\" \",G323,\" \",\"[\",B323,\"]\")","v":"Subdirección de Cumplimientos B Edgardo Hernández Espinosa [DGCR]"}]
["Dirección General de Cumplimientos y Responsabilidades","DGCR","720",72012010,"Enlace","Enlace","Creación 03-05-2017","Enlace Creación 03-05-2017 [DGCR]"]
["Dirección General de Cumplimientos y Responsabilidades","DGCR","720",72012100,"Jefe de Departamento/Consultor/Auditor","Departamento de Cumplimientos C","Gabriela Santana Cid del Prado","Departamento de Cumplimientos C Gabriela Santana Cid del Prado [DGCR]"]
["Dirección General de Cumplimientos y Responsabilidades","DGCR","720",72012200,"Jefe de Departamento/Consultor/Auditor","Departamento de Cumplimientos D","Creación 03-05-2017","Departamento de Cumplimientos D Creación 03-05-2017 [DGCR]"]
["Dirección General de Cumplimientos y Responsabilidades","DGCR","720",72013000,"Subdirector de Área","Subdirección de Cumplimientos C","Creación 03-05-2017","Subdirección de Cumplimientos C Creación 03-05-2017 [DGCR]"]
["Dirección General de Cumplimientos y Responsabilidades","DGCR","720",72013010,"Enlace","Enlace","Creación 03-05-2017","Enlace Creación 03-05-2017 [DGCR]"]
["Dirección General de Cumplimientos y Responsabilidades","DGCR","720",72013100,"Jefe de Departamento/Consultor/Auditor","Departamento de Cumplimientos E","Creación 03-05-2017","Departamento de Cumplimientos E Creación 03-05-2017 [DGCR]"]
["Dirección General de Cumplimientos y Responsabilidades","DGCR","720",72013200,"Jefe de Departamento/Consultor/Auditor","Departamento de Cumplimientos F","Creación 03-05-2017","Departamento de Cumplimientos F Creación 03-05-2017 [DGCR]"]
["Dirección General de Cumplimientos y Responsabilidades","DGCR","720",72020000,"Director de Área","Dirección de Responsabilidades","Juan Manuel  Servín  Domínguez","Dirección de Responsabilidades Juan Manuel  Servín  Domínguez [DGCR]"]
["Dirección General de Cumplimientos y Responsabilidades","DGCR","720",72021000,"Subdirector de Área","Subdirección de Responsabilidades A","Valeria García Ibarra","Subdirección de Responsabilidades A Valeria García Ibarra [DGCR]"]
["Dirección General de Cumplimientos y Responsabilidades","DGCR","720",72021010,"Enlace","Enlace","María Ernestina Irma Rebollo León","Enlace María Ernestina Irma Rebollo León [DGCR]"]
["Dirección General de Cumplimientos y Responsabilidades","DGCR","720",72021100,"Jefe de Departamento/Consultor/Auditor","Departamento de Responsabilidades A","Miriam Fanny Ariadna Castro Vázquez","Departamento de Responsabilidades A Miriam Fanny Ariadna Castro Vázquez [DGCR]"]
["Dirección General de Cumplimientos y Responsabilidades","DGCR","720",72021200,"Jefe de Departamento/Consultor/Auditor","Departamento de Responsabilidades B","Alicia Mondragón Mora","Departamento de Responsabilidades B Alicia Mondragón Mora [DGCR]"]
["Dirección General de Cumplimientos y Responsabilidades","DGCR","720",72022000,"Subdirector de Área","Subdirección de Responsabilidades B","Osvaldo Paul Suárez Colín","Subdirección de Responsabilidades B Osvaldo Paul Suárez Colín [DGCR]"]
["Dirección General de Cumplimientos y Responsabilidades","DGCR","720",72022100,"Jefe de Departamento/Consultor/Auditor","Departamento de Responsabilidades C","Leticia Pérez Calderón","Departamento de Responsabilidades C Leticia Pérez Calderón [DGCR]"]
["Dirección General de Enlace con Autoridades Laborales, Sindicatos, Universidades, Personas Físicas y Morales","DGEALSUPSM","340",34000000,"Director General/Jefe de Ponencia/Contralor","Dirección General de Enlace con Autoridades Laborales, Sindicatos, Universidades, Personas Físicas y Morales","Graciela Sandoval Vargas","Dirección General de Enlace con Autoridades Laborales, Sindicatos, Universidades, Personas Físicas y Morales Graciela Sandoval Vargas [DGEALSUPSM]"]
["Dirección General de Enlace con Autoridades Laborales, Sindicatos, Universidades, Personas Físicas y Morales","DGEALSUPSM","340",34000001,"Auxiliar","Auxiliar Administrativo","Alfonso Gerardo Velarde","Auxiliar Administrativo Alfonso Gerardo Velarde [DGEALSUPSM]"]
["Dirección General de Enlace con Autoridades Laborales, Sindicatos, Universidades, Personas Físicas y Morales","DGEALSUPSM","340",34000010,"Enlace","Enlace","Sofía Gabriela Rojas Jiménez","Enlace Sofía Gabriela Rojas Jiménez [DGEALSUPSM]"]
["Dirección General de Enlace con Autoridades Laborales, Sindicatos, Universidades, Personas Físicas y Morales","DGEALSUPSM","340",34010000,"Director de Área","Dirección de Seguimiento de Cumplimientos","Jorge Roselini Salgado Alday","Dirección de Seguimiento de Cumplimientos Jorge Roselini Salgado Alday [DGEALSUPSM]"]
["Dirección General de Enlace con Autoridades Laborales, Sindicatos, Universidades, Personas Físicas y Morales","DGEALSUPSM","340",34011000,"Subdirector de Área","Subdirección de Seguimiento de Cumplimientos A","Sandra Sandoval Corchado","Subdirección de Seguimiento de Cumplimientos A Sandra Sandoval Corchado [DGEALSUPSM]"]
["Dirección General de Enlace con Autoridades Laborales, Sindicatos, Universidades, Personas Físicas y Morales","DGEALSUPSM","340",34011010,"Enlace","Enlace","Jatziry Jiménez Cruz","Enlace Jatziry Jiménez Cruz [DGEALSUPSM]"]
["Dirección General de Enlace con Autoridades Laborales, Sindicatos, Universidades, Personas Físicas y Morales","DGEALSUPSM","340",34011100,"Jefe de Departamento/Consultor/Auditor","Departamento de Seguimiento de Cumplimientos A","Jacqueline Castillo Posada","Departamento de Seguimiento de Cumplimientos A Jacqueline Castillo Posada [DGEALSUPSM]"]
["Dirección General de Enlace con Autoridades Laborales, Sindicatos, Universidades, Personas Físicas y Morales","DGEALSUPSM","340",34012000,"Subdirector de Área","Subdirección de Seguimiento de Cumplimientos B","Miguel Ángel Pastrana González","Subdirección de Seguimiento de Cumplimientos B Miguel Ángel Pastrana González [DGEALSUPSM]"]
["Dirección General de Enlace con Autoridades Laborales, Sindicatos, Universidades, Personas Físicas y Morales","DGEALSUPSM","340",34012100,"Jefe de Departamento/Consultor/Auditor","Departamento de Seguimiento de Cumplimientos B","Bruno Alejandro Patiño Rentería","Departamento de Seguimiento de Cumplimientos B Bruno Alejandro Patiño Rentería [DGEALSUPSM]"]
["Dirección General de Enlace con Autoridades Laborales, Sindicatos, Universidades, Personas Físicas y Morales","DGEALSUPSM","340",34020000,"Director de Área","Dirección de Acompañamiento","Luis Alberto González García","Dirección de Acompañamiento Luis Alberto González García [DGEALSUPSM]"]
["Dirección General de Enlace con Autoridades Laborales, Sindicatos, Universidades, Personas Físicas y Morales","DGEALSUPSM","340",34021000,"Subdirector de Área","Subdirección de Acompañamiento","Miguel Cristophe Molina Alcántara","Subdirección de Acompañamiento Miguel Cristophe Molina Alcántara [DGEALSUPSM]"]
["Dirección General de Enlace con Autoridades Laborales, Sindicatos, Universidades, Personas Físicas y Morales","DGEALSUPSM","340",34021100,"Jefe de Departamento/Consultor/Auditor","Departamento de Acompañamiento","Betzabé Flores Terán","Departamento de Acompañamiento Betzabé Flores Terán [DGEALSUPSM]"]
["Dirección General de Enlace con Autoridades Laborales, Sindicatos, Universidades, Personas Físicas y Morales","DGEALSUPSM","340",34021110,"Enlace","Enlace","Sergio Montalvo García","Enlace Sergio Montalvo García [DGEALSUPSM]"]
["Dirección General de Enlace con la Administración Pública Centralizada y Tribunales Administrativos","DGEAPCTA","380",38000000,"Director General/Jefe de Ponencia/Contralor","Dirección General de Enlace con la Administración Pública Centralizada y Tribunales Administrativos","Gregorio Delfino Castillo Porras","Dirección General de Enlace con la Administración Pública Centralizada y Tribunales Administrativos Gregorio Delfino Castillo Porras [DGEAPCTA]"]
["Dirección General de Enlace con la Administración Pública Centralizada y Tribunales Administrativos","DGEAPCTA","380",38000001,"Auxiliar","Auxiliar Administrativo","Osvaldo Guillermo Martínez Zavala","Auxiliar Administrativo Osvaldo Guillermo Martínez Zavala [DGEAPCTA]"]
["Dirección General de Enlace con la Administración Pública Centralizada y Tribunales Administrativos","DGEAPCTA","380",38000010,"Enlace","Enlace","Edgar Michel Loaeza Martínez","Enlace Edgar Michel Loaeza Martínez [DGEAPCTA]"]
["Dirección General de Enlace con la Administración Pública Centralizada y Tribunales Administrativos","DGEAPCTA","380",38010000,"Director de Área","Dirección de Acompañamiento","Leonor Millán Cabrera","Dirección de Acompañamiento Leonor Millán Cabrera [DGEAPCTA]"]
["Dirección General de Enlace con la Administración Pública Centralizada y Tribunales Administrativos","DGEAPCTA","380",38011000,"Subdirector de Área","Subdirección de Acompañamiento A","Lorena Ramírez García","Subdirección de Acompañamiento A Lorena Ramírez García [DGEAPCTA]"]
["Dirección General de Enlace con la Administración Pública Centralizada y Tribunales Administrativos","DGEAPCTA","380",38011100,"Jefe de Departamento/Consultor/Auditor","Departamento de Acompañamiento A","Maximiliano Lars Busch Pommerencke","Departamento de Acompañamiento A Maximiliano Lars Busch Pommerencke [DGEAPCTA]"]
["Dirección General de Enlace con la Administración Pública Centralizada y Tribunales Administrativos","DGEAPCTA","380",38011110,"Enlace","Enlace","Carolina Sánchez Alquicira","Enlace Carolina Sánchez Alquicira [DGEAPCTA]"]
["Dirección General de Enlace con la Administración Pública Centralizada y Tribunales Administrativos","DGEAPCTA","380",38012000,"Subdirector de Área","Subdirección de Acompañamiento B","Rosa María Rivas Rangel","Subdirección de Acompañamiento B Rosa María Rivas Rangel [DGEAPCTA]"]
["Dirección General de Enlace con la Administración Pública Centralizada y Tribunales Administrativos","DGEAPCTA","380",38012100,"Jefe de Departamento/Consultor/Auditor","Departamento de Acompañamiento B","Carlos López Arreola","Departamento de Acompañamiento B Carlos López Arreola [DGEAPCTA]"]
["Dirección General de Enlace con la Administración Pública Centralizada y Tribunales Administrativos","DGEAPCTA","380",38020000,"Director de Área","Dirección de Seguimiento de Cumplimientos","Irving Manchinelly Mota","Dirección de Seguimiento de Cumplimientos Irving Manchinelly Mota [DGEAPCTA]"]
["Dirección General de Enlace con la Administración Pública Centralizada y Tribunales Administrativos","DGEAPCTA","380",38021000,"Subdirector de Área","Subdirección de Seguimiento de Cumplimientos A","Tanya Yadira Carrasco Gutiérrez","Subdirección de Seguimiento de Cumplimientos A Tanya Yadira Carrasco Gutiérrez [DGEAPCTA]"]
["Dirección General de Enlace con la Administración Pública Centralizada y Tribunales Administrativos","DGEAPCTA","380",38021100,"Jefe de Departamento/Consultor/Auditor","Departamento de Seguimiento de Cumplimientos A","César Armando Galván Ponce","Departamento de Seguimiento de Cumplimientos A César Armando Galván Ponce [DGEAPCTA]"]
["Dirección General de Enlace con la Administración Pública Centralizada y Tribunales Administrativos","DGEAPCTA","380",38022000,"Subdirector de Área","Subdirección de Seguimiento de Cumplimientos B","Ángel Ramón Celis Camargo","Subdirección de Seguimiento de Cumplimientos B Ángel Ramón Celis Camargo [DGEAPCTA]"]
["Dirección General de Enlace con la Administración Pública Centralizada y Tribunales Administrativos","DGEAPCTA","380",38022010,"Enlace","Enlace","Eunice Estrada Vicencio","Enlace Eunice Estrada Vicencio [DGEAPCTA]"]
["Dirección General de Enlace con los Poderes Legislativo y Judicial","DGEPLJ","370",37000000,"Director General/Jefe de Ponencia/Contralor","Dirección General de Enlace con los Poderes Legislativo y Judicial","Bernardo Agustín Millán Gómez Baranda","Dirección General de Enlace con los Poderes Legislativo y Judicial Bernardo Agustín Millán Gómez Baranda [DGEPLJ]"]
["Dirección General de Enlace con los Poderes Legislativo y Judicial","DGEPLJ","370",37000001,"Auxiliar","Auxiliar Administrativo","Alejandro Rosas Martínez","Auxiliar Administrativo Alejandro Rosas Martínez [DGEPLJ]"]
["Dirección General de Enlace con los Poderes Legislativo y Judicial","DGEPLJ","370",37000010,"Enlace","Enlace","Elizabeth Gama Miranda","Enlace Elizabeth Gama Miranda [DGEPLJ]"]
["Dirección General de Enlace con los Poderes Legislativo y Judicial","DGEPLJ","370",37010000,"Director de Área","Dirección de Seguimiento de Cumplimientos","Froylán Velázquez Miranda","Dirección de Seguimiento de Cumplimientos Froylán Velázquez Miranda [DGEPLJ]"]
["Dirección General de Enlace con los Poderes Legislativo y Judicial","DGEPLJ","370",37011000,"Subdirector de Área","Subdirección de Seguimiento de Cumplimientos A","Luz María Puig Portuguez","Subdirección de Seguimiento de Cumplimientos A Luz María Puig Portuguez [DGEPLJ]"]
["Dirección General de Enlace con los Poderes Legislativo y Judicial","DGEPLJ","370",37011010,"Enlace","Enlace","Karla Azizza Ruiz Olea","Enlace Karla Azizza Ruiz Olea [DGEPLJ]"]
["Dirección General de Enlace con los Poderes Legislativo y Judicial","DGEPLJ","370",37011100,"Jefe de Departamento/Consultor/Auditor","Departamento de Seguimiento de Cumplimientos A","Adrián Israel Ocampo Jiménez","Departamento de Seguimiento de Cumplimientos A Adrián Israel Ocampo Jiménez [DGEPLJ]"]
["Dirección General de Enlace con los Poderes Legislativo y Judicial","DGEPLJ","370",37012000,"Subdirector de Área","Subdirección de Seguimiento de Cumplimientos B","Miriam Escobedo Muñoz","Subdirección de Seguimiento de Cumplimientos B Miriam Escobedo Muñoz [DGEPLJ]"]
["Dirección General de Enlace con los Poderes Legislativo y Judicial","DGEPLJ","370",37012100,"Jefe de Departamento/Consultor/Auditor","Departamento de Seguimiento de Cumplimientos B","Omar Antonio Méndez Mendoza","Departamento de Seguimiento de Cumplimientos B Omar Antonio Méndez Mendoza [DGEPLJ]"]
["Dirección General de Enlace con los Poderes Legislativo y Judicial","DGEPLJ","370",37020000,"Director de Área","Dirección de Acompañamiento","Vacante","Dirección de Acompañamiento Vacante [DGEPLJ]"]
["Dirección General de Enlace con los Poderes Legislativo y Judicial","DGEPLJ","370",37021000,"Subdirector de Área","Subdirección de Acompañamiento","Humberto Adán Peña Fuentes","Subdirección de Acompañamiento Humberto Adán Peña Fuentes [DGEPLJ]"]
["Dirección General de Enlace con los Poderes Legislativo y Judicial","DGEPLJ","370",37021100,"Jefe de Departamento/Consultor/Auditor","Departamento de Acompañamiento","Vacante","Departamento de Acompañamiento Vacante [DGEPLJ]"]
["Dirección General de Enlace con los Poderes Legislativo y Judicial","DGEPLJ","370",37021110,"Enlace","Enlace","Sagrario Cortés Rodríguez","Enlace Sagrario Cortés Rodríguez [DGEPLJ]"]
["Dirección General de Enlace con Organismos Públicos Autónomos, Empresas Paraestatales, Entidades Financieras, Fondos y Fideicomisos","DGEOPAEPEFFF","360",36000000,"Director General/Jefe de Ponencia/Contralor","Dirección General de Enlace con Organismos Públicos Autónomos, Empresas Paraestatales, Entidades Financieras, Fondos y Fideicomisos","Fernando Butler Silva","Dirección General de Enlace con Organismos Públicos Autónomos, Empresas Paraestatales, Entidades Financieras, Fondos y Fideicomisos Fernando Butler Silva [DGEOPAEPEFFF]"]
["Dirección General de Enlace con Organismos Públicos Autónomos, Empresas Paraestatales, Entidades Financieras, Fondos y Fideicomisos","DGEOPAEPEFFF","360",36000001,"Auxiliar","Auxiliar Administrativo","Oscar Manuel Alvarado Hernández","Auxiliar Administrativo Oscar Manuel Alvarado Hernández [DGEOPAEPEFFF]"]
["Dirección General de Enlace con Organismos Públicos Autónomos, Empresas Paraestatales, Entidades Financieras, Fondos y Fideicomisos","DGEOPAEPEFFF","360",36000010,"Enlace","Enlace","Norma Nixia del Carmen Piña Guerrero","Enlace Norma Nixia del Carmen Piña Guerrero [DGEOPAEPEFFF]"]
["Dirección General de Enlace con Organismos Públicos Autónomos, Empresas Paraestatales, Entidades Financieras, Fondos y Fideicomisos","DGEOPAEPEFFF","360",36010000,"Director de Área","Dirección de Seguimiento de Cumplimientos","Cristian Cortés Rodríguez","Dirección de Seguimiento de Cumplimientos Cristian Cortés Rodríguez [DGEOPAEPEFFF]"]
["Dirección General de Enlace con Organismos Públicos Autónomos, Empresas Paraestatales, Entidades Financieras, Fondos y Fideicomisos","DGEOPAEPEFFF","360",36011000,"Subdirector de Área","Subdirección  de Seguimiento de Cumplimientos a OPA y EP","Víctor Daniel Díaz Bermúdez","Subdirección  de Seguimiento de Cumplimientos a OPA y EP Víctor Daniel Díaz Bermúdez [DGEOPAEPEFFF]"]
["Dirección General de Enlace con Organismos Públicos Autónomos, Empresas Paraestatales, Entidades Financieras, Fondos y Fideicomisos","DGEOPAEPEFFF","360",36011010,"Enlace","Enlace","Alondra Jiménez Hernández","Enlace Alondra Jiménez Hernández [DGEOPAEPEFFF]"]
["Dirección General de Enlace con Organismos Públicos Autónomos, Empresas Paraestatales, Entidades Financieras, Fondos y Fideicomisos","DGEOPAEPEFFF","360",36011100,"Jefe de Departamento/Consultor/Auditor","Departamento de Seguimiento de Cumplimientos a OPA y EP","María Teresa Carrillo Madrid","Departamento de Seguimiento de Cumplimientos a OPA y EP María Teresa Carrillo Madrid [DGEOPAEPEFFF]"]
["Dirección General de Enlace con Organismos Públicos Autónomos, Empresas Paraestatales, Entidades Financieras, Fondos y Fideicomisos","DGEOPAEPEFFF","360",36012000,"Subdirector de Área","Subdirección de Seguimiento de Cumplimientos a EFFF","Senén Valdés Villalobos","Subdirección de Seguimiento de Cumplimientos a EFFF Senén Valdés Villalobos [DGEOPAEPEFFF]"]
["Dirección General de Enlace con Organismos Públicos Autónomos, Empresas Paraestatales, Entidades Financieras, Fondos y Fideicomisos","DGEOPAEPEFFF","360",36012100,"Jefe de Departamento/Consultor/Auditor","Departamento de Seguimiento de Cumplimientos a EFFF","Angel Horta Pérez","Departamento de Seguimiento de Cumplimientos a EFFF Angel Horta Pérez [DGEOPAEPEFFF]"]
["Dirección General de Enlace con Organismos Públicos Autónomos, Empresas Paraestatales, Entidades Financieras, Fondos y Fideicomisos","DGEOPAEPEFFF",{"$f":"MID(D387,1,3)","v":"360"},36020000,"Director de Área","Dirección de Acompañamiento","Luis Gerardo Álvarez Tostado Valdivia",{"$f":"CONCATENATE(F387,\" \",G387,\" \",\"[\",B387,\"]\")","v":"Dirección de Acompañamiento Luis Gerardo Álvarez Tostado Valdivia [DGEOPAEPEFFF]"}]
["Dirección General de Enlace con Organismos Públicos Autónomos, Empresas Paraestatales, Entidades Financieras, Fondos y Fideicomisos","DGEOPAEPEFFF","360",36021000,"Subdirector de Área","Subdirección de Acompañamiento","Gloria Bravo Reyna","Subdirección de Acompañamiento Gloria Bravo Reyna [DGEOPAEPEFFF]"]
["Dirección General de Enlace con Organismos Públicos Autónomos, Empresas Paraestatales, Entidades Financieras, Fondos y Fideicomisos","DGEOPAEPEFFF","360",36021100,"Jefe de Departamento/Consultor/Auditor","Departamento de Acompañamiento","Aarón Mastache Arroyo","Departamento de Acompañamiento Aarón Mastache Arroyo [DGEOPAEPEFFF]"]
["Dirección General de Enlace con Organismos Públicos Autónomos, Empresas Paraestatales, Entidades Financieras, Fondos y Fideicomisos","DGEOPAEPEFFF","360",36021110,"Enlace","Enlace","Jassel Natali Córdova Guzmán","Enlace Jassel Natali Córdova Guzmán [DGEOPAEPEFFF]"]
["Dirección General de Enlace con Partidos Políticos, Organismos Electorales y Descentralizados","DGEPPOED","350",35000000,"Director General/Jefe de Ponencia/Contralor","Dirección General de Enlace con Partidos Políticos, Organismos Electorales y Descentralizados","Miguel Novoa Gómez","Dirección General de Enlace con Partidos Políticos, Organismos Electorales y Descentralizados Miguel Novoa Gómez [DGEPPOED]"]
["Dirección General de Enlace con Partidos Políticos, Organismos Electorales y Descentralizados","DGEPPOED","350",35000001,"Auxiliar","Auxiliar Administrativo","Israel Camacho Sotres","Auxiliar Administrativo Israel Camacho Sotres [DGEPPOED]"]
["Dirección General de Enlace con Partidos Políticos, Organismos Electorales y Descentralizados","DGEPPOED","350",35000010,"Enlace","Enlace","José Alfonso Flores Ayala","Enlace José Alfonso Flores Ayala [DGEPPOED]"]
["Dirección General de Enlace con Partidos Políticos, Organismos Electorales y Descentralizados","DGEPPOED","350",35010000,"Director de Área","Dirección de Seguimiento de Cumplimientos","Manuel Pérez Paz y Puente","Dirección de Seguimiento de Cumplimientos Manuel Pérez Paz y Puente [DGEPPOED]"]
["Dirección General de Enlace con Partidos Políticos, Organismos Electorales y Descentralizados","DGEPPOED","350",35011000,"Subdirector de Área","Subdirección de Seguimiento de Cumplimientos A","Marco Antonio Martínez Gutiérrez","Subdirección de Seguimiento de Cumplimientos A Marco Antonio Martínez Gutiérrez [DGEPPOED]"]
["Dirección General de Enlace con Partidos Políticos, Organismos Electorales y Descentralizados","DGEPPOED","350",35011010,"Enlace","Enlace","Pedro Esquivel Martínez","Enlace Pedro Esquivel Martínez [DGEPPOED]"]
["Dirección General de Enlace con Partidos Políticos, Organismos Electorales y Descentralizados","DGEPPOED","350",35011100,"Jefe de Departamento/Consultor/Auditor","Departamento de Seguimiento de Cumplimientos A","Román Solares Collado","Departamento de Seguimiento de Cumplimientos A Román Solares Collado [DGEPPOED]"]
["Dirección General de Enlace con Partidos Políticos, Organismos Electorales y Descentralizados","DGEPPOED","350",35012000,"Subdirector de Área","Subdirección de Seguimiento de Cumplimientos B","Abraham Obed Gallardo González","Subdirección de Seguimiento de Cumplimientos B Abraham Obed Gallardo González [DGEPPOED]"]
["Dirección General de Enlace con Partidos Políticos, Organismos Electorales y Descentralizados","DGEPPOED","350",35012100,"Jefe de Departamento/Consultor/Auditor","Departamento de Seguimiento de Cumplimientos B","Javier Isaac Orizaga Romero","Departamento de Seguimiento de Cumplimientos B Javier Isaac Orizaga Romero [DGEPPOED]"]
["Dirección General de Enlace con Partidos Políticos, Organismos Electorales y Descentralizados","DGEPPOED","350",35020000,"Director de Área","Dirección de Acompañamiento","Vitelio Ruiz Bernal","Dirección de Acompañamiento Vitelio Ruiz Bernal [DGEPPOED]"]
["Dirección General de Enlace con Partidos Políticos, Organismos Electorales y Descentralizados","DGEPPOED","350",35021000,"Subdirector de Área","Subdirección de Acompañamiento","Yael Xanat Rivera Cardiel","Subdirección de Acompañamiento Yael Xanat Rivera Cardiel [DGEPPOED]"]
["Dirección General de Enlace con Partidos Políticos, Organismos Electorales y Descentralizados","DGEPPOED","350",35021100,"Jefe de Departamento/Consultor/Auditor","Departamento de Acompañamiento","María Angélica Valdez Islas","Departamento de Acompañamiento María Angélica Valdez Islas [DGEPPOED]"]
["Dirección General de Enlace con Partidos Políticos, Organismos Electorales y Descentralizados","DGEPPOED","350",35021110,"Enlace","Enlace","Jorge Alberto Treviño López","Enlace Jorge Alberto Treviño López [DGEPPOED]"]
["Dirección General de Evaluación ","DGE","320",32000000,"Director General/Jefe de Ponencia/Contralor","Dirección General de Evaluación ","Carlos Porfirio Mendiola Jaramillo","Dirección General de Evaluación  Carlos Porfirio Mendiola Jaramillo [DGE]"]
["Dirección General de Evaluación ","DGE","320",32000001,"Auxiliar","Auxiliar Administrativo","Regino Francisco Fonseca Carbajal","Auxiliar Administrativo Regino Francisco Fonseca Carbajal [DGE]"]
["Dirección General de Evaluación ","DGE","320",32000010,"Enlace","Enlace","Vacante","Enlace Vacante [DGE]"]
["Dirección General de Evaluación ","DGE","320",32010000,"Director de Área","Dirección de Obligaciones de Transparencia","Arquímedes Martínez López","Dirección de Obligaciones de Transparencia Arquímedes Martínez López [DGE]"]
["Dirección General de Evaluación ","DGE","320",32011000,"Subdirector de Área","Subdirección de Integración de Criterios de Evaluación","Irma Silva Franco","Subdirección de Integración de Criterios de Evaluación Irma Silva Franco [DGE]"]
["Dirección General de Evaluación ","DGE","320",32011100,"Jefe de Departamento/Consultor/Auditor","Departamento de Integración de Criterios de Evaluación","Julia Yuridia Pacheco Hernández","Departamento de Integración de Criterios de Evaluación Julia Yuridia Pacheco Hernández [DGE]"]
["Dirección General de Evaluación ","DGE","320",32011110,"Enlace","Enlace","Patricia Sánchez Jiménez","Enlace Patricia Sánchez Jiménez [DGE]"]
["Dirección General de Evaluación ","DGE","320",32012000,"Subdirector de Área","Subdirección de Coordinación para la Evaluación","Jorge Luis Álvarez Peralta","Subdirección de Coordinación para la Evaluación Jorge Luis Álvarez Peralta [DGE]"]
["Dirección General de Evaluación ","DGE","320",32012100,"Jefe de Departamento/Consultor/Auditor","Departamento de  Coordinación para la Evaluación","Edmundo Fernando Vázquez Serralde","Departamento de  Coordinación para la Evaluación Edmundo Fernando Vázquez Serralde [DGE]"]
["Dirección General de Evaluación ","DGE","320",32012110,"Enlace","Enlace","Fernanda Morales Ramón","Enlace Fernanda Morales Ramón [DGE]"]
["Dirección General de Evaluación ","DGE","320",32020000,"Director de Área","Dirección de Análisis Estadístico","Justino José Núñez Quiróz","Dirección de Análisis Estadístico Justino José Núñez Quiróz [DGE]"]
["Dirección General de Evaluación ","DGE","320",32021000,"Subdirector de Área","Subdirección de Integración Estadística","Jasmín Eugenia Sabagh Morlotte","Subdirección de Integración Estadística Jasmín Eugenia Sabagh Morlotte [DGE]"]
["Dirección General de Evaluación ","DGE","320",32021100,"Jefe de Departamento/Consultor/Auditor","Departamento de Integración ","Laura Martín Martínez","Departamento de Integración  Laura Martín Martínez [DGE]"]
["Dirección General de Evaluación ","DGE","320",32021110,"Enlace","Enlace","María Guadalupe Rojas Castillo","Enlace María Guadalupe Rojas Castillo [DGE]"]
["Dirección General de Evaluación ","DGE","320",32022000,"Subdirector de Área","Subdirección de Análisis del Cumplimiento","Jesús Román Tezcucano Gaytán","Subdirección de Análisis del Cumplimiento Jesús Román Tezcucano Gaytán [DGE]"]
["Dirección General de Evaluación ","DGE","320",32022100,"Jefe de Departamento/Consultor/Auditor","Departamento de Análisis","Edgar Octavio Gómez Inclán","Departamento de Análisis Edgar Octavio Gómez Inclán [DGE]"]
["Dirección General de Gestión de Información y Estudios","DGGIE","240",24000000,"Director General/Jefe de Ponencia/Contralor","Dirección General de Gestión de Información y Estudios","Eduardo Bonilla Magaña","Dirección General de Gestión de Información y Estudios Eduardo Bonilla Magaña [DGGIE]"]
["Dirección General de Gestión de Información y Estudios","DGGIE","240",24000001,"Auxiliar","Auxiliar Administrativo","Sandra Castañeda Merino","Auxiliar Administrativo Sandra Castañeda Merino [DGGIE]"]
["Dirección General de Gestión de Información y Estudios","DGGIE","240",24000010,"Enlace","Enlace","Abelardo René Treviño González","Enlace Abelardo René Treviño González [DGGIE]"]
["Dirección General de Gestión de Información y Estudios","DGGIE","240",24010000,"Director de Área","Dirección de Gestión Documental","Alfonso Rojas Vega","Dirección de Gestión Documental Alfonso Rojas Vega [DGGIE]"]
["Dirección General de Gestión de Información y Estudios","DGGIE","240",24011000,"Subdirector de Área","Subdirección de Control y Conservación del Archivo Institucional","Oscar Mercadillo Muñiz","Subdirección de Control y Conservación del Archivo Institucional Oscar Mercadillo Muñiz [DGGIE]"]
["Dirección General de Gestión de Información y Estudios","DGGIE","240",24011200,"Jefe de Departamento/Consultor/Auditor","Departamento de Control","Miriam Martínez Meza","Departamento de Control Miriam Martínez Meza [DGGIE]"]
["Dirección General de Gestión de Información y Estudios","DGGIE","240",24011300,"Jefe de Departamento/Consultor/Auditor","Departamento de Conservación","Salvador Rodriguez Rico","Departamento de Conservación Salvador Rodriguez Rico [DGGIE]"]
["Dirección General de Gestión de Información y Estudios","DGGIE","240",24011310,"Enlace","Enlace","Aleph Julián Escobedo Martínez","Enlace Aleph Julián Escobedo Martínez [DGGIE]"]
["Dirección General de Gestión de Información y Estudios","DGGIE","240",24012000,"Subdirector de Área","Subdirección de Gestión","Claudia Alin Escoto Velázquez","Subdirección de Gestión Claudia Alin Escoto Velázquez [DGGIE]"]
["Dirección General de Gestión de Información y Estudios","DGGIE","240",24012100,"Jefe de Departamento/Consultor/Auditor","Departamento de Gestión","Ana Celia Farias Contreras","Departamento de Gestión Ana Celia Farias Contreras [DGGIE]"]
["Dirección General de Gestión de Información y Estudios","DGGIE","240",24012200,"Jefe de Departamento/Consultor/Auditor","Departamento de Información","Fabiola Hernández Contreras","Departamento de Información Fabiola Hernández Contreras [DGGIE]"]
["Dirección General de Gestión de Información y Estudios","DGGIE","240",24020000,"Director de Área","Dirección de Estudios","Leticia González Tapia","Dirección de Estudios Leticia González Tapia [DGGIE]"]
["Dirección General de Gestión de Información y Estudios","DGGIE","240",24021000,"Subdirector de Área","Subdirección de Estudios","Teresa De La Torre Reyes","Subdirección de Estudios Teresa De La Torre Reyes [DGGIE]"]
["Dirección General de Gestión de Información y Estudios","DGGIE","240",24021100,"Jefe de Departamento/Consultor/Auditor","Departamento de Estudios A","Fernando Isaac Martínez Corripio","Departamento de Estudios A Fernando Isaac Martínez Corripio [DGGIE]"]
["Dirección General de Gestión de Información y Estudios","DGGIE","240",24021200,"Jefe de Departamento/Consultor/Auditor","Departamento de Estudios B","Domingo Ramírez López","Departamento de Estudios B Domingo Ramírez López [DGGIE]"]
["Dirección General de Gestión de Información y Estudios","DGGIE","240",24021210,"Enlace","Enlace","Regina López Iserte","Enlace Regina López Iserte [DGGIE]"]
["Dirección General de Gestión de Información y Estudios","DGGIE","240",24021300,"Jefe de Departamento/Consultor/Auditor","Departamento de Reportes A","Lourdes Karina Islas Aguirre","Departamento de Reportes A Lourdes Karina Islas Aguirre [DGGIE]"]
["Dirección General de Gestión de Información y Estudios","DGGIE","240",24021400,"Jefe de Departamento/Consultor/Auditor","Departamento de Reportes B","Ana Julia Jerónimo Gómez","Departamento de Reportes B Ana Julia Jerónimo Gómez [DGGIE]"]
["Dirección General de Gobierno Abierto y Transparencia","DGGAT","330",33000000,"Director General/Jefe de Ponencia/Contralor","Dirección General de Gobierno Abierto y Transparencia","Francisco Raúl Álvarez Córdoba","Dirección General de Gobierno Abierto y Transparencia Francisco Raúl Álvarez Córdoba [DGGAT]"]
["Dirección General de Gobierno Abierto y Transparencia","DGGAT","330",33000001,"Auxiliar","Auxiliar Administrativo","José Francisco Rivera Barrera","Auxiliar Administrativo José Francisco Rivera Barrera [DGGAT]"]
["Dirección General de Gobierno Abierto y Transparencia","DGGAT","330",33000010,"Enlace","Enlace","María Fernanda Gutiérrez Velázquez","Enlace María Fernanda Gutiérrez Velázquez [DGGAT]"]
["Dirección General de Gobierno Abierto y Transparencia","DGGAT","330",33010000,"Director de Área","Dirección de Gobierno Abierto","María José Montiel Cuatlayol","Dirección de Gobierno Abierto María José Montiel Cuatlayol [DGGAT]"]
["Dirección General de Gobierno Abierto y Transparencia","DGGAT","330",33011000,"Subdirector de Área","Subdirección de Políticas de Gobierno Abierto","Eduardo Espinosa Cravioto","Subdirección de Políticas de Gobierno Abierto Eduardo Espinosa Cravioto [DGGAT]"]
["Dirección General de Gobierno Abierto y Transparencia","DGGAT","330",33011100,"Jefe de Departamento/Consultor/Auditor","Departamento de Gobierno Abierto","Jennifer Colín Álvarez","Departamento de Gobierno Abierto Jennifer Colín Álvarez [DGGAT]"]
["Dirección General de Gobierno Abierto y Transparencia","DGGAT","330",33011110,"Enlace","Enlace","Karin Lizet Quiñones Jované","Enlace Karin Lizet Quiñones Jované [DGGAT]"]
["Dirección General de Gobierno Abierto y Transparencia","DGGAT","330",33012000,"Subdirector de Área","Subdirección de Mecanismos de Cocreación","Dionisio Zabaleta Solís","Subdirección de Mecanismos de Cocreación Dionisio Zabaleta Solís [DGGAT]"]
["Dirección General de Gobierno Abierto y Transparencia","DGGAT","330",33012100,"Jefe de Departamento/Consultor/Auditor","Departamento de Mecanismos de Cocreación","José Clemente Poblano García","Departamento de Mecanismos de Cocreación José Clemente Poblano García [DGGAT]"]
["Dirección General de Gobierno Abierto y Transparencia","DGGAT","330",33020000,"Director de Área","Dirección de Transparencia","Ricardo Alexys Valencia Lara","Dirección de Transparencia Ricardo Alexys Valencia Lara [DGGAT]"]
["Dirección General de Gobierno Abierto y Transparencia","DGGAT","330",33021000,"Subdirector de Área","Subdirección de Transparencia","Laura Carolina Arce Sosa","Subdirección de Transparencia Laura Carolina Arce Sosa [DGGAT]"]
["Dirección General de Gobierno Abierto y Transparencia","DGGAT","330",33021100,"Jefe de Departamento/Consultor/Auditor","Departamento de Políticas de Transparencia","María del Carmen López Corona","Departamento de Políticas de Transparencia María del Carmen López Corona [DGGAT]"]
["Dirección General de Gobierno Abierto y Transparencia","DGGAT","330",33021200,"Jefe de Departamento/Consultor/Auditor","Departamento de Mecanismos de  Transparencia ","Vacante","Departamento de Mecanismos de  Transparencia  Vacante [DGGAT]"]
["Dirección General de Gobierno Abierto y Transparencia","DGGAT",{"$f":"MID(D451,1,3)","v":"330"},33021210,"Enlace","Enlace","Samuel Plata Martínez",{"$f":"CONCATENATE(F451,\" \",G451,\" \",\"[\",B451,\"]\")","v":"Enlace Samuel Plata Martínez [DGGAT]"}]
["Dirección General de Investigación y Verificación","DGIV","420",42000000,"Director General/Jefe de Ponencia/Contralor","Dirección General de Investigación y Verificación","Jonathan Mendoza Iserte","Dirección General de Investigación y Verificación Jonathan Mendoza Iserte [DGIV]"]
["Dirección General de Investigación y Verificación","DGIV","420",42000010,"Enlace","Enlace","Sergio Romo Medina","Enlace Sergio Romo Medina [DGIV]"]
["Dirección General de Investigación y Verificación","DGIV","420",42010000,"Director de Área","Dirección de Inspección","José Luis Galarza Esparza","Dirección de Inspección José Luis Galarza Esparza [DGIV]"]
["Dirección General de Investigación y Verificación","DGIV","420",42011000,"Subdirector de Área","Subdirección de Verificación Voluntaria A","Adriana Franco González","Subdirección de Verificación Voluntaria A Adriana Franco González [DGIV]"]
["Dirección General de Investigación y Verificación","DGIV","420",42011100,"Jefe de Departamento/Consultor/Auditor","Departamento de Verificación Voluntaria A","Andrei Pérez Rodríguez","Departamento de Verificación Voluntaria A Andrei Pérez Rodríguez [DGIV]"]
["Dirección General de Investigación y Verificación","DGIV","420",42011200,"Jefe de Departamento/Consultor/Auditor","Departamento de Verificación Voluntaria B","Rosa María Angeles  Núñez ","Departamento de Verificación Voluntaria B Rosa María Angeles  Núñez  [DGIV]"]
["Dirección General de Investigación y Verificación","DGIV","420",42012000,"Subdirector de Área","Subdirección de Verificación Voluntaria B","Jorge Eduardo Ochoa Medina","Subdirección de Verificación Voluntaria B Jorge Eduardo Ochoa Medina [DGIV]"]
["Dirección General de Investigación y Verificación","DGIV","420",42012100,"Jefe de Departamento/Consultor/Auditor","Departamento de Verificación Voluntaria C","Susana Alonso Salinas","Departamento de Verificación Voluntaria C Susana Alonso Salinas [DGIV]"]
["Dirección General de Investigación y Verificación","DGIV","420",42013000,"Subdirector de Área","Subdirección de Verificación Voluntaria C","Elihu Saavedra Crespi ","Subdirección de Verificación Voluntaria C Elihu Saavedra Crespi  [DGIV]"]
["Dirección General de Investigación y Verificación","DGIV","420",42013100,"Jefe de Departamento/Consultor/Auditor","Departamento de Verificación Voluntaria D","Marcial Martínez Sanabria","Departamento de Verificación Voluntaria D Marcial Martínez Sanabria [DGIV]"]
["Dirección General de Investigación y Verificación","DGIV","420",42020000,"Director de Área","Dirección de Investigación","Sergio Rubén Ibarra Casas","Dirección de Investigación Sergio Rubén Ibarra Casas [DGIV]"]
["Dirección General de Investigación y Verificación","DGIV","420",42021000,"Subdirector de Área","Subdirección de Investigación A","Sergio Martínez Mendoza","Subdirección de Investigación A Sergio Martínez Mendoza [DGIV]"]
["Dirección General de Investigación y Verificación","DGIV","420",42021100,"Jefe de Departamento/Consultor/Auditor","Departamento de Investigación A","Maribel Téllez Sosa","Departamento de Investigación A Maribel Téllez Sosa [DGIV]"]
["Dirección General de Investigación y Verificación","DGIV","420",42022000,"Subdirector de Área","Subdirección de Investigación B","Margarito Flores Juárez","Subdirección de Investigación B Margarito Flores Juárez [DGIV]"]
["Dirección General de Investigación y Verificación","DGIV","420",42022100,"Jefe de Departamento/Consultor/Auditor","Departamento de Investigación B","Iván Santos Vázquez","Departamento de Investigación B Iván Santos Vázquez [DGIV]"]
["Dirección General de Investigación y Verificación","DGIV","420",42030000,"Director de Área","Dirección de Verificación","Armando Ortíz González","Dirección de Verificación Armando Ortíz González [DGIV]"]
["Dirección General de Investigación y Verificación","DGIV","420",42031000,"Subdirector de Área","Subdirección de Verificación en Materia de Datos Personales A","César Hernández Tufiño","Subdirección de Verificación en Materia de Datos Personales A César Hernández Tufiño [DGIV]"]
["Dirección General de Investigación y Verificación","DGIV","420",42031100,"Jefe de Departamento/Consultor/Auditor","Departamento de Verificación en Materia de Datos Personales A","Ernesto Lara Pérez","Departamento de Verificación en Materia de Datos Personales A Ernesto Lara Pérez [DGIV]"]
["Dirección General de Investigación y Verificación","DGIV","420",42031200,"Jefe de Departamento/Consultor/Auditor","Departamento de Verificación de Materia de Datos Personales B","Ricardo González Carrillo","Departamento de Verificación de Materia de Datos Personales B Ricardo González Carrillo [DGIV]"]
["Dirección General de Investigación y Verificación","DGIV","420",42032000,"Subdirector de Área","Subdirección de Verificación en Materia de Datos Personales B","Yessica Martínez Torres","Subdirección de Verificación en Materia de Datos Personales B Yessica Martínez Torres [DGIV]"]
["Dirección General de Investigación y Verificación","DGIV","420",42032100,"Jefe de Departamento/Consultor/Auditor","Departamento de Verificación en Materia de Datos Personales C","Julio César Angeles  Reyes ","Departamento de Verificación en Materia de Datos Personales C Julio César Angeles  Reyes  [DGIV]"]
["Dirección General de Investigación y Verificación","DGIV","420",42032200,"Jefe de Departamento/Consultor/Auditor","Departamento de Verificación en Materia de Datos Personales D","Rosalinda Josefina Del Carmen De León Zamora","Departamento de Verificación en Materia de Datos Personales D Rosalinda Josefina Del Carmen De León Zamora [DGIV]"]
["Dirección General de Investigación y Verificación","DGIV","420",42040000,"Director de Área","Dirección de Verificación del Sector Público A","Roberto Orozco Martínez","Dirección de Verificación del Sector Público A Roberto Orozco Martínez [DGIV]"]
["Dirección General de Investigación y Verificación","DGIV","420",42041000,"Subdirector de Área","Subdirección de Verificación del Sector Público A","Flor Magdaleno Altamirano","Subdirección de Verificación del Sector Público A Flor Magdaleno Altamirano [DGIV]"]
["Dirección General de Investigación y Verificación","DGIV","420",42041100,"Jefe de Departamento/Consultor/Auditor","Departamento de Verificación del Sector Público A","Francisco Alán García Antúnez","Departamento de Verificación del Sector Público A Francisco Alán García Antúnez [DGIV]"]
["Dirección General de Investigación y Verificación","DGIV","420",42041200,"Jefe de Departamento/Consultor/Auditor","Departamento de Verificación del Sector Público C","Hugo Cruz González","Departamento de Verificación del Sector Público C Hugo Cruz González [DGIV]"]
["Dirección General de Investigación y Verificación","DGIV","420",42042000,"Subdirector de Área","Subdirección de Verificación del Sector Público B","Ricardo Raya Aranda","Subdirección de Verificación del Sector Público B Ricardo Raya Aranda [DGIV]"]
["Dirección General de Investigación y Verificación","DGIV","420",42042100,"Jefe de Departamento/Consultor/Auditor","Departamento de Verificación del Sector Público B","Mary Carmen Vigil Díaz","Departamento de Verificación del Sector Público B Mary Carmen Vigil Díaz [DGIV]"]
["Dirección General de Investigación y Verificación","DGIV","420",42042200,"Jefe de Departamento/Consultor/Auditor","Departamento de Verificación del Sector Público D","Lorena Zintzun Cabrera","Departamento de Verificación del Sector Público D Lorena Zintzun Cabrera [DGIV]"]
["Dirección General de Investigación y Verificación","DGIV","420",42050000,"Director de Área","Dirección de Verificación del Sector Público B","Creación 03-05-2017","Dirección de Verificación del Sector Público B Creación 03-05-2017 [DGIV]"]
["Dirección General de Investigación y Verificación","DGIV","420",42051000,"Subdirector de Área","Subdirección de Verificación del Sector Público C","Creación 03-05-2017","Subdirección de Verificación del Sector Público C Creación 03-05-2017 [DGIV]"]
["Dirección General de Investigación y Verificación","DGIV","420",42051100,"Jefe de Departamento/Consultor/Auditor","Departamento de Verificación del Sector Público E","Creación 03-05-2017","Departamento de Verificación del Sector Público E Creación 03-05-2017 [DGIV]"]
["Dirección General de Normatividad y Consulta","DGNC","410",41000000,"Director General/Jefe de Ponencia/Contralor","Dirección General de Normatividad y Consulta","Edgardo Martínez Rojas","Dirección General de Normatividad y Consulta Edgardo Martínez Rojas [DGNC]"]
["Dirección General de Normatividad y Consulta","DGNC","410",41000010,"Enlace","Enlace","Leticia Reyes Díaz","Enlace Leticia Reyes Díaz [DGNC]"]
["Dirección General de Normatividad y Consulta","DGNC","410",41000020,"Enlace","Enlace","Elliot Esaú Reyes López","Enlace Elliot Esaú Reyes López [DGNC]"]
["Dirección General de Normatividad y Consulta","DGNC","410",41010000,"Director de Área","Dirección de Normatividad y Seguimiento Legislativo","María Guadalupe Manjarrez Segura","Dirección de Normatividad y Seguimiento Legislativo María Guadalupe Manjarrez Segura [DGNC]"]
["Dirección General de Normatividad y Consulta","DGNC","410",41011000,"Subdirector de Área","Subdirección de Prospectiva Regulatoria","Cynthia Raquel Valdivia Tirado","Subdirección de Prospectiva Regulatoria Cynthia Raquel Valdivia Tirado [DGNC]"]
["Dirección General de Normatividad y Consulta","DGNC","410",41011100,"Jefe de Departamento/Consultor/Auditor","Departamento de Prospectiva Regulatoria","Pedro de los Santos Otero","Departamento de Prospectiva Regulatoria Pedro de los Santos Otero [DGNC]"]
["Dirección General de Normatividad y Consulta","DGNC","410",41011110,"Enlace","Enlace","Alma Rocío García Guevara","Enlace Alma Rocío García Guevara [DGNC]"]
["Dirección General de Normatividad y Consulta","DGNC","410",41012000,"Subdirector de Área","Subdirección de Normatividad","Miriam Soto Domínguez","Subdirección de Normatividad Miriam Soto Domínguez [DGNC]"]
["Dirección General de Normatividad y Consulta","DGNC","410",41012100,"Jefe de Departamento/Consultor/Auditor","Departamento de Normatividad","Gabriel Espinoza Ibarra","Departamento de Normatividad Gabriel Espinoza Ibarra [DGNC]"]
["Dirección General de Normatividad y Consulta","DGNC","410",41013000,"Subdirector de Área","Subdirección de Análisis","Karina Hernández Cruz","Subdirección de Análisis Karina Hernández Cruz [DGNC]"]
["Dirección General de Normatividad y Consulta","DGNC","410",41013100,"Jefe de Departamento/Consultor/Auditor","Departamento de Análisis A","Mariana Campos Castillo","Departamento de Análisis A Mariana Campos Castillo [DGNC]"]
["Dirección General de Normatividad y Consulta","DGNC","410",41013200,"Jefe de Departamento/Consultor/Auditor","Departamento de Análisis B","Paulina Rivera Reyes","Departamento de Análisis B Paulina Rivera Reyes [DGNC]"]
["Dirección General de Normatividad y Consulta","DGNC","410",41020000,"Director de Área","Dirección de Consulta","Samantha Alcalde Urbina","Dirección de Consulta Samantha Alcalde Urbina [DGNC]"]
["Dirección General de Normatividad y Consulta","DGNC","410",41021000,"Subdirector de Área","Subdirección de Consulta","Edith Erika Cuellar Cruz ","Subdirección de Consulta Edith Erika Cuellar Cruz  [DGNC]"]
["Dirección General de Normatividad y Consulta","DGNC","410",41021010,"Enlace","Enlace","María Fernanda Trejo Vargas","Enlace María Fernanda Trejo Vargas [DGNC]"]
["Dirección General de Normatividad y Consulta","DGNC","410",41021100,"Jefe de Departamento/Consultor/Auditor","Departamento de Consulta","Marisol Ávila Vega","Departamento de Consulta Marisol Ávila Vega [DGNC]"]
["Dirección General de Normatividad y Consulta","DGNC","410",41022000,"Subdirector de Área","Subdirección de Interpretación","Carlos Retana Santamaría","Subdirección de Interpretación Carlos Retana Santamaría [DGNC]"]
["Dirección General de Normatividad y Consulta","DGNC","410",41022010,"Enlace","Enlace","Alejandro Arellano Torres","Enlace Alejandro Arellano Torres [DGNC]"]
["Dirección General de Normatividad y Consulta","DGNC","410",41022020,"Enlace","Enlace","Pamela Hernández Martínez","Enlace Pamela Hernández Martínez [DGNC]"]
["Dirección General de Normatividad y Consulta","DGNC","410",41022100,"Jefe de Departamento/Consultor/Auditor","Departamento de Interpretación A","Karla Berenice Contreras García","Departamento de Interpretación A Karla Berenice Contreras García [DGNC]"]
["Dirección General de Normatividad y Consulta","DGNC","410",41022200,"Jefe de Departamento/Consultor/Auditor","Departamento de Interpretación B","Salvador  Pérez de León Vargas","Departamento de Interpretación B Salvador  Pérez de León Vargas [DGNC]"]
["Dirección General de Normatividad y Consulta","DGNC","410",41023000,"Subdirector de Área","Subdirección de Criterios","Julio Alberto Huerta Anguiano","Subdirección de Criterios Julio Alberto Huerta Anguiano [DGNC]"]
["Dirección General de Normatividad y Consulta","DGNC","410",41023010,"Enlace","Enlace","Alberto Ibarra Peralta","Enlace Alberto Ibarra Peralta [DGNC]"]
["Dirección General de Normatividad y Consulta","DGNC","410",41023020,"Enlace","Enlace","Rodrigo Fuentes Patiño","Enlace Rodrigo Fuentes Patiño [DGNC]"]
["Dirección General de Normatividad y Consulta","DGNC","410",41023100,"Jefe de Departamento/Consultor/Auditor","Departamento de Criterios A","Maricarmen Pérez López","Departamento de Criterios A Maricarmen Pérez López [DGNC]"]
["Dirección General de Normatividad y Consulta","DGNC","410",41023200,"Jefe de Departamento/Consultor/Auditor","Departamento de Criterios B","Cynthia Angélica Rivera Negrete","Departamento de Criterios B Cynthia Angélica Rivera Negrete [DGNC]"]
["Dirección General de Planeación y Desempeño Institucional","DGPDI","180",18000000,"Director General/Jefe de Ponencia/Contralor","Dirección General de Planeación y Desempeño Institucional","Roberto Moreno Herrera","Dirección General de Planeación y Desempeño Institucional Roberto Moreno Herrera [DGPDI]"]
["Dirección General de Planeación y Desempeño Institucional","DGPDI","180",18000001,"Auxiliar","Auxiliar Administrativo","Aldo Iván González Cuevas","Auxiliar Administrativo Aldo Iván González Cuevas [DGPDI]"]
["Dirección General de Planeación y Desempeño Institucional","DGPDI","180",18000010,"Enlace","Enlace","Diana Karina Zamudio Flores","Enlace Diana Karina Zamudio Flores [DGPDI]"]
["Dirección General de Planeación y Desempeño Institucional","DGPDI","180",18010000,"Director de Área","Dirección de Planeación Institucional y Monitoreo","Paulina Vallejos Escalona","Dirección de Planeación Institucional y Monitoreo Paulina Vallejos Escalona [DGPDI]"]
["Dirección General de Planeación y Desempeño Institucional","DGPDI","180",18011000,"Subdirector de Área","Subdirección de Planeación Institucional","María Cristina González González","Subdirección de Planeación Institucional María Cristina González González [DGPDI]"]
["Dirección General de Planeación y Desempeño Institucional","DGPDI",{"$f":"MID(D515,1,3)","v":"180"},18011100,"Jefe de Departamento/Consultor/Auditor","Departamento de Planeación","Stephania Arenal Zamudio",{"$f":"CONCATENATE(F515,\" \",G515,\" \",\"[\",B515,\"]\")","v":"Departamento de Planeación Stephania Arenal Zamudio [DGPDI]"}]
["Dirección General de Planeación y Desempeño Institucional","DGPDI","180",18011200,"Jefe de Departamento/Consultor/Auditor","Departamento de Programación","Ramiro Antonio Maravilla Flores","Departamento de Programación Ramiro Antonio Maravilla Flores [DGPDI]"]
["Dirección General de Planeación y Desempeño Institucional","DGPDI","180",18012000,"Subdirector de Área","Subdirección de Seguimiento Institucional","María Laura Mactzil Zenteno Bonolla","Subdirección de Seguimiento Institucional María Laura Mactzil Zenteno Bonolla [DGPDI]"]
["Dirección General de Planeación y Desempeño Institucional","DGPDI","180",18012010,"Enlace","Enlace","Rogelio Chávez Mejía","Enlace Rogelio Chávez Mejía [DGPDI]"]
["Dirección General de Planeación y Desempeño Institucional","DGPDI","180",18012100,"Jefe de Departamento/Consultor/Auditor","Departamento de Seguimiento","Hugo Ever Díaz Ramos","Departamento de Seguimiento Hugo Ever Díaz Ramos [DGPDI]"]
["Dirección General de Planeación y Desempeño Institucional","DGPDI","180",18020000,"Director de Área","Dirección de Evaluación y Desempeño Institucional","Cristopher Ballinas Valdés","Dirección de Evaluación y Desempeño Institucional Cristopher Ballinas Valdés [DGPDI]"]
["Dirección General de Planeación y Desempeño Institucional","DGPDI","180",18021000,"Subdirector de Área","Subdirección de Análisis de Resultados e Innovación del Desempeño","Alicia Del Carmen López Villamar","Subdirección de Análisis de Resultados e Innovación del Desempeño Alicia Del Carmen López Villamar [DGPDI]"]
["Dirección General de Planeación y Desempeño Institucional","DGPDI","180",18021010,"Enlace","Enlace","Jessica Camacho Jacinto","Enlace Jessica Camacho Jacinto [DGPDI]"]
["Dirección General de Planeación y Desempeño Institucional","DGPDI","180",18021100,"Jefe de Departamento/Consultor/Auditor","Departamento de Análisis de Desempeño","Gustavo Guzmán García","Departamento de Análisis de Desempeño Gustavo Guzmán García [DGPDI]"]
["Dirección General de Planeación y Desempeño Institucional","DGPDI","180",18030000,"Director de Área","Dirección de Derechos Humanos, Igualdad y Género","Elvira García Aguayo","Dirección de Derechos Humanos, Igualdad y Género Elvira García Aguayo [DGPDI]"]
["Dirección General de Planeación y Desempeño Institucional","DGPDI","180",18031000,"Subdirector de Área","Subdirección de Derechos Humanos, Igualdad y Género","Saskia Cabrera Padilla","Subdirección de Derechos Humanos, Igualdad y Género Saskia Cabrera Padilla [DGPDI]"]
["Dirección General de Planeación y Desempeño Institucional","DGPDI","180",18031100,"Jefe de Departamento/Consultor/Auditor","Departamento de Derechos Humanos, Igualdad y Género","Oscar Graciano Aranda Leonel","Departamento de Derechos Humanos, Igualdad y Género Oscar Graciano Aranda Leonel [DGPDI]"]
["Dirección General de Políticas de Acceso","DGPA","310",31000000,"Director General/Jefe de Ponencia/Contralor","Dirección General de Políticas de Acceso","Aarón Alonso Aguilera Valencia","Dirección General de Políticas de Acceso Aarón Alonso Aguilera Valencia [DGPA]"]
["Dirección General de Políticas de Acceso","DGPA","310",31000010,"Enlace","Enlace","José Antonio Herrera García","Enlace José Antonio Herrera García [DGPA]"]
["Dirección General de Políticas de Acceso","DGPA","310",31010000,"Director de Área","Dirección de Desarrollo de Políticas","José Antonio García  Morales","Dirección de Desarrollo de Políticas José Antonio García  Morales [DGPA]"]
["Dirección General de Políticas de Acceso","DGPA","310",31011000,"Subdirector de Área","Subdirección de Desarrollo de Políticas","Jorge Alejandro Acevedo Piña","Subdirección de Desarrollo de Políticas Jorge Alejandro Acevedo Piña [DGPA]"]
["Dirección General de Políticas de Acceso","DGPA","310",31011010,"Enlace","Enlace","Ramón Ezequiel Navarro González","Enlace Ramón Ezequiel Navarro González [DGPA]"]
["Dirección General de Políticas de Acceso","DGPA","310",31011100,"Jefe de Departamento/Consultor/Auditor","Departamento de Análisis","Christian Penélope Peña Guerrero","Departamento de Análisis Christian Penélope Peña Guerrero [DGPA]"]
["Dirección General de Políticas de Acceso","DGPA","310",31012000,"Subdirector de Área","Subdirección de Evaluación de Políticas","Eduardo Erik Ontiveros ","Subdirección de Evaluación de Políticas Eduardo Erik Ontiveros  [DGPA]"]
["Dirección General de Políticas de Acceso","DGPA","310",31012010,"Enlace","Enlace","Yair Alonso Pérez Tamayo","Enlace Yair Alonso Pérez Tamayo [DGPA]"]
["Dirección General de Políticas de Acceso","DGPA","310",31012100,"Jefe de Departamento/Consultor/Auditor","Departamento de Evaluación","Nelly Berenice Rodríguez Mateos","Departamento de Evaluación Nelly Berenice Rodríguez Mateos [DGPA]"]
["Dirección General de Políticas de Acceso","DGPA","310",31020000,"Director de Área","Dirección de Facilitación de Políticas","María Laura Castelazo Díaz Leal","Dirección de Facilitación de Políticas María Laura Castelazo Díaz Leal [DGPA]"]
["Dirección General de Políticas de Acceso","DGPA","310",31021000,"Subdirector de Área","Subdirección de Facilitación","Claudia Araceli Cordero Calleja","Subdirección de Facilitación Claudia Araceli Cordero Calleja [DGPA]"]
["Dirección General de Políticas de Acceso","DGPA","310",31021010,"Enlace","Enlace","Jorge Ariel Morales González","Enlace Jorge Ariel Morales González [DGPA]"]
["Dirección General de Políticas de Acceso","DGPA","310",31021200,"Jefe de Departamento/Consultor/Auditor","Departamento de Facilitación","Lilián Anaya Cárdenas","Departamento de Facilitación Lilián Anaya Cárdenas [DGPA]"]
["Dirección General de Prevención y Autorregulación","DGPAR","440",44000000,"Director General/Jefe de Ponencia/Contralor","Dirección General de Prevención y Autorregulación","María Adriana Báez Ricárdez","Dirección General de Prevención y Autorregulación María Adriana Báez Ricárdez [DGPAR]"]
["Dirección General de Prevención y Autorregulación","DGPAR","440",44000010,"Enlace","Enlace","José Luis González Pérez","Enlace José Luis González Pérez [DGPAR]"]
["Dirección General de Prevención y Autorregulación","DGPAR","440",44000100,"Jefe de Departamento/Consultor/Auditor","Departamento de Seguimiento","Daniela Tirado Rubio","Departamento de Seguimiento Daniela Tirado Rubio [DGPAR]"]
["Dirección General de Prevención y Autorregulación","DGPAR","440",44010000,"Director de Área","Dirección de Seguridad de Datos Personales del Sector Privado","Arturo Álvarez Villa","Dirección de Seguridad de Datos Personales del Sector Privado Arturo Álvarez Villa [DGPAR]"]
["Dirección General de Prevención y Autorregulación","DGPAR","440",44011000,"Subdirector de Área","Subdirección de Seguridad de Datos Personales del Sector Privado","Antonio Montalvo García","Subdirección de Seguridad de Datos Personales del Sector Privado Antonio Montalvo García [DGPAR]"]
["Dirección General de Prevención y Autorregulación","DGPAR","440",44011100,"Jefe de Departamento/Consultor/Auditor","Departamento de  Seguridad de Datos Personales del Sector Privado","Antonio Aarón Avalos De Anda","Departamento de  Seguridad de Datos Personales del Sector Privado Antonio Aarón Avalos De Anda [DGPAR]"]
["Dirección General de Prevención y Autorregulación","DGPAR","440",44020000,"Director de Área","Dirección de Facilitación del Sector Privado","Miriam Caballero Vargas","Dirección de Facilitación del Sector Privado Miriam Caballero Vargas [DGPAR]"]
["Dirección General de Prevención y Autorregulación","DGPAR","440",44021000,"Subdirector de Área","Subdirección de Facilitación del Sector Privado","María Teresa Lagunes Mendoza","Subdirección de Facilitación del Sector Privado María Teresa Lagunes Mendoza [DGPAR]"]
["Dirección General de Prevención y Autorregulación","DGPAR","440",44021100,"Jefe de Departamento/Consultor/Auditor","Departamento de Facilitación del Sector Privado","Omar Martínez Cosain","Departamento de Facilitación del Sector Privado Omar Martínez Cosain [DGPAR]"]
["Dirección General de Prevención y Autorregulación","DGPAR","440",44030000,"Director de Área","Dirección de Autorregulación y Auditorias Voluntarias","Melissa Higuera Pérez","Dirección de Autorregulación y Auditorias Voluntarias Melissa Higuera Pérez [DGPAR]"]
["Dirección General de Prevención y Autorregulación","DGPAR","440",44031000,"Subdirector de Área","Subdirección de Autorregulación del Sector Privado","Mariana Gómez Rodríguez","Subdirección de Autorregulación del Sector Privado Mariana Gómez Rodríguez [DGPAR]"]
["Dirección General de Prevención y Autorregulación","DGPAR","440",44031100,"Jefe de Departamento/Consultor/Auditor","Departamento de Autorregulación del Sector Privado","Ana Celia Belmont Pérez","Departamento de Autorregulación del Sector Privado Ana Celia Belmont Pérez [DGPAR]"]
["Dirección General de Prevención y Autorregulación","DGPAR","440",44032000,"Subdirector de Área","Subdirección de Mejores Prácticas del Sector Público","Juan Armando Becerra Gutiérrez","Subdirección de Mejores Prácticas del Sector Público Juan Armando Becerra Gutiérrez [DGPAR]"]
["Dirección General de Prevención y Autorregulación","DGPAR","440",44032100,"Jefe de Departamento/Consultor/Auditor","Departamento de Mejores Prácticas del Sector Público","Adriana Angélica Meza Mejía","Departamento de Mejores Prácticas del Sector Público Adriana Angélica Meza Mejía [DGPAR]"]
["Dirección General de Prevención y Autorregulación","DGPAR","440",44033000,"Subdirector de Área","Subdirección de Auditorías Voluntarias","Creación 03-05-2017","Subdirección de Auditorías Voluntarias Creación 03-05-2017 [DGPAR]"]
["Dirección General de Prevención y Autorregulación","DGPAR","440",44033100,"Jefe de Departamento/Consultor/Auditor","Departamento de Auditorías Voluntarias","Creación 03-05-2017","Departamento de Auditorías Voluntarias Creación 03-05-2017 [DGPAR]"]
["Dirección General de Prevención y Autorregulación","DGPAR","440",44040000,"Director de Área","Dirección de Facilitación del Sector Público","Noé Adolfo Riande Juárez","Dirección de Facilitación del Sector Público Noé Adolfo Riande Juárez [DGPAR]"]
["Dirección General de Prevención y Autorregulación","DGPAR","440",44041000,"Subdirector de Área","Subdirección de Facilitación del Sector Público","Claudia González Orozco","Subdirección de Facilitación del Sector Público Claudia González Orozco [DGPAR]"]
["Dirección General de Prevención y Autorregulación","DGPAR","440",44041100,"Jefe de Departamento/Consultor/Auditor","Departamento de Facilitación del Sector Público","Agustín Granados Tzintzun","Departamento de Facilitación del Sector Público Agustín Granados Tzintzun [DGPAR]"]
["Dirección General de Prevención y Autorregulación","DGPAR","440",44050000,"Director de Área","Dirección de Seguridad de Datos Personales del Sector Público","Creación 03-05-2017","Dirección de Seguridad de Datos Personales del Sector Público Creación 03-05-2017 [DGPAR]"]
["Dirección General de Prevención y Autorregulación","DGPAR","440",44051000,"Subdirector de Área","Subdirección de Seguridad de Datos Personales del Sector Público","Noemí Karina  González Vergara","Subdirección de Seguridad de Datos Personales del Sector Público Noemí Karina  González Vergara [DGPAR]"]
["Dirección General de Prevención y Autorregulación","DGPAR","440",44051100,"Jefe de Departamento/Consultor/Auditor","Departamento de  Seguridad de Datos Personales del Sector Público","Erwin Francisco Bautista Gaytán","Departamento de  Seguridad de Datos Personales del Sector Público Erwin Francisco Bautista Gaytán [DGPAR]"]
["Dirección General de Promoción y Vinculación con la Sociedad","DGPVS","260",26000000,"Director General/Jefe de Ponencia/Contralor","Dirección General de Promoción y Vinculación con la Sociedad","Cristobal Robles López","Dirección General de Promoción y Vinculación con la Sociedad Cristobal Robles López [DGPVS]"]
["Dirección General de Promoción y Vinculación con la Sociedad","DGPVS","260",26000001,"Auxiliar","Auxiliar Administrativo","Vacante","Auxiliar Administrativo Vacante [DGPVS]"]
["Dirección General de Promoción y Vinculación con la Sociedad","DGPVS","260",26000010,"Enlace","Enlace","Marleth Aleisa Velázquez Barrón","Enlace Marleth Aleisa Velázquez Barrón [DGPVS]"]
["Dirección General de Promoción y Vinculación con la Sociedad","DGPVS","260",26010000,"Director de Área","Dirección de Promoción","Isaúl Moreno Gómez","Dirección de Promoción Isaúl Moreno Gómez [DGPVS]"]
["Dirección General de Promoción y Vinculación con la Sociedad","DGPVS","260",26011000,"Subdirector de Área","Subdirección de Promoción y Vinculación con el Sector Público","María de Lourdes Antonioli Ortíz","Subdirección de Promoción y Vinculación con el Sector Público María de Lourdes Antonioli Ortíz [DGPVS]"]
["Dirección General de Promoción y Vinculación con la Sociedad","DGPVS","260",26011010,"Enlace","Enlace","René Jiménez Flores","Enlace René Jiménez Flores [DGPVS]"]
["Dirección General de Promoción y Vinculación con la Sociedad","DGPVS","260",26011100,"Jefe de Departamento/Consultor/Auditor","Departamento de Promoción y Seguimiento A","Alejandro Torres Sandoval","Departamento de Promoción y Seguimiento A Alejandro Torres Sandoval [DGPVS]"]
["Dirección General de Promoción y Vinculación con la Sociedad","DGPVS","260",26011200,"Jefe de Departamento/Consultor/Auditor","Departamento de Promoción y Seguimiento B","Vacante","Departamento de Promoción y Seguimiento B Vacante [DGPVS]"]
["Dirección General de Promoción y Vinculación con la Sociedad","DGPVS","260",26012000,"Subdirector de Área","Subdirección de Promoción y Vinculación con el Sector Privado","Jorge Rogelio Mayés Villarreal","Subdirección de Promoción y Vinculación con el Sector Privado Jorge Rogelio Mayés Villarreal [DGPVS]"]
["Dirección General de Promoción y Vinculación con la Sociedad","DGPVS","260",26012100,"Jefe de Departamento/Consultor/Auditor","Departamento de Promoción y Seguimiento C","Angélica Gay Arellano ","Departamento de Promoción y Seguimiento C Angélica Gay Arellano  [DGPVS]"]
["Dirección General de Promoción y Vinculación con la Sociedad","DGPVS","260",26020000,"Director de Área","Dirección de Vinculación con la Sociedad","Rocio Juana González Higuera","Dirección de Vinculación con la Sociedad Rocio Juana González Higuera [DGPVS]"]
["Dirección General de Promoción y Vinculación con la Sociedad","DGPVS","260",26021000,"Subdirector de Área","Subdirección de Enlace con la Sociedad Organizada","Ixchel Cruz Cisneros","Subdirección de Enlace con la Sociedad Organizada Ixchel Cruz Cisneros [DGPVS]"]
["Dirección General de Promoción y Vinculación con la Sociedad","DGPVS","260",26021100,"Jefe de Departamento/Consultor/Auditor","Departamento de Promoción A","Luz Ariadna Deseusa Morales","Departamento de Promoción A Luz Ariadna Deseusa Morales [DGPVS]"]
["Dirección General de Promoción y Vinculación con la Sociedad","DGPVS","260",26021200,"Jefe de Departamento/Consultor/Auditor","Departamento de Promoción B","Sebastian Perlín-Vital Ayala","Departamento de Promoción B Sebastian Perlín-Vital Ayala [DGPVS]"]
["Dirección General de Promoción y Vinculación con la Sociedad","DGPVS","260",26022000,"Subdirector de Área","Subdirección de Enlace con el Sector Privado","José de Jesús Andrés Sánchez Chimal","Subdirección de Enlace con el Sector Privado José de Jesús Andrés Sánchez Chimal [DGPVS]"]
["Dirección General de Promoción y Vinculación con la Sociedad","DGPVS","260",26022010,"Enlace","Enlace","Marja Citlalli Alvarado Rodríguez","Enlace Marja Citlalli Alvarado Rodríguez [DGPVS]"]
["Dirección General de Promoción y Vinculación con la Sociedad","DGPVS","260",26022100,"Jefe de Departamento/Consultor/Auditor","Departamento de Promoción C","María Soledad Rodrigo","Departamento de Promoción C María Soledad Rodrigo [DGPVS]"]
["Dirección General de Promoción y Vinculación con la Sociedad","DGPVS",{"$f":"MID(D579,1,3)","v":"260"},26030000,"Director de Área","Dirección del Centro de Atención a la Sociedad","Gema Sehyla Ramírez Ricárdez",{"$f":"CONCATENATE(F579,\" \",G579,\" \",\"[\",B579,\"]\")","v":"Dirección del Centro de Atención a la Sociedad Gema Sehyla Ramírez Ricárdez [DGPVS]"}]
["Dirección General de Promoción y Vinculación con la Sociedad","DGPVS","260",26031000,"Subdirector de Área","Subdirección de Atención a la Sociedad ","Irene López Varela","Subdirección de Atención a la Sociedad  Irene López Varela [DGPVS]"]
["Dirección General de Promoción y Vinculación con la Sociedad","DGPVS","260",26031100,"Jefe de Departamento/Consultor/Auditor","Departamento de Atención a la Sociedad A","Gustavo Anzaldo García","Departamento de Atención a la Sociedad A Gustavo Anzaldo García [DGPVS]"]
["Dirección General de Promoción y Vinculación con la Sociedad","DGPVS","260",26031200,"Jefe de Departamento/Consultor/Auditor","Departamento de Atención a la Sociedad B","Sandra Huerta Romero","Departamento de Atención a la Sociedad B Sandra Huerta Romero [DGPVS]"]
["Dirección General de Promoción y Vinculación con la Sociedad","DGPVS","260",26031210,"Enlace","Enlace","Melisa Arroyo Cheang Chao","Enlace Melisa Arroyo Cheang Chao [DGPVS]"]
["Dirección General de Promoción y Vinculación con la Sociedad","DGPVS","260",26031211,"Auxiliar","Auxiliar Administrativo","Rodolfo Díaz Hernández","Auxiliar Administrativo Rodolfo Díaz Hernández [DGPVS]"]
["Dirección General de Promoción y Vinculación con la Sociedad","DGPVS","260",26031212,"Auxiliar","Auxiliar Administrativo","Norma Nalleli Barrera García","Auxiliar Administrativo Norma Nalleli Barrera García [DGPVS]"]
["Dirección General de Promoción y Vinculación con la Sociedad","DGPVS","260",26031213,"Auxiliar","Auxiliar Administrativo","Patricia Alvirde Ramírez","Auxiliar Administrativo Patricia Alvirde Ramírez [DGPVS]"]
["Dirección General de Promoción y Vinculación con la Sociedad","DGPVS","260",26031220,"Enlace","Enlace","Laura Ibeth Juárez Rivera","Enlace Laura Ibeth Juárez Rivera [DGPVS]"]
["Dirección General de Promoción y Vinculación con la Sociedad","DGPVS","260",26031221,"Auxiliar","Auxiliar Administrativo","David Nájera Mondragón","Auxiliar Administrativo David Nájera Mondragón [DGPVS]"]
["Dirección General de Promoción y Vinculación con la Sociedad","DGPVS","260",26031222,"Auxiliar","Auxiliar Administrativo","Yazmin Adriana Sánchez Maldonado","Auxiliar Administrativo Yazmin Adriana Sánchez Maldonado [DGPVS]"]
["Dirección General de Promoción y Vinculación con la Sociedad","DGPVS","260",26031223,"Auxiliar","Auxiliar Administrativo","Ángel Gerardo Dávalos Rodríguez","Auxiliar Administrativo Ángel Gerardo Dávalos Rodríguez [DGPVS]"]
["Dirección General de Promoción y Vinculación con la Sociedad","DGPVS","260",26031230,"Enlace","Enlace","Jesús Fernando Sánchez Jiménez","Enlace Jesús Fernando Sánchez Jiménez [DGPVS]"]
["Dirección General de Promoción y Vinculación con la Sociedad","DGPVS","260",26031231,"Auxiliar","Auxiliar Administrativo","German César Calixto Cortéz","Auxiliar Administrativo German César Calixto Cortéz [DGPVS]"]
["Dirección General de Promoción y Vinculación con la Sociedad","DGPVS","260",26031232,"Auxiliar","Auxiliar Administrativo","Rosario Adriana López Zavala","Auxiliar Administrativo Rosario Adriana López Zavala [DGPVS]"]
["Dirección General de Promoción y Vinculación con la Sociedad","DGPVS","260",26031233,"Auxiliar","Auxiliar Administrativo","Carlos Mendoza Oliva","Auxiliar Administrativo Carlos Mendoza Oliva [DGPVS]"]
["Dirección General de Protección de Derechos y Sanción","DGPDS","430",43000000,"Director General/Jefe de Ponencia/Contralor","Dirección General de Protección de Derechos y Sanción","Fernando Sosa Pastrana","Dirección General de Protección de Derechos y Sanción Fernando Sosa Pastrana [DGPDS]"]
["Dirección General de Protección de Derechos y Sanción","DGPDS","430",43000010,"Enlace","Enlace","Cristina Eugenia Bocanegra Andrade","Enlace Cristina Eugenia Bocanegra Andrade [DGPDS]"]
["Dirección General de Protección de Derechos y Sanción","DGPDS","430",43010000,"Director de Área","Dirección de Sustanciación de Protección de Derechos A","Bruno Noé  Vite Ángeles","Dirección de Sustanciación de Protección de Derechos A Bruno Noé  Vite Ángeles [DGPDS]"]
["Dirección General de Protección de Derechos y Sanción","DGPDS","430",43011000,"Subdirector de Área","Subdirección de Conciliación Local","Jonatan Romero Ayala","Subdirección de Conciliación Local Jonatan Romero Ayala [DGPDS]"]
["Dirección General de Protección de Derechos y Sanción","DGPDS","430",43011100,"Jefe de Departamento/Consultor/Auditor","Departamento de Audiencias A","Rebeca Hernández Zamora","Departamento de Audiencias A Rebeca Hernández Zamora [DGPDS]"]
["Dirección General de Protección de Derechos y Sanción","DGPDS","430",43011110,"Enlace","Enlace","Alejandra Karina Juárez Reyes","Enlace Alejandra Karina Juárez Reyes [DGPDS]"]
["Dirección General de Protección de Derechos y Sanción","DGPDS","430",43012000,"Subdirector de Área","Subdirección de Sustanciación A","Miriam Hernández Fajardo","Subdirección de Sustanciación A Miriam Hernández Fajardo [DGPDS]"]
["Dirección General de Protección de Derechos y Sanción","DGPDS","430",43012100,"Jefe de Departamento/Consultor/Auditor","Departamento de Atención Procesal A","Lorena Navarro Manzanilla","Departamento de Atención Procesal A Lorena Navarro Manzanilla [DGPDS]"]
["Dirección General de Protección de Derechos y Sanción","DGPDS","430",43013000,"Subdirector de Área","Subdirección de Resolución y Control A","Gerardo Salvador Castillo Velasco","Subdirección de Resolución y Control A Gerardo Salvador Castillo Velasco [DGPDS]"]
["Dirección General de Protección de Derechos y Sanción","DGPDS","430",43013100,"Jefe de Departamento/Consultor/Auditor","Departamento de Proyectos A","Héctor Amador Romo","Departamento de Proyectos A Héctor Amador Romo [DGPDS]"]
["Dirección General de Protección de Derechos y Sanción","DGPDS","430",43014000,"Subdirector de Área","Subdirección de Protección de Derechos","Claudia Graciela Domínguez Álvarez","Subdirección de Protección de Derechos Claudia Graciela Domínguez Álvarez [DGPDS]"]
["Dirección General de Protección de Derechos y Sanción","DGPDS","430",43014100,"Jefe de Departamento/Consultor/Auditor","Departamento de Protección de Derechos","Ana Belem Hernández González","Departamento de Protección de Derechos Ana Belem Hernández González [DGPDS]"]
["Dirección General de Protección de Derechos y Sanción","DGPDS","430",43020000,"Director de Área","Dirección de Sustanciación de Protección de Derechos B","Luis Bazán Beraud","Dirección de Sustanciación de Protección de Derechos B Luis Bazán Beraud [DGPDS]"]
["Dirección General de Protección de Derechos y Sanción","DGPDS","430",43021000,"Subdirector de Área","Subdirección de Conciliación Foránea","Graciela Morales Elías","Subdirección de Conciliación Foránea Graciela Morales Elías [DGPDS]"]
["Dirección General de Protección de Derechos y Sanción","DGPDS","430",43021100,"Jefe de Departamento/Consultor/Auditor","Departamento de Audiencias B","Aneliz Vargas Paz ","Departamento de Audiencias B Aneliz Vargas Paz  [DGPDS]"]
["Dirección General de Protección de Derechos y Sanción","DGPDS","430",43022000,"Subdirector de Área","Subdirección de Sustanciación B","Mariajosé González Zarzosa","Subdirección de Sustanciación B Mariajosé González Zarzosa [DGPDS]"]
["Dirección General de Protección de Derechos y Sanción","DGPDS","430",43022100,"Jefe de Departamento/Consultor/Auditor","Departamento de Atención Procesal B","Rosa Isabel Buenrostro Rueda","Departamento de Atención Procesal B Rosa Isabel Buenrostro Rueda [DGPDS]"]
["Dirección General de Protección de Derechos y Sanción","DGPDS","430",43023000,"Subdirector de Área","Subdirección de Resolución y Control B","Rodrigo Pérez Espinosa","Subdirección de Resolución y Control B Rodrigo Pérez Espinosa [DGPDS]"]
["Dirección General de Protección de Derechos y Sanción","DGPDS","430",43023100,"Jefe de Departamento/Consultor/Auditor","Departamento de Proyectos B","Miguel Ángel Yonemoto Hernández","Departamento de Proyectos B Miguel Ángel Yonemoto Hernández [DGPDS]"]
["Dirección General de Protección de Derechos y Sanción","DGPDS","430",43023110,"Enlace","Enlace","José Rafael Gutiérrez Estrada","Enlace José Rafael Gutiérrez Estrada [DGPDS]"]
["Dirección General de Protección de Derechos y Sanción","DGPDS","430",43030000,"Director de Área","Dirección de Sanciones","Claudio Romero Velasco","Dirección de Sanciones Claudio Romero Velasco [DGPDS]"]
["Dirección General de Protección de Derechos y Sanción","DGPDS","430",43031000,"Subdirector de Área","Subdirección de Resoluciones en Materia de Protección de Derechos","María Elena Ojeda Cruz ","Subdirección de Resoluciones en Materia de Protección de Derechos María Elena Ojeda Cruz  [DGPDS]"]
["Dirección General de Protección de Derechos y Sanción","DGPDS","430",43031100,"Jefe de Departamento/Consultor/Auditor","Departamento de Sustanciación y Proyectos A","Yeshu Hernández Barrera","Departamento de Sustanciación y Proyectos A Yeshu Hernández Barrera [DGPDS]"]
["Dirección General de Protección de Derechos y Sanción","DGPDS","430",43031110,"Enlace","Enlace","Leticia Martínez Benítez","Enlace Leticia Martínez Benítez [DGPDS]"]
["Dirección General de Protección de Derechos y Sanción","DGPDS","430",43032000,"Subdirector de Área","Subdirección de Resoluciones en Materia de Verificación","Lorena Pichardo Flores","Subdirección de Resoluciones en Materia de Verificación Lorena Pichardo Flores [DGPDS]"]
["Dirección General de Protección de Derechos y Sanción","DGPDS","430",43032100,"Jefe de Departamento/Consultor/Auditor","Departamento de Sustanciación y Proyectos B","Miguel Eladio Olivares  Guzman ","Departamento de Sustanciación y Proyectos B Miguel Eladio Olivares  Guzman  [DGPDS]"]
["Dirección General de Protección de Derechos y Sanción","DGPDS","430",43033000,"Subdirector de Área","Subdirección de Sanciones A","José Manuel Alcalá Hernández","Subdirección de Sanciones A José Manuel Alcalá Hernández [DGPDS]"]
["Dirección General de Protección de Derechos y Sanción","DGPDS","430",43033100,"Jefe de Departamento/Consultor/Auditor","Departamento de Sanciones A","Edgar Brust Vite","Departamento de Sanciones A Edgar Brust Vite [DGPDS]"]
["Dirección General de Protección de Derechos y Sanción","DGPDS","430",43034000,"Subdirector de Área","Subdirección de Sanciones B","Guadalupe Santiago Juárez","Subdirección de Sanciones B Guadalupe Santiago Juárez [DGPDS]"]
["Dirección General de Protección de Derechos y Sanción","DGPDS","430",43034100,"Jefe de Departamento/Consultor/Auditor","Departamento de Sanciones B","Sonia Eréndira Magdalena Reyes Godínez","Departamento de Sanciones B Sonia Eréndira Magdalena Reyes Godínez [DGPDS]"]
["Dirección General de Tecnologías de la Información","DGTI","230",23000000,"Director General/Jefe de Ponencia/Contralor","Dirección General de Tecnologías de la Información","José Luis Hernández Santana","Dirección General de Tecnologías de la Información José Luis Hernández Santana [DGTI]"]
["Dirección General de Tecnologías de la Información","DGTI","230",23000010,"Enlace","Enlace","Heidi Cruz Cruz","Enlace Heidi Cruz Cruz [DGTI]"]
["Dirección General de Tecnologías de la Información","DGTI","230",23000020,"Enlace","Enlace","Elsa Vanessa Hernández Basurto","Enlace Elsa Vanessa Hernández Basurto [DGTI]"]
["Dirección General de Tecnologías de la Información","DGTI","230",23010000,"Director de Área","Dirección de Sistemas","José Ángel Esparza Portugal","Dirección de Sistemas José Ángel Esparza Portugal [DGTI]"]
["Dirección General de Tecnologías de la Información","DGTI","230",23011000,"Subdirector de Área","Subdirección de Sistemas de Acceso a la Información","Hiriam Eduardo Pérez Vidal","Subdirección de Sistemas de Acceso a la Información Hiriam Eduardo Pérez Vidal [DGTI]"]
["Dirección General de Tecnologías de la Información","DGTI","230",23011100,"Jefe de Departamento/Consultor/Auditor","Departamento de Sistemas de Acceso a la Información","Juan Carlos Chávez García","Departamento de Sistemas de Acceso a la Información Juan Carlos Chávez García [DGTI]"]
["Dirección General de Tecnologías de la Información","DGTI","230",23011200,"Jefe de Departamento/Consultor/Auditor","Departamento de Desarrollo de Sistemas","Rafael González García","Departamento de Desarrollo de Sistemas Rafael González García [DGTI]"]
["Dirección General de Tecnologías de la Información","DGTI","230",23012000,"Subdirector de Área","Subdirección de Sistemas de Protección de Datos","Oscar Enrique Vilalta Morón","Subdirección de Sistemas de Protección de Datos Oscar Enrique Vilalta Morón [DGTI]"]
["Dirección General de Tecnologías de la Información","DGTI","230",23012010,"Enlace","Enlace","Roberto Villeda Avendaño","Enlace Roberto Villeda Avendaño [DGTI]"]
["Dirección General de Tecnologías de la Información","DGTI","230",23012100,"Jefe de Departamento/Consultor/Auditor","Departamento de Desarrollo de Sistemas de Protección de Datos","Luis Ignacio Reséndiz Sánchez","Departamento de Desarrollo de Sistemas de Protección de Datos Luis Ignacio Reséndiz Sánchez [DGTI]"]
["Dirección General de Tecnologías de la Información","DGTI","230",23013000,"Subdirector de Área","Subdirección de Aplicaciones Web","Anel Morales Regalado","Subdirección de Aplicaciones Web Anel Morales Regalado [DGTI]"]
["Dirección General de Tecnologías de la Información","DGTI","230",23013100,"Jefe de Departamento/Consultor/Auditor","Departamento de Aplicaciones Web A","Juan Carlos López Rivera","Departamento de Aplicaciones Web A Juan Carlos López Rivera [DGTI]"]
["Dirección General de Tecnologías de la Información","DGTI","230",23013200,"Jefe de Departamento/Consultor/Auditor","Departamento de Aplicaciones Web B","Nayelly Sánchez Jardón","Departamento de Aplicaciones Web B Nayelly Sánchez Jardón [DGTI]"]
["Dirección General de Tecnologías de la Información","DGTI","230",23014000,"Subdirector de Área","Subdirección de Soluciones Tecnologías","Creación 03-05-2017","Subdirección de Soluciones Tecnologías Creación 03-05-2017 [DGTI]"]
["Dirección General de Tecnologías de la Información","DGTI","230",23015000,"Subdirector de Área","Subdirección de Sistemas de Información","Creación 03-05-2017","Subdirección de Sistemas de Información Creación 03-05-2017 [DGTI]"]
["Dirección General de Tecnologías de la Información","DGTI","230",23020000,"Director de Área","Dirección de Soluciones Tecnológicas","José Guillermo Preciado López","Dirección de Soluciones Tecnológicas José Guillermo Preciado López [DGTI]"]
["Dirección General de Tecnologías de la Información","DGTI","230",23021000,"Subdirector de Área","Subdirección de Operaciones","José Andrés Franco Bejarano","Subdirección de Operaciones José Andrés Franco Bejarano [DGTI]"]
["Dirección General de Tecnologías de la Información","DGTI","230",23021100,"Jefe de Departamento/Consultor/Auditor","Departamento de Telecomunicaciones","César Antonio Martínez Olivares","Departamento de Telecomunicaciones César Antonio Martínez Olivares [DGTI]"]
["Dirección General de Tecnologías de la Información","DGTI",{"$f":"MID(D643,1,3)","v":"230"},23021110,"Enlace","Enlace","Felipe Ernesto Quintero Pulido",{"$f":"CONCATENATE(F643,\" \",G643,\" \",\"[\",B643,\"]\")","v":"Enlace Felipe Ernesto Quintero Pulido [DGTI]"}]
["Dirección General de Tecnologías de la Información","DGTI","230",23021111,"Auxiliar","Auxiliar Administrativo","Carlos Adrián Hernández Cabañas","Auxiliar Administrativo Carlos Adrián Hernández Cabañas [DGTI]"]
["Dirección General de Tecnologías de la Información","DGTI","230",23021112,"Auxiliar","Auxiliar Administrativo","Wilmer Omar De la Rosa Fragoso","Auxiliar Administrativo Wilmer Omar De la Rosa Fragoso [DGTI]"]
["Dirección General de Tecnologías de la Información","DGTI","230",23021113,"Auxiliar","Auxiliar Administrativo","Lakmee Adriana Orta Lobato","Auxiliar Administrativo Lakmee Adriana Orta Lobato [DGTI]"]
["Dirección General de Tecnologías de la Información","DGTI","230",23021114,"Auxiliar","Auxiliar Administrativo","Jacqueline Morales Álvarez","Auxiliar Administrativo Jacqueline Morales Álvarez [DGTI]"]
["Dirección General de Tecnologías de la Información","DGTI","230",23021160,"Enlace","Enlace","Guillermo Téllez Guerrero","Enlace Guillermo Téllez Guerrero [DGTI]"]
["Dirección General de Tecnologías de la Información","DGTI","230",23021200,"Jefe de Departamento/Consultor/Auditor","Departamento de Operación y Mantenimiento del Ambiente Físico","Santiago Covarrubias Ortiz","Departamento de Operación y Mantenimiento del Ambiente Físico Santiago Covarrubias Ortiz [DGTI]"]
["Dirección General de Tecnologías de la Información","DGTI","230",23021300,"Jefe de Departamento/Consultor/Auditor","Departamento de Soporte Técnico de Asistencia a Escritorio","Rolando Razo Rojas","Departamento de Soporte Técnico de Asistencia a Escritorio Rolando Razo Rojas [DGTI]"]
["Dirección General de Tecnologías de la Información","DGTI","230",23022000,"Subdirector de Área","Subdirección de Calidad e Implantación","Carina Guadalupe Sarabia Delgado","Subdirección de Calidad e Implantación Carina Guadalupe Sarabia Delgado [DGTI]"]
["Dirección General de Tecnologías de la Información","DGTI","230",23022010,"Enlace","Enlace","Fidel Lenin Lemus Arrona","Enlace Fidel Lenin Lemus Arrona [DGTI]"]
["Dirección General de Tecnologías de la Información","DGTI","230",23022100,"Jefe de Departamento/Consultor/Auditor","Departamento de Calidad de Soluciones Tecnológicas","Víctor Manuel Huerta González","Departamento de Calidad de Soluciones Tecnológicas Víctor Manuel Huerta González [DGTI]"]
["Dirección General de Tecnologías de la Información","DGTI","230",23023000,"Subdirector de Área","Subdirección de Seguridad de la Información","Oskar Raol Campos García","Subdirección de Seguridad de la Información Oskar Raol Campos García [DGTI]"]
["Dirección General de Tecnologías de la Información","DGTI","230",23023100,"Jefe de Departamento/Consultor/Auditor","Departamento de Seguridad de la Información A","Manuel Sánchez Meza ","Departamento de Seguridad de la Información A Manuel Sánchez Meza  [DGTI]"]
["Dirección General de Vinculación, Coordinación y Colaboración con Entidades Federativas","DGVCCEF","610",61000000,"Director General/Jefe de Ponencia/Contralor","Dirección General de Vinculación, Coordinación y Colaboración con Entidades Federativas","José Luis Naya González","Dirección General de Vinculación, Coordinación y Colaboración con Entidades Federativas José Luis Naya González [DGVCCEF]"]
["Dirección General de Vinculación, Coordinación y Colaboración con Entidades Federativas","DGVCCEF","610",61000001,"Auxiliar","Auxiliar Administrativo","Vacante","Auxiliar Administrativo Vacante [DGVCCEF]"]
["Dirección General de Vinculación, Coordinación y Colaboración con Entidades Federativas","DGVCCEF","610",61000010,"Enlace","Enlace","Alejandro de Jesús Martínez Pacheco","Enlace Alejandro de Jesús Martínez Pacheco [DGVCCEF]"]
["Dirección General de Vinculación, Coordinación y Colaboración con Entidades Federativas","DGVCCEF","610",61010000,"Director de Área","Dirección de Vinculación y Coordinación con las Entidades Federativas","María Elena Vázquez Reyes","Dirección de Vinculación y Coordinación con las Entidades Federativas María Elena Vázquez Reyes [DGVCCEF]"]
["Dirección General de Vinculación, Coordinación y Colaboración con Entidades Federativas","DGVCCEF","610",61011000,"Subdirector de Área","Subdirección de Vinculación y Convenios","Carlos Michel Molina Herrera","Subdirección de Vinculación y Convenios Carlos Michel Molina Herrera [DGVCCEF]"]
["Dirección General de Vinculación, Coordinación y Colaboración con Entidades Federativas","DGVCCEF","610",61011100,"Jefe de Departamento/Consultor/Auditor","Departamento de Apoyo Técnico de Vinculación","Jesús Santiago Matheus Peña","Departamento de Apoyo Técnico de Vinculación Jesús Santiago Matheus Peña [DGVCCEF]"]
["Dirección General de Vinculación, Coordinación y Colaboración con Entidades Federativas","DGVCCEF","610",61012000,"Subdirector de Área","Subdirección de Difusión de Criterios, Atención y Enlace","Berenice Carrillo Contreras","Subdirección de Difusión de Criterios, Atención y Enlace Berenice Carrillo Contreras [DGVCCEF]"]
["Dirección General de Vinculación, Coordinación y Colaboración con Entidades Federativas","DGVCCEF","610",61012100,"Jefe de Departamento/Consultor/Auditor","Departamento de Seguimiento y Enlace","Mario Ernesto Mejía Pachón","Departamento de Seguimiento y Enlace Mario Ernesto Mejía Pachón [DGVCCEF]"]
["Dirección General de Vinculación, Coordinación y Colaboración con Entidades Federativas","DGVCCEF","610",61020000,"Director de Área","Dirección de Colaboración y Programas Interinstitucionales con las Entidades Federativas","José Vega Talamantes","Dirección de Colaboración y Programas Interinstitucionales con las Entidades Federativas José Vega Talamantes [DGVCCEF]"]
["Dirección General de Vinculación, Coordinación y Colaboración con Entidades Federativas","DGVCCEF","610",61021000,"Subdirector de Área","Subdirección de Colaboración Interinstitucional para la Promoción","Antolín Sotelo Sánchez","Subdirección de Colaboración Interinstitucional para la Promoción Antolín Sotelo Sánchez [DGVCCEF]"]
["Dirección General de Vinculación, Coordinación y Colaboración con Entidades Federativas","DGVCCEF","610",61021100,"Jefe de Departamento/Consultor/Auditor","Departamento de Apoyo Técnico y Seguimiento A","Jorge Saúl Limas Castro","Departamento de Apoyo Técnico y Seguimiento A Jorge Saúl Limas Castro [DGVCCEF]"]
["Dirección General de Vinculación, Coordinación y Colaboración con Entidades Federativas","DGVCCEF","610",61022000,"Subdirector de Área","Subdirección de Colaboración Interinstitucional para la Capacitación","Vacante","Subdirección de Colaboración Interinstitucional para la Capacitación Vacante [DGVCCEF]"]
["Dirección General de Vinculación, Coordinación y Colaboración con Entidades Federativas","DGVCCEF","610",61022010,"Enlace","Enlace","Roberto Cedeño Tizcareño","Enlace Roberto Cedeño Tizcareño [DGVCCEF]"]
["Dirección General de Vinculación, Coordinación y Colaboración con Entidades Federativas","DGVCCEF","610",61022100,"Jefe de Departamento/Consultor/Auditor","Departamento de Apoyo Técnico y Seguimiento B","Janeth Vázquez Reyes","Departamento de Apoyo Técnico y Seguimiento B Janeth Vázquez Reyes [DGVCCEF]"]
["Dirección General Técnica, Seguimiento y Normatividad","DGTSN","620",62000000,"Director General/Jefe de Ponencia/Contralor","Dirección General Técnica, Seguimiento y Normatividad del Sistema Nacional de Transparencia","Ismael Camargo Mata","Dirección General Técnica, Seguimiento y Normatividad del Sistema Nacional de Transparencia Ismael Camargo Mata [DGTSN]"]
["Dirección General Técnica, Seguimiento y Normatividad","DGTSN","620",62010000,"Director de Área","Dirección de Normatividad","Fernando Lino Bencomo Chávez","Dirección de Normatividad Fernando Lino Bencomo Chávez [DGTSN]"]
["Dirección General Técnica, Seguimiento y Normatividad","DGTSN","620",62011000,"Subdirector de Área","Subdirección de Seguimiento","Meriba Trejo Cerda","Subdirección de Seguimiento Meriba Trejo Cerda [DGTSN]"]
["Dirección General Técnica, Seguimiento y Normatividad","DGTSN","620",62011010,"Enlace","Asesor de Información","José Mendiola Esquivel","Asesor de Información José Mendiola Esquivel [DGTSN]"]
["Dirección General Técnica, Seguimiento y Normatividad","DGTSN","620",62011100,"Jefe de Departamento/Consultor/Auditor","Consultor","Adriana Yadira Cárdenas Tagle","Consultor Adriana Yadira Cárdenas Tagle [DGTSN]"]
["Dirección General Técnica, Seguimiento y Normatividad","DGTSN","620",62012000,"Subdirector de Área","Subdirección de Políticas","Mauricio Hernández Estrada","Subdirección de Políticas Mauricio Hernández Estrada [DGTSN]"]
["Dirección General Técnica, Seguimiento y Normatividad","DGTSN","620",62012010,"Enlace","Asesor Técnico","Yazmín Esteban K. Reskala","Asesor Técnico Yazmín Esteban K. Reskala [DGTSN]"]
["Dirección General Técnica, Seguimiento y Normatividad","DGTSN","620",62012020,"Enlace","Asesor de Políticas","Yuridia Berenice Moreno García","Asesor de Políticas Yuridia Berenice Moreno García [DGTSN]"]
["Dirección General Técnica, Seguimiento y Normatividad","DGTSN","620",62012100,"Jefe de Departamento/Consultor/Auditor","Consultor","Jesús Alejandro Segura Meraz","Consultor Jesús Alejandro Segura Meraz [DGTSN]"]
["Órgano Interno de Control","OIC","500",50000000,"Director General/Jefe de Ponencia/Contralor","Titular del Órgano Interno de Control","Vacante","Titular del Órgano Interno de Control Vacante [OIC]"]
["Órgano Interno de Control","OIC","500",50000001,"Auxiliar","Auxiliar Administrativo","José Rodolfo Araujo Hernández","Auxiliar Administrativo José Rodolfo Araujo Hernández [OIC]"]
["Órgano Interno de Control","OIC","500",50000010,"Enlace","Enlace","Eva Surisaday Samperio Fragoso","Enlace Eva Surisaday Samperio Fragoso [OIC]"]
["Órgano Interno de Control","OIC","500",50010000,"Director de Área","Dirección de Auditoría Interna","Eduardo Refugio Contla Ballesteros","Dirección de Auditoría Interna Eduardo Refugio Contla Ballesteros [OIC]"]
["Órgano Interno de Control","OIC","500",50011000,"Subdirector de Área","Subdirección de Auditoría Interna","Eva Contreras Martínez","Subdirección de Auditoría Interna Eva Contreras Martínez [OIC]"]
["Órgano Interno de Control","OIC","500",50011200,"Jefe de Departamento/Consultor/Auditor","Auditor","Claudia Rosalva Domínguez Dubón","Auditor Claudia Rosalva Domínguez Dubón [OIC]"]
["Órgano Interno de Control","OIC","500",50011300,"Jefe de Departamento/Consultor/Auditor","Auditor","Nancy Karina Muñoz Santana","Auditor Nancy Karina Muñoz Santana [OIC]"]
["Órgano Interno de Control","OIC","500",50012000,"Subdirector de Área","Subdirección de Auditoría para la Prevención","Alejandro Nava Castellanos","Subdirección de Auditoría para la Prevención Alejandro Nava Castellanos [OIC]"]
["Órgano Interno de Control","OIC","500",50012100,"Jefe de Departamento/Consultor/Auditor","Auditor","Jorge Arturo López Figueroa","Auditor Jorge Arturo López Figueroa [OIC]"]
["Órgano Interno de Control","OIC","500",50012200,"Jefe de Departamento/Consultor/Auditor","Auditor","Marco Antonio Contreras Uribe","Auditor Marco Antonio Contreras Uribe [OIC]"]
["Órgano Interno de Control","OIC","500",50020000,"Director de Área","Dirección de Responsabilidades y Quejas","Luis Jesús Moreno Velázquez","Dirección de Responsabilidades y Quejas Luis Jesús Moreno Velázquez [OIC]"]
["Órgano Interno de Control","OIC","500",50021000,"Subdirector de Área","Subdirección de Quejas A","Yessica Anahí Torres Carcaño","Subdirección de Quejas A Yessica Anahí Torres Carcaño [OIC]"]
["Órgano Interno de Control","OIC","500",50021100,"Jefe de Departamento/Consultor/Auditor","Consultor","Blanca Quezada Arenas","Consultor Blanca Quezada Arenas [OIC]"]
["Órgano Interno de Control","OIC","500",50022000,"Subdirector de Área","Subdirección de Quejas B","María Dolores López Cortés","Subdirección de Quejas B María Dolores López Cortés [OIC]"]
["Órgano Interno de Control","OIC","500",50022200,"Jefe de Departamento/Consultor/Auditor","Consultor ","Mario Armando Briceño Torres","Consultor  Mario Armando Briceño Torres [OIC]"]
["Órgano Interno de Control","OIC","500",50023000,"Subdirector de Área","Subdirección de Responsabilidades","Cintia Guadalupe Blando Ruiz","Subdirección de Responsabilidades Cintia Guadalupe Blando Ruiz [OIC]"]
["Órgano Interno de Control","OIC","500",50023100,"Jefe de Departamento/Consultor/Auditor","Consultor","Saúl Enrique Mondragón Romero","Consultor Saúl Enrique Mondragón Romero [OIC]"]
["Órgano Interno de Control","OIC","500",50023200,"Jefe de Departamento/Consultor/Auditor","Consultor","Erika Lizbeth Cornelio Ramos","Consultor Erika Lizbeth Cornelio Ramos [OIC]"]
["Secretaría de Acceso a la Información","SAI","300",30000000,"Secretario","Secretaría de Acceso a la Información","Adrián Alcalá Méndez","Secretaría de Acceso a la Información Adrián Alcalá Méndez [SAI]"]
["Secretaría de Acceso a la Información","SAI","300",30000001,"Auxiliar","Auxiliar Administrativo","José Daniel Ponce García","Auxiliar Administrativo José Daniel Ponce García [SAI]"]
["Secretaría de Acceso a la Información","SAI","300",30000010,"Enlace","Enlace","Fabiola Josefina Velázquez De la Cruz","Enlace Fabiola Josefina Velázquez De la Cruz [SAI]"]
["Secretaría de Acceso a la Información","SAI","300",30010000,"Director de Área","Dirección de Coordinación y Seguimiento","Laura Perla González Dávila","Dirección de Coordinación y Seguimiento Laura Perla González Dávila [SAI]"]
["Secretaría de Acceso a la Información","SAI","300",30011000,"Subdirector de Área","Subdirección de Coordinación y Seguimiento","Adriana Miranda Morales","Subdirección de Coordinación y Seguimiento Adriana Miranda Morales [SAI]"]
["Secretaría de Acceso a la Información","SAI","300",30011100,"Jefe de Departamento/Consultor/Auditor","Departamento de Enlace","José Vallejo Bernal","Departamento de Enlace José Vallejo Bernal [SAI]"]
["Secretaría de Acceso a la Información","SAI","300",30011200,"Jefe de Departamento/Consultor/Auditor","Departamento de Apoyo Técnico","Haydeé Cienfuegos González","Departamento de Apoyo Técnico Haydeé Cienfuegos González [SAI]"]
["Secretaría de Protección de Datos Personales","SPDP","400",40000000,"Secretario","Secretaría de Protección de Datos Personales","Luis Gustavo Parra Noriega","Secretaría de Protección de Datos Personales Luis Gustavo Parra Noriega [SPDP]"]
["Secretaría de Protección de Datos Personales","SPDP","400",40000001,"Auxiliar","Auxiliar Administrativo","Daniela Yolanda Martínez Rosique","Auxiliar Administrativo Daniela Yolanda Martínez Rosique [SPDP]"]
["Secretaría de Protección de Datos Personales","SPDP","400",40000010,"Enlace","Enlace","José Francisco Pérez Martínez","Enlace José Francisco Pérez Martínez [SPDP]"]
["Secretaría de Protección de Datos Personales","SPDP",{"$f":"MID(D707,1,3)","v":"400"},40020000,"Director de Área","Dirección de Coordinación y Seguimiento","Rubén Carbajal Zárate",{"$f":"CONCATENATE(F707,\" \",G707,\" \",\"[\",B707,\"]\")","v":"Dirección de Coordinación y Seguimiento Rubén Carbajal Zárate [SPDP]"}]
["Secretaría de Protección de Datos Personales","SPDP","400",40021000,"Subdirector de Área","Subdirección de Coordinación y Seguimiento","Nashyeli Lozano Merino","Subdirección de Coordinación y Seguimiento Nashyeli Lozano Merino [SPDP]"]
["Secretaría de Protección de Datos Personales","SPDP","400",40021100,"Jefe de Departamento/Consultor/Auditor","Departamento de Enlace","Claudia Diaz Rosales","Departamento de Enlace Claudia Diaz Rosales [SPDP]"]
["Secretaría de Protección de Datos Personales","SPDP","400",40021200,"Jefe de Departamento/Consultor/Auditor","Departamento de Apoyo Técnico","Luisa Jacqueline Farah Gebara","Departamento de Apoyo Técnico Luisa Jacqueline Farah Gebara [SPDP]"]
["Secretaría Ejecutiva","SE","200",20000000,"Secretario","Secretaría Ejecutiva","José de Jesús Ramírez Sánchez","Secretaría Ejecutiva José de Jesús Ramírez Sánchez [SE]"]
["Secretaría Ejecutiva","SE","200",20000001,"Auxiliar","Auxiliar Administrativo","Edna Lucila Martínez Rodríguez","Auxiliar Administrativo Edna Lucila Martínez Rodríguez [SE]"]
["Secretaría Ejecutiva","SE","200",20000010,"Enlace","Enlace","Víctor Benito Castro Martínez","Enlace Víctor Benito Castro Martínez [SE]"]
["Secretaría Ejecutiva","SE","200",20010000,"Director de Área","Dirección de Coordinación y Seguimiento","Laura Orozco Domínguez","Dirección de Coordinación y Seguimiento Laura Orozco Domínguez [SE]"]
["Secretaría Ejecutiva","SE","200",20011000,"Subdirector de Área","Subdirección de Coordinación y Seguimiento","Vacante","Subdirección de Coordinación y Seguimiento Vacante [SE]"]
["Secretaría Ejecutiva","SE","200",20011100,"Jefe de Departamento/Consultor/Auditor","Departamento de Enlace","Rocio Espinoza Julio","Departamento de Enlace Rocio Espinoza Julio [SE]"]
["Secretaría Ejecutiva","SE","200",20011200,"Jefe de Departamento/Consultor/Auditor","Departamento de Apoyo Técnico","Diana González Piña","Departamento de Apoyo Técnico Diana González Piña [SE]"]
["Secretaría Ejecutiva del Sistema Nacional de Transparencia","SSE SNT","600",60000000,"Secretario","Secretaría Ejecutiva del Sistema Nacional de Transparencia","Federico Guzmán Tamayo","Secretaría Ejecutiva del Sistema Nacional de Transparencia Federico Guzmán Tamayo [SSE SNT]"]
["Secretaría Ejecutiva del Sistema Nacional de Transparencia","SSE SNT","600",60000001,"Auxiliar","Auxiliar Administrativo","Juan Carlos Rodríguez Cadena","Auxiliar Administrativo Juan Carlos Rodríguez Cadena [SSE SNT]"]
["Secretaría Ejecutiva del Sistema Nacional de Transparencia","SSE SNT","600",60000010,"Enlace","Enlace","Carmen Guadalupe Zepeda Segura","Enlace Carmen Guadalupe Zepeda Segura [SSE SNT]"]
["Secretaría Técnica del Pleno","STP","700",70000000,"Secretario","Secretaría Técnica del Pleno","Hugo Alejandro Córdova Díaz","Secretaría Técnica del Pleno Hugo Alejandro Córdova Díaz [STP]"]
["Secretaría Técnica del Pleno","STP","700",70000010,"Enlace","Enlace","Vacante","Enlace Vacante [STP]"]
["Secretaría Técnica del Pleno","STP","700",70000020,"Enlace","Enlace","Lorena Serrano Caltzontzin","Enlace Lorena Serrano Caltzontzin [STP]"]
["Secretaría Técnica del Pleno","STP","700",70001000,"Subdirector de Área","Subdirección de Coordinación y Seguimiento","Vacante","Subdirección de Coordinación y Seguimiento Vacante [STP]"]
["Secretaría Técnica del Pleno","STP","700",70001100,"Jefe de Departamento/Consultor/Auditor","Departamento de Seguimiento","Enrique Ruiz Mata","Departamento de Seguimiento Enrique Ruiz Mata [STP]"]
["Secretaría Técnica del Pleno","STP","700",70002000,"Subdirector de Área","Subdirección de Apoyo Técnico","Vacante","Subdirección de Apoyo Técnico Vacante [STP]"]
["Secretaría Técnica del Pleno","STP","700",70002100,"Jefe de Departamento/Consultor/Auditor","Departamento de Apoyo Técnico","Vacante","Departamento de Apoyo Técnico Vacante [STP]"]

{"sheet":"Areaadmva","index":6,"n_rows":41,"n_cols":2,"rows_kept":41,"cut":false,"hidden":true,"merged":[]}
["No.","Unidad"]
[]
[1,"Ponencia Comisionado Francisco Javier Acuña Llamas"]
[2,"Ponencia Comisionado Carlos Alberto Bonnin Erales"]
[3,"Ponencia Comisionado Oscar Mauricio Guerra Ford"]
[4,"Ponencia Comisionada Blanca Lilia Ibarra Cadena"]
[5,"Ponencia Comisionada María Patricia Kurczyn Villalobos"]
[6,"Ponencia Comisionado Rosendoevgueni Monterrey Chepov"]
[7,"Ponencia Comisionado Joel Salas Suárez"]
[8,"Dirección General de Administración"]
[9,"Dirección General de Asuntos Internacionales"]
[10,"Dirección General de Asuntos Jurídicos"]
[11,"Dirección General de Atención al Pleno"]
[12,"Dirección General de Capacitación"]
[13,"Dirección General de Comunicación Social y Difusión"]
[14,"Dirección General de Cumplimiento y Responsabilidades"]
[15,"Dirección General de Enlace con Autoridades Laborales, Sindicatos, Universidades, Personas Físicas y Morales"]
[16,"Dirección General de Enlace con la Administración Pública Centralizada y Tribunales Administrativos"]
[17,"Dirección General de Enlace con los Poderes Legislativo y Judicial"]
[18,"Dirección General de Enlace con Organismos Públicos Autónomos, Empresas Paraestatales, Entidades Financieras, Fondos y Fideicomisos"]
[19,"Dirección General de Enlace con Partidos Políticos, Organismos Electorales y Descentralizados"]
[20,"Dirección General de Evaluación"]
[21,"Dirección General de Gestión de Información y Estudios"]
[22,"Dirección General de Gobierno Abierto y Transparencia"]
[23,"Dirección General de Investigación y Verificación del Sector Privado"]
[null,"Dirección General de Evaluación, Investigación y Verificación del Sector Público"]
[24,"Dirección General de Normatividad y Consulta"]
[25,"Dirección General de Planeación y Desempeño Institucional"]
[26,"Dirección General de Políticas de Acceso"]
[27,"Dirección General de Prevención y Autorregulación"]
[28,"Dirección General de Promoción y Vinculación con la Sociedad"]
[29,"Dirección General de Protección de Derechos y Sanción"]
[30,"Dirección General de Tecnologías de la Información"]
[31,"Dirección General de Vinculación Coordinación y Colaboración con Entidades Federativas"]
[32,"Dirección General Técnica de Seguimiento y Normatividad del Sistema Nacional de Transparencia"]
[33,"Órgano Interno de Control"]
[34,"Secretaría de Acceso a la Información"]
[35,"Secretaría de Protección de Datos Personales"]
[36,"Secretaría Ejecutiva"]
[37,"Secretaría Ejecutiva del Sistema Nacional de Transparencia"]
[38,"Secretaría Técnica del Pleno"]